Body Name,Service Area,Expenses Type,Invoice Payment Date,Transaction Number,Net Amount,Supplier Name
Manchester City Council,Manchester Leisure,Gas,01.07.2021,1907279859,"9,354.52",Gazprom Energy
Manchester City Council,Manchester Leisure,Gas,01.07.2021,1907279799,"3,960.05",Gazprom Energy
Manchester City Council,Manchester Leisure,Gas,01.07.2021,1907279875,"3,500.93",Gazprom Energy
Manchester City Council,Manchester Leisure,Gas,01.07.2021,1907279758,"3,418.18",Gazprom Energy
Manchester City Council,Manchester Leisure,Gas,01.07.2021,1907279849,"3,363.53",Gazprom Energy
Manchester City Council,Manchester Leisure,Gas,01.07.2021,1907279876,"2,740.72",Gazprom Energy
Manchester City Council,Manchester Leisure,Gas,01.07.2021,1907279880,"2,695.98",Gazprom Energy
Manchester City Council,Manchester Leisure,Gas,01.07.2021,1907279872,"2,210.25",Gazprom Energy
Manchester City Council,Manchester Leisure,Gas,01.07.2021,1907279863,"1,611.43",Gazprom Energy
Manchester City Council,Manchester Leisure,Gas,01.07.2021,1907279864,"1,455.66",Gazprom Energy
Manchester City Council,Manchester Leisure,Gas,01.07.2021,1907279767,921.64,Gazprom Energy
Manchester City Council,Manchester Leisure,Gas,01.07.2021,1907279874,793.60,Gazprom Energy
Manchester City Council,Manchester Leisure,Professional fees,01.07.2021,5101139227,523.00,Floreeda Fabrications Ltd
Manchester City Council,Hospitality + Trading Services,Gas,01.07.2021,1907279771,"3,073.93",Gazprom Energy
Manchester City Council,Hospitality + Trading Services,Gas,01.07.2021,1907279760,"1,204.97",Gazprom Energy
Manchester City Council,Hospitality + Trading Services,Rents,01.07.2021,1907278597,"2,821.03",St Modwen Corporate Services Ltd
Manchester City Council,Hospitality + Trading Services,Vehicle Hire Costs,01.07.2021,5101139178,"73,639.30",Winners Contract Hire Ltd
Manchester City Council,Hospitality + Trading Services,Funeral and coroner related services,01.07.2021,5101139190,"4,592.90",G E Robinson & Co Ltd
Manchester City Council,Childrens & Education Services,Payments for services,01.07.2021,5101139254,"2,430.12",Fairfield Care Ltd
Manchester City Council,Childrens & Education Services,Payments for services,01.07.2021,5101139255,"2,100.82",Fairfield Care Ltd
Manchester City Council,Childrens & Education Services,Payments for services,01.07.2021,5101139258,574.16,Fairfield Care Ltd
Manchester City Council,Childrens & Education Services,Legal Fees,01.07.2021,5101139268,"1,080.34",Warwickshire County Council
Manchester City Council,Childrens & Education Services,Legal Fees,01.07.2021,5101139249,"2,190.44",Warwickshire County Council
Manchester City Council,Childrens & Education Services,Legal Fees,01.07.2021,5101139264,"3,444.10",Warwickshire County Council
Manchester City Council,Childrens & Education Services,Legal Fees,01.07.2021,5101139262,"5,141.90",Warwickshire County Council
Manchester City Council,Childrens & Education Services,Legal Fees,01.07.2021,5101139257,"5,303.45",Warwickshire County Council
Manchester City Council,Adult Social Care,External repairs and maintenance for buildings,01.07.2021,5101139214,662.48,T F Jones Property Services Ltd
Manchester City Council,Adult Social Care,Gas,01.07.2021,1907279855,549.47,Gazprom Energy
Manchester City Council,Adult Social Care,Gas,01.07.2021,1907279891,528.44,Gazprom Energy
Manchester City Council,Adult Social Care,Professional fees,01.07.2021,5101139173,"1,217.78",NHS Supply Chain
Manchester City Council,Adult Social Care,Bed and Breakfast Accommodation Expenditure,01.07.2021,5101139229,"17,680.00",Intra City Construction Group
Manchester City Council,Adult Social Care,Third party payments to Health Authority,01.07.2021,5101139266,"2,641,750.00",Central Mcr Uni Hospital t/a
Manchester City Council,Adult Social Care,Third party payments relating to Voluntary Organisations,01.07.2021,5101139177,"1,472.38",Coffee4Craig Ltd
Manchester City Council,Adult Social Care,Third party payments relating to Voluntary Organisations,01.07.2021,5101139176,755.20,Coffee4Craig Ltd
Manchester City Council,Adult Social Care,Payments for services,01.07.2021,5101139179,"-49,365.72",Potensial Ltd (T/A Potens)
Manchester City Council,Housing General Fund,Building Works,01.07.2021,1907279626,"7,094.00",Stannah Lift Services Ltd
Manchester City Council,Housing General Fund,Building Works,01.07.2021,1907279629,"6,931.00",Stannah Lift Services Ltd
Manchester City Council,Housing General Fund,Building Works,01.07.2021,1907279625,"6,480.00",Stannah Lift Services Ltd
Manchester City Council,Housing General Fund,Building Works,01.07.2021,1907279627,"6,406.00",Stannah Lift Services Ltd
Manchester City Council,Housing General Fund,Building Works,01.07.2021,1907279628,"2,868.09",Prism Medical UK Carefree Division
Manchester City Council,Housing Revenue Account,Gas,01.07.2021,1907279928,"4,657.44",Gazprom Energy
Manchester City Council,Housing Revenue Account,Gas,01.07.2021,1907279794,"4,238.29",Gazprom Energy
Manchester City Council,Housing Revenue Account,Gas,01.07.2021,1907279930,"4,007.10",Gazprom Energy
Manchester City Council,Housing Revenue Account,Gas,01.07.2021,1907279886,986.99,Gazprom Energy
Manchester City Council,Housing Revenue Account,Gas,01.07.2021,1907279837,791.14,Gazprom Energy
Manchester City Council,Housing Revenue Account,Gas,01.07.2021,1907279906,777.01,Gazprom Energy
Manchester City Council,Housing Revenue Account,Gas,01.07.2021,1907279835,753.69,Gazprom Energy
Manchester City Council,Housing Revenue Account,Gas,01.07.2021,1907279850,747.39,Gazprom Energy
Manchester City Council,Housing Revenue Account,Gas,01.07.2021,1907279900,743.99,Gazprom Energy
Manchester City Council,Housing Revenue Account,Gas,01.07.2021,1907279774,710.28,Gazprom Energy
Manchester City Council,Housing Revenue Account,Gas,01.07.2021,1907279756,693.09,Gazprom Energy
Manchester City Council,Housing Revenue Account,Gas,01.07.2021,1907279898,663.51,Gazprom Energy
Manchester City Council,Housing Revenue Account,Gas,01.07.2021,1907279909,644.90,Gazprom Energy
Manchester City Council,Housing Revenue Account,Gas,01.07.2021,1907279757,639.79,Gazprom Energy
Manchester City Council,Housing Revenue Account,Gas,01.07.2021,1907279802,623.28,Gazprom Energy
Manchester City Council,Housing Revenue Account,Gas,01.07.2021,1907279901,594.59,Gazprom Energy
Manchester City Council,Housing Revenue Account,Gas,01.07.2021,1700121074,-692.32,Gazprom Energy
Manchester City Council,Housing Revenue Account,Gas,01.07.2021,1700121073,-867.29,Gazprom Energy
Manchester City Council,Housing Revenue Account,Gas,01.07.2021,1700121075,-990.04,Gazprom Energy
Manchester City Council,Housing Revenue Account,Council Dwelling Adaptations,01.07.2021,5101139185,"32,544.21",Rothwell Plumbing Services Ltd
Manchester City Council,Housing Revenue Account,Council Dwelling Adaptations,01.07.2021,5101139202,"9,234.03",Procare Shower & Bathroom Centre Lt
Manchester City Council,Housing Revenue Account,Council Dwelling Adaptations,01.07.2021,5101139187,"8,726.64",Nibe Energy Systems Ltd
Manchester City Council,Housing Revenue Account,Council Dwelling Adaptations,01.07.2021,5101139188,"3,184.84",Pts Plumbing Trade Supplies
Manchester City Council,Housing Revenue Account,Council Dwelling Adaptations,01.07.2021,5101139219,"2,907.22",Procare Shower & Bathroom Centre Lt
Manchester City Council,Housing Revenue Account,Council Dwelling Adaptations,01.07.2021,5101139189,"1,834.79",Pts Plumbing Trade Supplies
Manchester City Council,Housing Revenue Account,Council Dwelling Adaptations,01.07.2021,5101139207,882.77,Procare Shower & Bathroom Centre Lt
Manchester City Council,Housing Revenue Account,Council Dwelling Adaptations,01.07.2021,5101139216,880.17,Procare Shower & Bathroom Centre Lt
Manchester City Council,Chief Executives,Payments to Sub-Contractors,01.07.2021,5101139234,621.79,Redacted Personal Information
Manchester City Council,Chief Executives,Landline Telephone Charges,01.07.2021,1907278596,"2,781.04",BT PLC
Manchester City Council,Chief Executives,Data Links,01.07.2021,1907278594,"129,164.25",BT PLC
Manchester City Council,Chief Executives,I T Provision,01.07.2021,1907278593,"3,041.25",Vodafone (Ex C&W)
Manchester City Council,Chief Executives,Grant and subscriptions awarded,01.07.2021,5101139183,"5,000.00",Thrive Manachester
Manchester City Council,Chief Executives,Grant and subscriptions awarded,01.07.2021,5101139182,"3,666.67",Thrive Manachester
Manchester City Council,Chief Executives,Advertising,01.07.2021,5101139212,"2,243.85",Newsquest (North West) Ltd
Manchester City Council,Chief Executives,Advertising,01.07.2021,5101139203,716.66,JPIMedia Publishing Ltd
Manchester City Council,Regeneration Finance,Gas,01.07.2021,1907279927,"22,228.34",Gazprom Energy
Manchester City Council,Regeneration Finance,Gas,01.07.2021,1907279860,"2,843.23",Gazprom Energy
Manchester City Council,Regeneration Finance,Gas,01.07.2021,1907279820,"2,466.66",Gazprom Energy
Manchester City Council,Regeneration Finance,Gas,01.07.2021,1907279885,"2,021.92",Gazprom Energy
Manchester City Council,Regeneration Finance,Gas,01.07.2021,1907279747,"1,906.69",Gazprom Energy
Manchester City Council,Regeneration Finance,Gas,01.07.2021,1907279846,"1,370.88",Gazprom Energy
Manchester City Council,Regeneration Finance,Gas,01.07.2021,1907279811,"1,050.58",Gazprom Energy
Manchester City Council,Regeneration Finance,Gas,01.07.2021,1907279831,"1,050.35",Gazprom Energy
Manchester City Council,Regeneration Finance,Gas,01.07.2021,1907279823,970.25,Gazprom Energy
Manchester City Council,Regeneration Finance,Gas,01.07.2021,1907279926,781.62,Gazprom Energy
Manchester City Council,Regeneration Finance,Gas,01.07.2021,1907279916,759.06,Gazprom Energy
Manchester City Council,Regeneration Finance,Gas,01.07.2021,1907279830,753.51,Gazprom Energy
Manchester City Council,Regeneration Finance,Gas,01.07.2021,1907279904,750.16,Gazprom Energy
Manchester City Council,Regeneration Finance,Gas,01.07.2021,1907279848,741.25,Gazprom Energy
Manchester City Council,Regeneration Finance,Gas,01.07.2021,1907279827,720.77,Gazprom Energy
Manchester City Council,Regeneration Finance,Gas,01.07.2021,1907279897,690.47,Gazprom Energy
Manchester City Council,Regeneration Finance,Gas,01.07.2021,1907279783,649.72,Gazprom Energy
Manchester City Council,Regeneration Finance,Gas,01.07.2021,1907279816,626.00,Gazprom Energy
Manchester City Council,Regeneration Finance,Gas,01.07.2021,1907279942,613.13,Gazprom Energy
Manchester City Council,Regeneration Finance,Gas,01.07.2021,1907279844,600.11,Gazprom Energy
Manchester City Council,Regeneration Finance,Gas,01.07.2021,1907279834,569.37,Gazprom Energy
Manchester City Council,Regeneration Finance,Gas,01.07.2021,1907279751,556.64,Gazprom Energy
Manchester City Council,Regeneration Finance,Gas,01.07.2021,1907279925,541.76,Gazprom Energy
Manchester City Council,Regeneration Finance,Gas,01.07.2021,1907279821,538.32,Gazprom Energy
Manchester City Council,Regeneration Finance,Water Service Charges - Metered,01.07.2021,1907279946,"1,652.45",Water Plus Limited
Manchester City Council,Regeneration Finance,Professional fees,01.07.2021,5101139260,"44,000.00",Jacobs UK Ltd
Manchester City Council,Highways Services,Electricity,01.07.2021,1907279948,"5,310.44",EDF Energy
Manchester City Council,Highways Services,Electricity,01.07.2021,1907279947,"4,459.72",EDF Energy
Manchester City Council,General Fund,Grant and subscriptions awarded,01.07.2021,1907270432,"282,604.28",Oldham Borough Council
Manchester City Council,Manchester Leisure,Refuse Collection,02.07.2021,5101139441,"1,204.00",Dickinson Environmental
Manchester City Council,Manchester Leisure,Equipment,02.07.2021,5101139500,"12,132.00",MGB Plastics Limited
Manchester City Council,Manchester Leisure,Equipment,02.07.2021,5101139448,"7,040.00",Willfab Ltd
Manchester City Council,Manchester Leisure,Equipment,02.07.2021,1907280618,"1,740.00",FTS FIRE & SECURITY LTD
Manchester City Council,Manchester Leisure,Equipment,02.07.2021,1907280608,"1,275.00",SHERIDAN LIFTS LTD
Manchester City Council,Manchester Leisure,Equipment,02.07.2021,5101139446,880.00,Willfab Ltd
Manchester City Council,Manchester Leisure,Equipment,02.07.2021,5101139343,770.87,North West Timber Treatments Ltd
Manchester City Council,Manchester Leisure,Equipment,02.07.2021,5101139443,-880.00,Willfab Ltd
Manchester City Council,Manchester Leisure,"Consumable items eg Toilet rolls, soap etc",02.07.2021,1907280592,"2,655.60",PALLETTRUCKWAREHOUSE
Manchester City Council,Manchester Leisure,"Consumable items eg Toilet rolls, soap etc",02.07.2021,1907280544,"1,086.00",BIGDUG LIMITED
Manchester City Council,Manchester Leisure,"Consumable items eg Toilet rolls, soap etc",02.07.2021,1907280625,729.20,KIKKERLAND EUROPE BV
Manchester City Council,Manchester Leisure,"Consumable items eg Toilet rolls, soap etc",02.07.2021,1907280505,552.95,Argos Business Solutions
Manchester City Council,Manchester Leisure,Payments to Sub-Contractors,02.07.2021,5101139279,"1,750.00",Groundwork Landscapes Ltd
Manchester City Council,Manchester Leisure,Payments to Sub-Contractors,02.07.2021,5101139250,"1,450.00",Groundwork Landscapes Ltd
Manchester City Council,Manchester Leisure,Payments to Sub-Contractors,02.07.2021,5101139293,700.00,Groundwork & Leisure Services Ltd
Manchester City Council,Manchester Leisure,Payments to Sub-Contractors,02.07.2021,5101139246,"-1,450.00",Groundwork Landscapes Ltd
Manchester City Council,Manchester Leisure,Payments to Sub-Contractors,02.07.2021,5101139252,"-1,750.00",Groundwork Landscapes Ltd
Manchester City Council,Manchester Leisure,Professional fees,02.07.2021,5101139425,"3,212.00",BIGDUG Ltd
Manchester City Council,Manchester Leisure,Professional fees,02.07.2021,5101139298,"1,360.00",Vertical Access Ltd
Manchester City Council,Manchester Leisure,Professional fees,02.07.2021,5101139442,"1,000.00",Moss Side Millennium Powerhouse Ltd
Manchester City Council,Manchester Leisure,Special Events,02.07.2021,5101139435,"1,950.00",Redacted Personal Information
Manchester City Council,Manchester Leisure,Special Events,02.07.2021,5101139436,609.94,Redacted Personal Information
Manchester City Council,Libraries and Theatres,Training and Development,02.07.2021,5101139218,995.00,Naomi Korn Associated Limited
Manchester City Council,Hospitality + Trading Services,Rents,02.07.2021,1907280272,"5,366.70",St Modwen Corporate Services Ltd
Manchester City Council,Hospitality + Trading Services,Vehicle Hire Costs,02.07.2021,5101139390,"1,292.00",Ubu Environmental Ltd
Manchester City Council,Hospitality + Trading Services,Funeral and coroner related services,02.07.2021,5101139498,"2,610.00",ECE Consultancy
Manchester City Council,Hospitality + Trading Services,Funeral and coroner related services,02.07.2021,5101139489,925.00,ECE Consultancy
Manchester City Council,Environment and Operations,Construction Works,02.07.2021,5101139468,"15,571.41",Amey Highways Lighting (Manchester)
Manchester City Council,Environment and Operations,Construction Works,02.07.2021,5101139295,"2,400.00",Transport for Greater Manchester
Manchester City Council,Environment and Operations,Construction Works,02.07.2021,5101139481,600.00,Transport for Greater Manchester
Manchester City Council,Environment and Operations,Construction Works,02.07.2021,5101139465,"-15,571.41",Amey Highways Lighting (Manchester)
Manchester City Council,Environment and Operations,Long Term Debtors,02.07.2021,1907280456,"100,500.00",Biffa Waste Services Ltd
Manchester City Council,Childrens & Education Services,Transport Coach Hire,02.07.2021,5101139451,"98,471.40",Westfield Minibuses
Manchester City Council,Childrens & Education Services,Transport Coach Hire,02.07.2021,5101139344,"12,550.50",MCR Elite Taxis Ltd
Manchester City Council,Childrens & Education Services,Transport Coach Hire,02.07.2021,5101139281,"2,354.00",MS Minibuses Ltd
Manchester City Council,Childrens & Education Services,Professional fees,02.07.2021,5101139346,"1,666.66",Redacted Personal Information
Manchester City Council,Childrens & Education Services,Professional fees,02.07.2021,5101139424,950.00,Arnoldsolutions
Manchester City Council,Childrens & Education Services,I T Provision,02.07.2021,5101139338,"2,010.00",One Education Ltd
Manchester City Council,Childrens & Education Services,I T Provision,02.07.2021,5101139341,"1,500.00",One Education Ltd
Manchester City Council,Childrens & Education Services,Subsistence and Conference Expenses,02.07.2021,1907280685,"3,199.00",C2E784000633M UKVI
Manchester City Council,Childrens & Education Services,Third party payments to other Local Authorities,02.07.2021,5101139292,"13,036.00",The Orchards School
Manchester City Council,Childrens & Education Services,Third party payments to other Local Authorities,02.07.2021,1907269462,"3,907.00",Bare Trees Primary School
Manchester City Council,Childrens & Education Services,Third party payments to other Local Authorities,02.07.2021,5101139449,"2,667.50",Kingfisher Special School
Manchester City Council,Childrens & Education Services,Third party payments to other Local Authorities,02.07.2021,1907269547,"1,516.66",St Ambrose College E.R.A.T
Manchester City Council,Childrens & Education Services,Third party payments relating to Voluntary Organisations,02.07.2021,5101139284,"59,099.50",The Big Life Company
Manchester City Council,Childrens & Education Services,Third party payments relating to Voluntary Organisations,02.07.2021,5101139284,"40,058.00",The Big Life Company
Manchester City Council,Childrens & Education Services,Payments for services,02.07.2021,5101139438,"124,298.70",Loreto College
Manchester City Council,Childrens & Education Services,Payments for services,02.07.2021,1907267416,"28,846.40",No Isolation Ltd
Manchester City Council,Childrens & Education Services,Payments for services,02.07.2021,5101139457,"16,747.50",Time Specialist Support Ltd
Manchester City Council,Childrens & Education Services,Payments for services,02.07.2021,5101139454,"7,099.40",Time Specialist Support Ltd
Manchester City Council,Childrens & Education Services,Payments for services,02.07.2021,5101139509,"2,495.04",Reed Employment Plc
Manchester City Council,Childrens & Education Services,Payments for services,02.07.2021,1907275099,"2,221.44",The Growth Company
Manchester City Council,Childrens & Education Services,Payments for services,02.07.2021,5101139479,"1,247.52",Reed Employment Plc
Manchester City Council,Childrens & Education Services,Payments for services,02.07.2021,5101139476,987.62,Reed Employment Plc
Manchester City Council,Childrens & Education Services,Payments for services,02.07.2021,5101139484,727.72,Reed Employment Plc
Manchester City Council,Childrens & Education Services,Supporting People Payments,02.07.2021,5101139429,684.00,Westfield Minibuses
Manchester City Council,Childrens & Education Services,Foster Payments,02.07.2021,5101139416,"4,725.00",Foster Talk
Manchester City Council,Childrens & Education Services,Foster Payments,02.07.2021,5101139417,"4,025.00",Foster Talk
Manchester City Council,Childrens & Education Services,Legal Fees,02.07.2021,5101139317,593.27,Warwickshire County Council
Manchester City Council,Childrens & Education Services,Legal Fees,02.07.2021,5101139330,696.85,Warwickshire County Council
Manchester City Council,Childrens & Education Services,Legal Fees,02.07.2021,5101139272,842.80,Warwickshire County Council
Manchester City Council,Childrens & Education Services,Legal Fees,02.07.2021,5101139280,899.48,Warwickshire County Council
Manchester City Council,Childrens & Education Services,Legal Fees,02.07.2021,5101139301,"1,181.48",Warwickshire County Council
Manchester City Council,Childrens & Education Services,Legal Fees,02.07.2021,5101139313,"1,586.32",Warwickshire County Council
Manchester City Council,Childrens & Education Services,Legal Fees,02.07.2021,5101139325,"2,831.97",Warwickshire County Council
Manchester City Council,Childrens & Education Services,Legal Fees,02.07.2021,5101139305,"2,841.02",Warwickshire County Council
Manchester City Council,Childrens & Education Services,Legal Fees,02.07.2021,5101139320,"3,182.68",Warwickshire County Council
Manchester City Council,Adult Social Care,Goods Received Invoice Received,02.07.2021,5101139321,"-21,957.33",Manchester City Football Club Plc
Manchester City Council,Adult Social Care,Rents,02.07.2021,5101139420,"38,197.37",Housing Social Ltd
Manchester City Council,Adult Social Care,Rents,02.07.2021,5101139472,"4,651.00",Wythenshawe Community Housing Group
Manchester City Council,Adult Social Care,Equipment,02.07.2021,5101139358,"3,500.00",Herida Healthcare Plc
Manchester City Council,Adult Social Care,Equipment,02.07.2021,5101139384,"2,961.35",Sarabec Limited
Manchester City Council,Adult Social Care,Equipment,02.07.2021,5101139294,"1,494.80",Sarabec Limited
Manchester City Council,Adult Social Care,Equipment,02.07.2021,5101139431,516.80,R82 Uk Ltd
Manchester City Council,Adult Social Care,"Consumable items eg Toilet rolls, soap etc",02.07.2021,5101139422,"3,295.96",Redacted Personal Information
Manchester City Council,Adult Social Care,"Consumable items eg Toilet rolls, soap etc",02.07.2021,5101139423,"2,988.00",Redacted Personal Information
Manchester City Council,Adult Social Care,Subsistence and Conference Expenses,02.07.2021,5101139385,"5,000.00",Thrive Manachester
Manchester City Council,Adult Social Care,Funeral and coroner related services,02.07.2021,5101139437,794.00,Greater Manchester Funeral Service
Manchester City Council,Adult Social Care,Funeral and coroner related services,02.07.2021,5101139421,"1,395.00",Greater Manchester Funeral Service
Manchester City Council,Adult Social Care,Funeral and coroner related services,02.07.2021,5101139315,"-1,666.66",Greater Manchester Funeral Service
Manchester City Council,Adult Social Care,Bed and Breakfast Accommodation Expenditure,02.07.2021,5101139400,"5,685.00",Redacted Personal Information
Manchester City Council,Adult Social Care,Bed and Breakfast Accommodation Expenditure,02.07.2021,5101139398,"5,465.00",Redacted Personal Information
Manchester City Council,Adult Social Care,Bed and Breakfast Accommodation Expenditure,02.07.2021,5101139399,"4,425.00",Redacted Personal Information
Manchester City Council,Adult Social Care,Third party payments to Health Authority,02.07.2021,5101139269,"1,520,866.50",Central Mcr Uni Hospital t/a
Manchester City Council,Adult Social Care,Third party payments to Health Authority,02.07.2021,5101139296,"249,500.00",Central Mcr Uni Hospital t/a
Manchester City Council,Adult Social Care,Third party payments to Health Authority,02.07.2021,5101139299,"138,788.50",Central Mcr Uni Hospital t/a
Manchester City Council,Adult Social Care,Third party payments to Health Authority,02.07.2021,5101139303,"122,500.00",Central Mcr Uni Hospital t/a
Manchester City Council,Adult Social Care,Third party payments to Health Authority,02.07.2021,5101139380,"7,500.00",Central Mcr Uni Hospital t/a
Manchester City Council,Adult Social Care,Third party payments relating to Voluntary Organisations,02.07.2021,5101139462,"662,712.87",Change Grow Live
Manchester City Council,Adult Social Care,Third party payments relating to Voluntary Organisations,02.07.2021,5101139470,"41,637.75",Change Grow Live Services Ltd
Manchester City Council,Adult Social Care,Third party payments relating to Voluntary Organisations,02.07.2021,5101139517,"14,858.36",Breakthrough Uk Ltd
Manchester City Council,Adult Social Care,Third party payments relating to Voluntary Organisations,02.07.2021,5101139519,"14,485.42",Breakthrough Uk Ltd
Manchester City Council,Adult Social Care,Third party payments relating to Voluntary Organisations,02.07.2021,5101139522,"13,250.00",The Depaul Trust
Manchester City Council,Adult Social Care,Third party payments relating to Voluntary Organisations,02.07.2021,5101139348,"10,010.00",Reach out to the Community
Manchester City Council,Adult Social Care,Third party payments relating to Voluntary Organisations,02.07.2021,5101139532,"7,250.00",The Depaul Trust
Manchester City Council,Adult Social Care,Third party payments relating to Voluntary Organisations,02.07.2021,5101139525,"5,312.50",Pure Innovations Ltd
Manchester City Council,Adult Social Care,Third party payments relating to Voluntary Organisations,02.07.2021,5101139519,"3,888.94",Breakthrough Uk Ltd
Manchester City Council,Adult Social Care,Third party payments relating to Voluntary Organisations,02.07.2021,5101139517,"3,516.02",Breakthrough Uk Ltd
Manchester City Council,Adult Social Care,Third party payments relating to Voluntary Organisations,02.07.2021,5101139522,"3,416.74",The Depaul Trust
Manchester City Council,Adult Social Care,Third party payments relating to Voluntary Organisations,02.07.2021,5101139349,"1,629.00",Alzheimers Society (Mcr Branch)
Manchester City Council,Adult Social Care,Third party payments relating to Voluntary Organisations,02.07.2021,5101139524,"1,583.33",The Depaul Trust
Manchester City Council,Adult Social Care,Payments for services,02.07.2021,5101139523,"45,130.29",Creative Support Ltd
Manchester City Council,Adult Social Care,Payments for services,02.07.2021,5101139347,"1,728.00",Our Lady's & St Alphonsus
Manchester City Council,Adult Social Care,Supporting People Payments,02.07.2021,5101139376,"10,250.00",Mosscare St Vincent's Housing
Manchester City Council,Adult Social Care,Supporting People Payments,02.07.2021,5101139374,817.84,Mosscare St Vincent's Housing
Manchester City Council,Adult Social Care,Supporting People Payments,02.07.2021,5101139375,817.84,Mosscare St Vincent's Housing
Manchester City Council,Adult Social Care,Personal needs of client,02.07.2021,5101139490,"6,355.00",Carebase
Manchester City Council,Adult Social Care,Personal needs of client,02.07.2021,5101139368,"2,369.00",James Leckey Design Ltd
Manchester City Council,Corporate Services,Training and Development,02.07.2021,5101139357,"3,823.00",Meritec Limited
Manchester City Council,Corporate Services,Travel Season Ticket Loan Scheme,02.07.2021,5101139456,570.00,Stagecoach Manchester
Manchester City Council,Corporate Services,Travel Season Ticket Loan Scheme,02.07.2021,5101139516,570.00,Stagecoach Manchester
Manchester City Council,Corporate Services,Travel Season Ticket Loan Scheme,02.07.2021,5101139518,570.00,Stagecoach Manchester
Manchester City Council,Corporate Services,Grant Payments,02.07.2021,5101139309,"-10,010.00",digitalenergy Ltd
Manchester City Council,Corporate Services,Welfare Provision Service Awards,02.07.2021,5101139386,671.76,Furniture Resource Centre Ltd
Manchester City Council,Corporate Services,Works and associated costs for Land and Buildings,02.07.2021,5101139504,"9,986.14",Conlon Construction Ltd
Manchester City Council,Corporate Services,Works and associated costs for Land and Buildings,02.07.2021,5101139491,"7,122.37",R Development Ltd
Manchester City Council,Housing General Fund,Works and associated costs for Land and Buildings,02.07.2021,5101139370,525.00,Jacobs UK Ltd
Manchester City Council,Housing Revenue Account,Professional fees,02.07.2021,5101139370,"1,750.00",Jacobs UK Ltd
Manchester City Council,Housing Revenue Account,Professional fees,02.07.2021,5101139370,500.00,Jacobs UK Ltd
Manchester City Council,Housing Revenue Account,Council Dwelling Adaptations,02.07.2021,5101139379,"239,982.60",Nibe Energy Systems Ltd
Manchester City Council,Chief Executives,Agency staff provision,02.07.2021,5101139372,"1,944.00",Ashberry Recruitment Ltd
Manchester City Council,Chief Executives,Agency staff provision,02.07.2021,5101139537,840.00,Isherwood Legal Limited
Manchester City Council,Chief Executives,Agency staff provision,02.07.2021,5101139535,600.00,Isherwood Legal Limited
Manchester City Council,Chief Executives,Payments to Sub-Contractors,02.07.2021,1907280479,"4,795.00",PAYPAL (UK) P CARD ONLY
Manchester City Council,Chief Executives,Paper & Envelopes,02.07.2021,5101139329,558.78,Premier Paper Group Ltd
Manchester City Council,Chief Executives,CRB Fees,02.07.2021,5101139407,"24,560.00",Disclosure & Barring Service
Manchester City Council,Chief Executives,CRB Fees,02.07.2021,5101139409,"24,560.00",Disclosure & Barring Service
Manchester City Council,Chief Executives,CRB Fees,02.07.2021,5101139408,"-24,560.00",Disclosure & Barring Service
Manchester City Council,Chief Executives,Postage,02.07.2021,5101139285,"1,505.45",Pitney Bowes Ltd - Postage by Phone
Manchester City Council,Chief Executives,Advertising,02.07.2021,5101139488,"12,000.00",CAN Digital Solutions Limited
Manchester City Council,Chief Executives,Advertising,02.07.2021,1907280576,700.00,Facebook (CARD ONLY)
Manchester City Council,Chief Executives,Advertising,02.07.2021,1907280703,700.00,Facebook (CARD ONLY)
Manchester City Council,Chief Executives,Works and associated costs for Land and Buildings,02.07.2021,5101139311,"8,205.00",NE1 Procurement Services Limited
Manchester City Council,Chief Executives,Works and associated costs for Land and Buildings,02.07.2021,5101139366,"5,063.96",NE1 Procurement Services Limited
Manchester City Council,Chief Executives,Works and associated costs for Land and Buildings,02.07.2021,5101139361,650.00,Strata Consulting Ltd
Manchester City Council,Chief Executives,Compensation Payments,02.07.2021,1907280264,"3,375.00",Redacted Personal Information
Manchester City Council,Regeneration Finance,External repairs and maintenance for buildings,02.07.2021,5101139433,924.00,Cheshire Scaffolds Ltd
Manchester City Council,Regeneration Finance,External repairs and maintenance for buildings,02.07.2021,5101139434,924.00,Cheshire Scaffolds Ltd
Manchester City Council,Regeneration Finance,Professional fees,02.07.2021,5101139383,"20,294.00",Local Data Company
Manchester City Council,Regeneration Finance,Professional fees,02.07.2021,5101139370,"8,500.00",Jacobs UK Ltd
Manchester City Council,Regeneration Finance,Professional fees,02.07.2021,5101139370,"8,500.00",Jacobs UK Ltd
Manchester City Council,Regeneration Finance,Professional fees,02.07.2021,5101139340,"7,500.00",Planit
Manchester City Council,Regeneration Finance,Professional fees,02.07.2021,5101139370,"5,158.25",Jacobs UK Ltd
Manchester City Council,Regeneration Finance,Professional fees,02.07.2021,5101139370,"4,202.00",Jacobs UK Ltd
Manchester City Council,Regeneration Finance,Professional fees,02.07.2021,5101139370,"3,709.25",Jacobs UK Ltd
Manchester City Council,Regeneration Finance,Professional fees,02.07.2021,5101139370,"3,166.54",Jacobs UK Ltd
Manchester City Council,Regeneration Finance,Professional fees,02.07.2021,5101139342,"2,500.00",Planit
Manchester City Council,Regeneration Finance,Professional fees,02.07.2021,5101139370,"2,250.00",Jacobs UK Ltd
Manchester City Council,Regeneration Finance,Professional fees,02.07.2021,5101139370,"2,000.00",Jacobs UK Ltd
Manchester City Council,Regeneration Finance,Professional fees,02.07.2021,5101139370,689.00,Jacobs UK Ltd
Manchester City Council,Regeneration Finance,Professional fees,02.07.2021,5101139370,570.00,Jacobs UK Ltd
Manchester City Council,Highways Services,Payments to Sub-Contractors,02.07.2021,5101139528,"26,611.06",Utilities Design & Planning Ltd
Manchester City Council,Highways Services,Payments to Sub-Contractors,02.07.2021,5101139534,"21,741.62",Utilities Design & Planning Ltd
Manchester City Council,Highways Services,Payments to Sub-Contractors,02.07.2021,5101139526,"6,046.45",Utilities Design & Planning Ltd
Manchester City Council,Highways Services,Payments to Sub-Contractors,02.07.2021,5101139393,"4,206.21",Rosgal Ltd
Manchester City Council,Highways Services,Payments to Sub-Contractors,02.07.2021,5101139391,"4,011.71",Rosgal Ltd
Manchester City Council,Highways Services,Professional fees,02.07.2021,5101139369,950.00,Ramora Ltd
Manchester City Council,Highways Services,Private Finance and Public Private partnership initiatives,02.07.2021,5101139364,"643,901.02",Amey Highways Lighting (Manchester)
Manchester City Council,Highways Services,Private Finance and Public Private partnership initiatives,02.07.2021,5101139365,"-643,901.02",Amey Highways Lighting (Manchester)
Manchester City Council,Manchester Leisure,Agency staff provision,05.07.2021,5101139567,"11,741.00",Proventure Consulting
Manchester City Council,Manchester Leisure,Refuse Collection,05.07.2021,5101139614,"25,000.00",Biffa Municipal Limited
Manchester City Council,Manchester Leisure,Refuse Collection,05.07.2021,5101139613,"4,867.97",Biffa Municipal Limited
Manchester City Council,Manchester Leisure,Payments to Sub-Contractors,05.07.2021,5101139587,"10,750.00",Arboricultural Services Treework
Manchester City Council,Manchester Leisure,Reuse credits,05.07.2021,5101139615,"11,925.00",Biffa Municipal Limited
Manchester City Council,Manchester Leisure,Reuse credits,05.07.2021,5101139616,"6,825.00",Biffa Municipal Limited
Manchester City Council,Manchester Leisure,Professional fees,05.07.2021,5101139552,"37,500.05",Biffa Municipal Limited
Manchester City Council,Manchester Leisure,Professional fees,05.07.2021,5101139552,"7,999.96",Biffa Municipal Limited
Manchester City Council,Manchester Leisure,Grant and subscriptions awarded,05.07.2021,5101139716,"3,300.00",Manchester Alliance For
Manchester City Council,Manchester Leisure,Charges for Services,05.07.2021,1907274040,"18,551.54",JMW Solicitors
Manchester City Council,Manchester Leisure,Compensation Payments,05.07.2021,1907275205,"2,626.00",CGDM Ltd T/A
Manchester City Council,Hospitality + Trading Services,Legal Fees,05.07.2021,5101139559,"1,500.00",Redacted Personal Information
Manchester City Council,Environment and Operations,Professional fees,05.07.2021,5101139543,"1,320.00",C2Compliance Limited
Manchester City Council,Environment and Operations,Construction Works,05.07.2021,5101139389,"1,388.24",Salford City Council
Manchester City Council,Environment and Operations,Construction Works,05.07.2021,5101139541,"1,388.24",Salford City Council
Manchester City Council,Environment and Operations,Construction Works,05.07.2021,5101139387,976.51,Salford City Council
Manchester City Council,Environment and Operations,Construction Works,05.07.2021,5101139544,976.51,Salford City Council
Manchester City Council,Environment and Operations,Construction Works,05.07.2021,5101139542,-976.51,Salford City Council
Manchester City Council,Environment and Operations,Construction Works,05.07.2021,5101139539,"-1,388.24",Salford City Council
Manchester City Council,Environment and Operations,Construction Works,05.07.2021,5101139452,"-2,400.00",GMCA
Manchester City Council,Childrens & Education Services,Internal Repairs and Maintenance for buildings,05.07.2021,5101139654,"3,248.67",NU3PS
Manchester City Council,Childrens & Education Services,Internal Repairs and Maintenance for buildings,05.07.2021,5101139653,712.97,NU3PS
Manchester City Council,Childrens & Education Services,Transport Coach Hire,05.07.2021,5101139553,"9,570.00",PDR Travel Ltd
Manchester City Council,Childrens & Education Services,Transport Coach Hire,05.07.2021,5101139684,"1,354.70",Cresta Car Hire
Manchester City Council,Childrens & Education Services,Transport Coach Hire,05.07.2021,5101139689,882.00,Cresta Car Hire
Manchester City Council,Childrens & Education Services,Transport Coach Hire,05.07.2021,5101139686,832.50,Cresta Car Hire
Manchester City Council,Childrens & Education Services,Transport Coach Hire,05.07.2021,5101139688,816.00,Cresta Car Hire
Manchester City Council,Childrens & Education Services,Transport Coach Hire,05.07.2021,5101139682,791.90,Cresta Car Hire
Manchester City Council,Childrens & Education Services,Transport Coach Hire,05.07.2021,5101139681,676.50,Cresta Car Hire
Manchester City Council,Childrens & Education Services,Transport Coach Hire,05.07.2021,5101139617,"-9,437.00",School Transport Solutions
Manchester City Council,Childrens & Education Services,Professional fees,05.07.2021,5101139571,"5,400.00",Redacted Personal Information
Manchester City Council,Childrens & Education Services,Professional fees,05.07.2021,5101139584,"2,420.00",Afruca
Manchester City Council,Childrens & Education Services,CORONA VIRUS D-19,05.07.2021,5101139568,"-1,050.00",Middleton Cars Ltd
Manchester City Council,Childrens & Education Services,Radio Charges,05.07.2021,5101139593,600.00,TextLocal Limited
Manchester City Council,Childrens & Education Services,Third party payments to other Local Authorities,05.07.2021,5101139556,"12,043.53",New Bridge School
Manchester City Council,Childrens & Education Services,Third party payments to other Local Authorities,05.07.2021,5101139555,"11,142.29",New Bridge School
Manchester City Council,Childrens & Education Services,Third party payments to other Local Authorities,05.07.2021,5101139548,"2,313.74",New Bridge School
Manchester City Council,Childrens & Education Services,Third party payments to other Local Authorities,05.07.2021,5101139551,"2,313.74",New Bridge School
Manchester City Council,Childrens & Education Services,Third party payments to other Local Authorities,05.07.2021,5101139554,"2,019.42",New Bridge School
Manchester City Council,Childrens & Education Services,Payments for services,05.07.2021,5101139562,"5,911.58",Nugent House School
Manchester City Council,Childrens & Education Services,Payments for services,05.07.2021,5101139563,"4,973.68",Nugent House School
Manchester City Council,Childrens & Education Services,Payments for services,05.07.2021,5101139564,"2,390.40",Nugent House School
Manchester City Council,Childrens & Education Services,Supporting People Payments,05.07.2021,5101139606,"2,056.88",Child Action Northwest
Manchester City Council,Adult Social Care,Agency staff provision,05.07.2021,5101139647,"2,183.16",Reed Employment Plc
Manchester City Council,Adult Social Care,Training and Development,05.07.2021,5101139703,750.00,Disabled Living
Manchester City Council,Adult Social Care,Training and Development,05.07.2021,5101139710,750.00,Disabled Living
Manchester City Council,Adult Social Care,Rents,05.07.2021,5101139701,"4,359.01",Housing Social Ltd
Manchester City Council,Adult Social Care,Rents,05.07.2021,5101139671,"4,134.88",Houses4Homes 4U Ltd
Manchester City Council,Adult Social Care,Rents,05.07.2021,1907282451,700.00,Redacted Personal Information
Manchester City Council,Adult Social Care,Furniture,05.07.2021,5101139629,975.47,Furniture Resource Centre Ltd
Manchester City Council,Adult Social Care,Funeral and coroner related services,05.07.2021,5101139717,"1,463.00",Greater Manchester Funeral Service
Manchester City Council,Adult Social Care,Funeral and coroner related services,05.07.2021,5101139604,794.00,Greater Manchester Funeral Service
Manchester City Council,Adult Social Care,Funeral and coroner related services,05.07.2021,5101139607,"2,357.00",Greater Manchester Funeral Service
Manchester City Council,Adult Social Care,Bed and Breakfast Accommodation Expenditure,05.07.2021,5101139687,"14,860.00",Redacted Personal Information
Manchester City Council,Adult Social Care,Payments for services,05.07.2021,5101139662,"13,894.32",Experian Limited
Manchester City Council,Adult Social Care,Payments for services,05.07.2021,5101139721,"1,540.00",Kaleidoscope Project
Manchester City Council,Adult Social Care,Supporting People Payments,05.07.2021,5101139606,"2,549.69",Child Action Northwest
Manchester City Council,Adult Social Care,Personal needs of client,05.07.2021,5101139538,"-7,364.67",R82 Uk Ltd
Manchester City Council,Corporate Services,Professional fees,05.07.2021,5101139512,"4,771.20",Faithful & Gould Ltd
Manchester City Council,Corporate Services,Professional fees,05.07.2021,1907260003,750.00,Appleby & Wood
Manchester City Council,Corporate Services,Tracing fees,05.07.2021,5101139546,"2,097.80",Experian Limited
Manchester City Council,Corporate Services,I T Provision,05.07.2021,5101139739,"2,250.00",Auditware Systems Limited
Manchester City Council,Corporate Services,Welfare Provision Service Awards,05.07.2021,5101139635,743.97,Furniture Resource Centre Ltd
Manchester City Council,Corporate Services,Welfare Provision Service Awards,05.07.2021,5101139735,534.46,Furniture Resource Centre Ltd
Manchester City Council,Corporate Services,LRSG Grant Payment,05.07.2021,1907282447,"16,500.14",The Oak (Didsbury) Ltd
Manchester City Council,Corporate Services,LRSG Grant Payment,05.07.2021,1907282447,"8,400.00",The Oak (Didsbury) Ltd
Manchester City Council,Corporate Services,LRSG Grant Payment,05.07.2021,1907282448,"7,246.29",Around the Box
Manchester City Council,Corporate Services,LRSG Grant Payment,05.07.2021,1907282449,"6,143.00",Hope Mill Recording Studios
Manchester City Council,Corporate Services,Works and associated costs for Land and Buildings,05.07.2021,5101139725,"1,150.69",Amey Highways Lighting (Manchester)
Manchester City Council,Housing Revenue Account,Council Dwelling Adaptations,05.07.2021,5101139714,"5,887.98",Rexel UK Ltd
Manchester City Council,Chief Executives,Training and Development,05.07.2021,5101139598,990.00,The Knowledge Academy Limited
Manchester City Council,Chief Executives,Professional fees,05.07.2021,1907257073,"4,875.00",Redacted Personal Information
Manchester City Council,Chief Executives,Professional fees,05.07.2021,1907257071,625.00,Redacted Personal Information
Manchester City Council,Chief Executives,Works and associated costs for Land and Buildings,05.07.2021,5101139623,"14,976.00",Pierre Angulaire Limited
Manchester City Council,Chief Executives,Works and associated costs for Land and Buildings,05.07.2021,5101139618,"8,502.50",Pierre Angulaire Limited
Manchester City Council,Chief Executives,Vehicle Plant Furniture and Equipment,05.07.2021,5101139676,"4,770.70",Insight Direct (Uk) Ltd
Manchester City Council,Chief Executives,Vehicle Plant Furniture and Equipment,05.07.2021,5101139549,"3,950.20",Insight Direct (Uk) Ltd
Manchester City Council,Chief Executives,Compensation Payments,05.07.2021,5101139547,650.00,No 5 Chambers Ltd
Manchester City Council,Regeneration Finance,Internal Repairs and Maintenance for buildings,05.07.2021,5101139718,"30,841.67",ENGIE Services Ltd
Manchester City Council,Regeneration Finance,Hire of Premises,05.07.2021,5101139695,"3,780.00",Grove Village Residents association
Manchester City Council,Regeneration Finance,Grounds Maintenance Costs,05.07.2021,5101139752,832.61,Mitie Landscapes LTD
Manchester City Council,Regeneration Finance,Professional fees,05.07.2021,5101139588,"1,696.00",Jacobs UK Ltd
Manchester City Council,Regeneration Finance,Professional fees,05.07.2021,5101139586,848.00,Jacobs UK Ltd
Manchester City Council,Regeneration Finance,Licences Purchase,05.07.2021,5101139700,954.00,TV Licensing (Company Group
Manchester City Council,Regeneration Finance,Third party payments relating to Voluntary Organisations,05.07.2021,5101139729,"3,644.00",Impact For All
Manchester City Council,Highways Services,Building Materials for direct delivery,05.07.2021,5101139240,681.62,TARMAC
Manchester City Council,Highways Services,Payments to Sub-Contractors,05.07.2021,5101139576,"34,595.34",Utilities Design & Planning Ltd
Manchester City Council,Highways Services,Payments to Sub-Contractors,05.07.2021,5101139573,"32,650.12",Utilities Design & Planning Ltd
Manchester City Council,Highways Services,Tipping Charges - Tonnage,05.07.2021,5101139712,600.60,J.Hopkins (Contractors) Ltd.
Manchester City Council,Insurance Fund,Compensation Payments,05.07.2021,1907275100,"23,000.00",Pabla & Pabla Solicitors
Manchester City Council,Manchester Leisure,External repairs and maintenance for buildings,06.07.2021,5101139829,"1,620.00",Groundwork Landscapes Ltd
Manchester City Council,Manchester Leisure,Vehicle Fuel Costs,06.07.2021,5101139782,"1,131.86",Standard Fuels Oils
Manchester City Council,Manchester Leisure,Equipment,06.07.2021,5101139830,"13,615.20",SSI - Schaefer Limited
Manchester City Council,Manchester Leisure,Equipment,06.07.2021,5101139660,"1,148.00",Earth Anchors Ltd
Manchester City Council,Manchester Leisure,Building Materials for direct delivery,06.07.2021,5101139507,980.00,Arboricultural Services Treework
Manchester City Council,Manchester Leisure,Payments to Sub-Contractors,06.07.2021,5101139759,"1,059.00",Earth Anchors Ltd
Manchester City Council,Manchester Leisure,Professional fees,06.07.2021,5101139859,"2,000.00",Redacted Personal Information
Manchester City Council,Manchester Leisure,Professional fees,06.07.2021,5101139857,"1,000.00",Redacted Personal Information
Manchester City Council,Manchester Leisure,Goods purchased for resale in Council outlets,06.07.2021,5101139845,"10,000.00",Kit Grover Limited
Manchester City Council,Manchester Leisure,Goods purchased for resale in Council outlets,06.07.2021,5101139931,794.14,The Book Service Ltd
Manchester City Council,Manchester Leisure,Special Events,06.07.2021,5101139927,600.00,Redacted Personal Information
Manchester City Council,Manchester Leisure,Special Events,06.07.2021,5101139916,550.00,Redacted Personal Information
Manchester City Council,Libraries and Theatres,Training and Development,06.07.2021,5101139925,"1,350.00",Pleydell Smithyman Limited
Manchester City Council,Hospitality + Trading Services,Vehicle Fuel Costs,06.07.2021,5101139861,"20,340.88",Standard Fuels Oils
Manchester City Council,Hospitality + Trading Services,Vehicle Fuel Costs,06.07.2021,5101139795,"18,214.29",Standard Fuels Oils
Manchester City Council,Hospitality + Trading Services,Vehicle Fuel Costs,06.07.2021,5101139798,"18,166.14",Standard Fuels Oils
Manchester City Council,Hospitality + Trading Services,Vehicle Repairs,06.07.2021,5101139941,"1,849.72",Advanced Vehicle Technicians Ltd
Manchester City Council,Environment and Operations,Construction Works,06.07.2021,5101139840,"255,444.80",Eric Wright Civil Engineering Limit
Manchester City Council,Environment and Operations,Construction Works,06.07.2021,5101139418,"1,500.00",N D Oliver & Co Ltd
Manchester City Council,Childrens & Education Services,Training and Development,06.07.2021,5101139702,"3,000.00",Disabled Living
Manchester City Council,Childrens & Education Services,Transport Coach Hire,06.07.2021,5101139930,"8,490.75",MCR Blackcab Ltd
Manchester City Council,Childrens & Education Services,Transport Coach Hire,06.07.2021,5101139929,"4,438.81",MCR Blackcab Ltd
Manchester City Council,Childrens & Education Services,Transport Coach Hire,06.07.2021,5101139932,"4,329.53",MCR Blackcab Ltd
Manchester City Council,Childrens & Education Services,Transport Coach Hire,06.07.2021,5101139933,"3,997.28",MCR Blackcab Ltd
Manchester City Council,Childrens & Education Services,Transport Coach Hire,06.07.2021,5101139926,"2,225.86",MCR Blackcab Ltd
Manchester City Council,Childrens & Education Services,Third party payments to other Local Authorities,06.07.2021,5101139831,"3,496.00",Pennine Care In Patient Services
Manchester City Council,Childrens & Education Services,Third party payments relating to Voluntary Organisations,06.07.2021,5101139807,"12,712.50",The Children'S Society Services Ltd
Manchester City Council,Childrens & Education Services,Payments for services,06.07.2021,5101139801,"54,380.83",Edstart Specialist Education Ltd
Manchester City Council,Childrens & Education Services,Payments for services,06.07.2021,5101139775,"12,915.00",MVLA
Manchester City Council,Childrens & Education Services,Payments for services,06.07.2021,5101139793,"9,760.00",SMS Coaching Ltd
Manchester City Council,Childrens & Education Services,Payments for services,06.07.2021,5101139772,"9,450.00",National Offender Mgt Services
Manchester City Council,Childrens & Education Services,Payments for services,06.07.2021,5101139773,"9,450.00",National Offender Mgt Services
Manchester City Council,Childrens & Education Services,Payments for services,06.07.2021,5101139778,"9,450.00",National Offender Mgt Services
Manchester City Council,Childrens & Education Services,Payments for services,06.07.2021,5101139797,"9,309.00",National Offender Mgt Services
Manchester City Council,Childrens & Education Services,Payments for services,06.07.2021,5101139846,"9,063.33",Belmont School Ltd
Manchester City Council,Childrens & Education Services,Payments for services,06.07.2021,5101139837,"8,977.55",Belmont School Ltd
Manchester City Council,Childrens & Education Services,Payments for services,06.07.2021,5101139838,"8,977.55",Belmont School Ltd
Manchester City Council,Childrens & Education Services,Payments for services,06.07.2021,5101139848,"8,041.64",Belmont School Ltd
Manchester City Council,Childrens & Education Services,Payments for services,06.07.2021,5101139850,"8,041.64",Belmont School Ltd
Manchester City Council,Childrens & Education Services,Payments for services,06.07.2021,5101139841,"6,806.87",Belmont School Ltd
Manchester City Council,Childrens & Education Services,Payments for services,06.07.2021,5101139842,"6,806.87",Belmont School Ltd
Manchester City Council,Childrens & Education Services,Payments for services,06.07.2021,5101139800,"5,136.00",National Offender Mgt Services
Manchester City Council,Childrens & Education Services,Payments for services,06.07.2021,5101139799,"4,494.00",National Offender Mgt Services
Manchester City Council,Childrens & Education Services,Payments for services,06.07.2021,5101139804,"4,494.00",National Offender Mgt Services
Manchester City Council,Childrens & Education Services,Payments for services,06.07.2021,5101139784,"3,545.45",Broadstones Independent Special Sch
Manchester City Council,Childrens & Education Services,Payments for services,06.07.2021,5101139785,"3,090.90",Broadstones Independent Special Sch
Manchester City Council,Childrens & Education Services,Payments for services,06.07.2021,5101139847,"2,970.00",Belmont School Ltd
Manchester City Council,Childrens & Education Services,Payments for services,06.07.2021,5101139802,"2,718.00",National Offender Mgt Services
Manchester City Council,Childrens & Education Services,Payments for services,06.07.2021,5101139780,"1,575.00",National Offender Mgt Services
Manchester City Council,Childrens & Education Services,Payments for services,06.07.2021,5101139792,803.05,SEND Recruitment Ltd
Manchester City Council,Childrens & Education Services,Payments for services,06.07.2021,5101139794,"-4,173.00",National Offender Mgt Services
Manchester City Council,Childrens & Education Services,Supporting People Payments,06.07.2021,5101139864,"1,508.37",Child Action Northwest
Manchester City Council,Childrens & Education Services,Home Care ,06.07.2021,5101139874,"1,118.25",Staff Resources Ltd
Manchester City Council,Childrens & Education Services,Home Care ,06.07.2021,5101139875,"1,118.25",Staff Resources Ltd
Manchester City Council,Childrens & Education Services,Home Care ,06.07.2021,5101139876,"1,118.25",Staff Resources Ltd
Manchester City Council,Childrens & Education Services,Home Care ,06.07.2021,5101139877,"1,118.25",Staff Resources Ltd
Manchester City Council,Childrens & Education Services,Home Care ,06.07.2021,5101139879,"1,118.25",Staff Resources Ltd
Manchester City Council,Childrens & Education Services,Home Care ,06.07.2021,5101139881,"1,118.25",Staff Resources Ltd
Manchester City Council,Adult Social Care,External repairs and maintenance for buildings,06.07.2021,5101139938,"4,429.24",UPS Building & Maintenance Ltd
Manchester City Council,Adult Social Care,External repairs and maintenance for buildings,06.07.2021,5101139937,"-4,429.24",UPS Building & Maintenance Ltd
Manchester City Council,Adult Social Care,Rents,06.07.2021,5101139936,"8,239.03",Eeven Homes Ltd.
Manchester City Council,Adult Social Care,Rents,06.07.2021,5101139858,"7,939.89",Wythenshawe Community Housing Group
Manchester City Council,Adult Social Care,Rents,06.07.2021,5101139872,"4,359.01",Housing Social Ltd
Manchester City Council,Adult Social Care,Rents,06.07.2021,5101139865,"4,359.00",Housing Social Ltd
Manchester City Council,Adult Social Care,Rents,06.07.2021,1907283357,"3,000.00",Redacted Personal Information
Manchester City Council,Adult Social Care,Rents,06.07.2021,5101139919,"2,070.66",Jigsaw Homes North
Manchester City Council,Adult Social Care,Rents,06.07.2021,5101139920,"2,052.41",Jigsaw Homes North
Manchester City Council,Adult Social Care,Rents,06.07.2021,5101139867,"-4,359.00",Housing Social Ltd
Manchester City Council,Adult Social Care,Equipment,06.07.2021,5101139900,"8,078.40",Invacare Limited
Manchester City Council,Adult Social Care,Equipment,06.07.2021,5101139921,"1,090.00",Tunstall Healthcare (UK) Ltd
Manchester City Council,Adult Social Care,Grant and subscriptions awarded,06.07.2021,5101139822,"8,760.00",Coffee4Craig Ltd
Manchester City Council,Adult Social Care,Licences Purchase,06.07.2021,5101139809,918.80,PPL PRS Limited
Manchester City Council,Adult Social Care,Third party payments to other Local Authorities,06.07.2021,5101139844,"446,310.39",Refugee Action
Manchester City Council,Adult Social Care,Third party payments to other Local Authorities,06.07.2021,5101139825,"32,059.05",Tameside Metropolitan Bouough
Manchester City Council,Adult Social Care,Third party payments to other Local Authorities,06.07.2021,5101139827,"26,116.16",Tameside Metropolitan Bouough
Manchester City Council,Adult Social Care,Third party payments to Health Authority,06.07.2021,5101139884,"690,000.00",NHS Central Manchester CCG
Manchester City Council,Adult Social Care,Third party payments relating to Voluntary Organisations,06.07.2021,5101139862,"100,000.00",The Depaul Trust
Manchester City Council,Adult Social Care,Third party payments relating to Voluntary Organisations,06.07.2021,5101139918,"22,000.00",Supporting People In Need
Manchester City Council,Adult Social Care,Payments for services,06.07.2021,5101139853,"23,088.00",Greater Manchester Mental Health
Manchester City Council,Adult Social Care,Payments for services,06.07.2021,5101139922,"12,059.58",Age Concern Manchester
Manchester City Council,Adult Social Care,Payments for services,06.07.2021,5101139922,"8,956.50",Age Concern Manchester
Manchester City Council,Adult Social Care,Payments for services,06.07.2021,5101139873,"5,250.00",ADFERIAD RECOVERY
Manchester City Council,Adult Social Care,Payments for services,06.07.2021,5101139866,"3,500.00",ADFERIAD RECOVERY
Manchester City Council,Adult Social Care,Payments for services,06.07.2021,5101139870,"3,500.00",ADFERIAD RECOVERY
Manchester City Council,Adult Social Care,Payments for services,06.07.2021,5101139871,"2,500.00",ADFERIAD RECOVERY
Manchester City Council,Adult Social Care,Payments for services,06.07.2021,5101139868,"1,505.00",ADFERIAD RECOVERY
Manchester City Council,Adult Social Care,Supporting People Payments,06.07.2021,5101139864,"2,515.36",Child Action Northwest
Manchester City Council,Adult Social Care,Supporting People Payments,06.07.2021,5101139885,758.33,Albert Kennedy Trust
Manchester City Council,Adult Social Care,Supported Accommodation,06.07.2021,5101140017,848.00,Alliance Disposables Ltd
Manchester City Council,Adult Social Care,Personal needs of client,06.07.2021,5101139923,"5,378.00",Neater Solutions Ltd
Manchester City Council,Adult Social Care,Personal needs of client,06.07.2021,5101139940,"1,900.00",Chiltern Invadex Ltd
Manchester City Council,Adult Social Care,Personal needs of client,06.07.2021,5101139939,"-1,900.00",Chiltern Invadex Ltd
Manchester City Council,Corporate Services,Contribution to PATROL,06.07.2021,5101139833,"2,999.10",PATROL
Manchester City Council,Corporate Services,Contribution to PATROL,06.07.2021,5101139852,"2,985.90",PATROL
Manchester City Council,Corporate Services,LRSG Grant Payment,06.07.2021,1907283354,"1,867.00",Redacted Personal Information
Manchester City Council,Corporate Services,Works and associated costs for Land and Buildings,06.07.2021,5101139508,"3,480.00",Arboricultural Services Treework
Manchester City Council,Corporate Services,Works and associated costs for Land and Buildings,06.07.2021,5101139680,"1,200.00",Groundwork & Leisure Services Ltd
Manchester City Council,Housing Revenue Account,Council Dwelling Adaptations,06.07.2021,5101139891,"4,749.00",Stannah Lift Services Ltd
Manchester City Council,Housing Revenue Account,Council Dwelling Adaptations,06.07.2021,5101139890,"-4,749.00",Stannah Lift Services Ltd
Manchester City Council,Chief Executives,Agency staff provision,06.07.2021,5101139955,"21,298.19",Osborne Richardson
Manchester City Council,Chief Executives,Agency staff provision,06.07.2021,5101139917,880.00,Isherwood Legal Limited
Manchester City Council,Chief Executives,Printing,06.07.2021,5101139863,"4,680.00",Integrity Print Ltd
Manchester City Council,Chief Executives,Professional fees,06.07.2021,1907282464,"3,300.00",Redacted Personal Information
Manchester City Council,Chief Executives,Professional fees,06.07.2021,1907282347,500.00,Central Chambers
Manchester City Council,Chief Executives,Grant and subscriptions awarded,06.07.2021,5101139589,"5,000.00",Justlife Foundation Limited
Manchester City Council,Chief Executives,Grant and subscriptions awarded,06.07.2021,5101139601,"4,987.50",Greater Manchester Youth
Manchester City Council,Chief Executives,Grant and subscriptions awarded,06.07.2021,5101139596,"4,962.00",Proper Job Theatre company
Manchester City Council,Chief Executives,Grant and subscriptions awarded,06.07.2021,5101139887,"3,500.00",Talbot House Support Centre
Manchester City Council,Chief Executives,Vehicle Plant Furniture and Equipment,06.07.2021,5101139609,"10,860.00",Insight Direct (Uk) Ltd
Manchester City Council,Chief Executives,Legal Fees,06.07.2021,5101139823,750.40,CMS Cameron McKenna
Manchester City Council,Chief Executives,Legal Fees,06.07.2021,5101139821,"5,902.05",CMS Cameron McKenna
Manchester City Council,Chief Executives,Compensation Payments,06.07.2021,5101139912,"6,950.00",Redacted Personal Information
Manchester City Council,Chief Executives,Compensation Payments,06.07.2021,1907282334,"2,844.50",Advanced Child Care Assessments
Manchester City Council,Regeneration Finance,Rents,06.07.2021,5101139914,930.00,NW RFCA
Manchester City Council,Regeneration Finance,Furniture,06.07.2021,5101139706,885.00,Back Care Solutions Ltd
Manchester City Council,Regeneration Finance,Legal Fees,06.07.2021,5101139910,"17,357.50",Eversheds Llp
Manchester City Council,Regeneration Finance,Compensation Payments,06.07.2021,1907275096,"8,462.50",The Land Trust
Manchester City Council,Highways Services,Payments to Sub-Contractors,06.07.2021,5101139806,"9,944.19",Utilities Design & Planning Ltd
Manchester City Council,Highways Services,Payments to Sub-Contractors,06.07.2021,5101139810,"9,455.54",Utilities Design & Planning Ltd
Manchester City Council,Highways Services,Payments to Sub-Contractors,06.07.2021,5101139811,"4,755.40",Utilities Design & Planning Ltd
Manchester City Council,Highways Services,Payments to Sub-Contractors,06.07.2021,5101139659,"3,771.46",NSL Ltd
Manchester City Council,Highways Services,Payments to Sub-Contractors,06.07.2021,5101139849,"-3,771.46",NSL Ltd
Manchester City Council,Highways Services,Grant Payments,06.07.2021,5101139497,"12,937.00",Bike Right
Manchester City Council,Highways Services,Compensation Payments,06.07.2021,1907275203,"1,950.00",Irwin Mitchell Solicitors
Manchester City Council,Highways Services,Purchase of stores for re-distribution,06.07.2021,5101139826,783.70,CID 'Consider it Done'
Manchester City Council,Highways Services,Compensation Payments,06.07.2021,1907275161,"6,524.00",Scott Rees & Co
Manchester City Council,Highways Services,Compensation Payments,06.07.2021,1907275203,"2,011.50",Irwin Mitchell Solicitors
Manchester City Council,Highways Services,Compensation Payments,06.07.2021,1907275204,725.00,Department For Work & Pensions
Manchester City Council,Manchester Leisure,External repairs and maintenance for buildings,07.07.2021,5101140211,"1,638.54",Chambers & Perkins
Manchester City Council,Manchester Leisure,Equipment,07.07.2021,5101140194,720.00,Clean-Up UK Limited
Manchester City Council,Manchester Leisure,Equipment,07.07.2021,5101140191,500.00,Clean-Up UK Limited
Manchester City Council,Manchester Leisure,Hire of Machinery,07.07.2021,5101139998,"7,295.00",R & M Developments Ltd
Manchester City Council,Manchester Leisure,Goods purchased for resale in Council outlets,07.07.2021,5101140050,574.65,Hachette UK Distribution
Manchester City Council,Manchester Leisure,Management Fee Income,07.07.2021,1907283351,604.00,Redacted Personal Information
Manchester City Council,Hospitality + Trading Services,Vehicle Fuel Costs,07.07.2021,5101139975,"13,384.14",Standard Fuels Oils
Manchester City Council,Hospitality + Trading Services,Vehicle Fuel Costs,07.07.2021,5101139976,571.20,Standard Fuels Oils
Manchester City Council,Hospitality + Trading Services,I T Provision,07.07.2021,5101139401,"4,303.02",The Networking People (TNP) Ltd
Manchester City Council,Hospitality + Trading Services,Funeral and coroner related services,07.07.2021,5101140052,"7,659.14",George Hill Oldham Limited
Manchester City Council,Hospitality + Trading Services,Funeral and coroner related services,07.07.2021,5101140047,"7,458.30",George Hill Oldham Limited
Manchester City Council,Environment and Operations,Construction Works,07.07.2021,5101139945,"34,843.61",Colas Limited
Manchester City Council,Childrens & Education Services,Transport Coach Hire,07.07.2021,5101140074,"22,470.00",JCT Travel Ltd
Manchester City Council,Childrens & Education Services,Transport Coach Hire,07.07.2021,5101140032,"10,752.50",New City Cars Ltd
Manchester City Council,Childrens & Education Services,Professional fees,07.07.2021,1907285159,"2,560.00",18 St John Street Chambers
Manchester City Council,Childrens & Education Services,Professional fees,07.07.2021,1907275336,594.86,Pickering Psychology Services Ltd
Manchester City Council,Childrens & Education Services,Professional fees,07.07.2021,1907285169,503.98,Forensic Testing Service Ltd
Manchester City Council,Childrens & Education Services,Professional fees,07.07.2021,1907282340,500.00,Redacted Personal Information
Manchester City Council,Childrens & Education Services,Professional fees,07.07.2021,1700121504,-750.00,Redacted Personal Information
Manchester City Council,Childrens & Education Services,CORONA VIRUS D-19,07.07.2021,5101139999,"3,048.00",Home to School Travel Ltd
Manchester City Council,Childrens & Education Services,CORONA VIRUS D-19,07.07.2021,5101139997,"-3,048.00",Home to School Travel Ltd
Manchester City Council,Childrens & Education Services,Third party payments to other Local Authorities,07.07.2021,5101139981,"1,890.00",Bolton Mbc
Manchester City Council,Childrens & Education Services,Third party payments to other Local Authorities,07.07.2021,5101139983,"1,476.00",Bolton Mbc
Manchester City Council,Childrens & Education Services,Legal Fees,07.07.2021,5101139967,"4,568.75",Weightmans LLP Solicitors
Manchester City Council,Adult Social Care,Rents,07.07.2021,5101140037,"8,085.08",Eeven Homes Ltd.
Manchester City Council,Adult Social Care,Equipment,07.07.2021,5101140039,"2,776.00",Drive Devilbiss Healthcare Ltd
Manchester City Council,Adult Social Care,Equipment,07.07.2021,5101140048,"2,705.60",Drive Devilbiss Healthcare Ltd
Manchester City Council,Adult Social Care,Equipment,07.07.2021,5101140044,"1,086.47",Drive Devilbiss Healthcare Ltd
Manchester City Council,Adult Social Care,Equipment,07.07.2021,5101140053,880.50,Drive Devilbiss Healthcare Ltd
Manchester City Council,Adult Social Care,Equipment,07.07.2021,5101140075,657.00,NRS Healthcare
Manchester City Council,Adult Social Care,Equipment,07.07.2021,5101139991,580.00,NRS Healthcare
Manchester City Council,Adult Social Care,Personal needs of client,07.07.2021,5101139982,604.00,Tunstall Healthcare (UK) Ltd
Manchester City Council,Corporate Services,Training and Development,07.07.2021,5101139961,"3,600.00",Trafford College
Manchester City Council,Corporate Services,Electricity,07.07.2021,1907282452,"4,854.02",PAYPOINT NETWORK LTD
Manchester City Council,Corporate Services,Vehicle Costs,07.07.2021,1907285171,"9,649.98",Cyclescheme Ltd
Manchester City Council,Corporate Services,Vehicle Costs,07.07.2021,1907285170,"4,891.00",Cyclescheme Ltd
Manchester City Council,Corporate Services,Vehicle Costs,07.07.2021,1700121499,"-1,200.00",Cyclescheme Ltd
Manchester City Council,Corporate Services,Professional fees,07.07.2021,5101140038,"-2,812.50",Gleeds Management Services Limited
Manchester City Council,Corporate Services,I T Provision,07.07.2021,5101140073,"14,897.00",WNS Global Services (UK) Ltd
Manchester City Council,Corporate Services,Works and associated costs for Land and Buildings,07.07.2021,5101140214,"2,535.00",Clean-Up UK Limited
Manchester City Council,Housing Revenue Account,Rents,07.07.2021,5101140063,"2,792.55",M J Mapp
Manchester City Council,Chief Executives,Printing,07.07.2021,5101139969,"9,954.37",Xerox (Uk) Ltd
Manchester City Council,Chief Executives,Professional fees,07.07.2021,5101140001,"13,500.00",Sound Diplomacy
Manchester City Council,Chief Executives,I T Provision,07.07.2021,5101140216,"6,720.00",Ricoh UK Ltd.
Manchester City Council,Chief Executives,Advertising,07.07.2021,5101140004,600.00,Trafford Media & Communication Ltd
Manchester City Council,Chief Executives,Compensation Payments,07.07.2021,5101140064,"1,415.88",Weightmans LLP Solicitors
Manchester City Council,Chief Executives,Compensation Payments,07.07.2021,5101140041,"1,175.00",Redacted Personal Information
Manchester City Council,Regeneration Finance,Gas,07.07.2021,5101139990,997.11,Barlow Hall Primary School
Manchester City Council,Regeneration Finance,Window Cleaning,07.07.2021,5101139973,"1,427.00",Ferguson Cleaning Services LLP
Manchester City Council,Regeneration Finance,Security,07.07.2021,5101140062,"3,625.00",Ridge Park Security Ltd
Manchester City Council,Regeneration Finance,Security,07.07.2021,5101140061,"3,400.00",Ridge Park Security Ltd
Manchester City Council,Regeneration Finance,Grounds Maintenance Costs,07.07.2021,5101139977,"3,650.00",Mitie Landscapes LTD
Manchester City Council,Regeneration Finance,Grounds Maintenance Costs,07.07.2021,5101139972,"1,037.50",Mitie Landscapes LTD
Manchester City Council,Regeneration Finance,Professional fees,07.07.2021,5101139824,"5,091.00",Walker Sime Ltd
Manchester City Council,Regeneration Finance,Legal Fees,07.07.2021,1907282330,"2,000.00",Francis Taylor Building
Manchester City Council,Highways Services,Payments to Sub-Contractors,07.07.2021,5101140066,"197,498.12",Rosgal Ltd
Manchester City Council,Highways Services,Payments to Sub-Contractors,07.07.2021,5101140034,"17,203.25",Utilities Design & Planning Ltd
Manchester City Council,Highways Services,Payments to Sub-Contractors,07.07.2021,5101140026,"15,705.90",Utilities Design & Planning Ltd
Manchester City Council,Highways Services,Payments to Sub-Contractors,07.07.2021,5101140025,"5,907.38",Utilities Design & Planning Ltd
Manchester City Council,Highways Services,Payments to Sub-Contractors,07.07.2021,5101140027,"5,780.00",Utilities Design & Planning Ltd
Manchester City Council,Highways Services,Payments to Sub-Contractors,07.07.2021,5101140067,"-197,498.12",Rosgal Ltd
Manchester City Council,Highways Services,Compensation Payments,07.07.2021,1907280882,"4,050.00",Redacted Personal Information
Manchester City Council,Manchester Leisure,External repairs and maintenance for buildings,08.07.2021,5101140094,"2,150.00",Flowprotect Ltd
Manchester City Council,Manchester Leisure,External repairs and maintenance for buildings,08.07.2021,5101140098,"1,475.00",Flowprotect Ltd
Manchester City Council,Manchester Leisure,Electricity,08.07.2021,1907286031,"23,307.38",Npower
Manchester City Council,Manchester Leisure,Electricity,08.07.2021,1907286109,"22,495.65",Npower
Manchester City Council,Manchester Leisure,Electricity,08.07.2021,1907286032,"7,844.29",Npower
Manchester City Council,Manchester Leisure,Electricity,08.07.2021,1907286033,"5,773.19",Npower
Manchester City Council,Manchester Leisure,Electricity,08.07.2021,1907286028,"5,333.27",Npower
Manchester City Council,Manchester Leisure,Electricity,08.07.2021,1907286034,"5,261.62",Npower
Manchester City Council,Manchester Leisure,Electricity,08.07.2021,1907286030,"4,877.72",Npower
Manchester City Council,Manchester Leisure,Electricity,08.07.2021,1907286027,"4,728.35",Npower
Manchester City Council,Manchester Leisure,Electricity,08.07.2021,1907286026,"4,422.91",Npower
Manchester City Council,Manchester Leisure,Electricity,08.07.2021,1907286113,"4,414.98",Npower
Manchester City Council,Manchester Leisure,Electricity,08.07.2021,1907286035,"4,228.88",Npower
Manchester City Council,Manchester Leisure,Electricity,08.07.2021,1907286049,"3,480.26",Npower
Manchester City Council,Manchester Leisure,Electricity,08.07.2021,1907286092,"3,322.79",Npower
Manchester City Council,Manchester Leisure,Electricity,08.07.2021,1907286064,"2,752.67",Npower
Manchester City Council,Manchester Leisure,Electricity,08.07.2021,1907286038,"2,443.45",Npower
Manchester City Council,Manchester Leisure,Electricity,08.07.2021,1907286037,"2,323.53",Npower
Manchester City Council,Manchester Leisure,Electricity,08.07.2021,1907286039,"2,121.50",Npower
Manchester City Council,Manchester Leisure,Electricity,08.07.2021,1907286036,"2,091.23",Npower
Manchester City Council,Manchester Leisure,Electricity,08.07.2021,1907286029,"1,886.27",Npower
Manchester City Council,Manchester Leisure,Electricity,08.07.2021,1700121513,"-2,024.38",Npower
Manchester City Council,Manchester Leisure,Electricity,08.07.2021,1700121512,"-2,121.50",Npower
Manchester City Council,Manchester Leisure,Electricity,08.07.2021,1700121511,"-4,010.71",Npower
Manchester City Council,Manchester Leisure,Electricity,08.07.2021,1700121509,"-4,182.25",Npower
Manchester City Council,Manchester Leisure,Electricity,08.07.2021,1700121508,"-4,494.63",Npower
Manchester City Council,Manchester Leisure,Electricity,08.07.2021,1700121510,"-4,692.76",Npower
Manchester City Council,Manchester Leisure,Electricity,08.07.2021,1700121507,"-5,390.83",Npower
Manchester City Council,Manchester Leisure,Water Service Charges - Unmetered,08.07.2021,1907285941,"3,139.65",Anglian Water Business (National)
Manchester City Council,Manchester Leisure,Water Service Charges - Unmetered,08.07.2021,1907285922,"1,501.04",Anglian Water Business (National)
Manchester City Council,Manchester Leisure,Water Service Charges - Unmetered,08.07.2021,1907286004,663.40,Anglian Water Business (National)
Manchester City Council,Manchester Leisure,Equipment,08.07.2021,5101140139,"13,615.20",SSI - Schaefer Limited
Manchester City Council,Manchester Leisure,Equipment,08.07.2021,5101140092,"12,276.00",MGB Plastics Limited
Manchester City Council,Manchester Leisure,Equipment,08.07.2021,5101140088,"12,132.00",MGB Plastics Limited
Manchester City Council,Manchester Leisure,Equipment,08.07.2021,5101140265,"10,000.00",Contact Theatre Company
Manchester City Council,Manchester Leisure,Equipment,08.07.2021,5101140252,"3,000.00",Belle Vue Productions Ltd
Manchester City Council,Manchester Leisure,Equipment,08.07.2021,5101140130,"2,000.00",Groundwork Landscapes Ltd
Manchester City Council,Manchester Leisure,Building Materials for direct delivery,08.07.2021,5101140097,"1,500.00",Flowprotect Ltd
Manchester City Council,Manchester Leisure,Payments to Sub-Contractors,08.07.2021,5101140158,"1,900.00",Arboricultural Services Treework
Manchester City Council,Manchester Leisure,Payments to Sub-Contractors,08.07.2021,5101140159,"1,800.00",Arboricultural Services Treework
Manchester City Council,Manchester Leisure,Professional fees,08.07.2021,5101140264,"4,522.18",British Taekwondo Limited
Manchester City Council,Manchester Leisure,Professional fees,08.07.2021,5101140086,"1,500.00",Redacted Personal Information
Manchester City Council,Manchester Leisure,Professional fees,08.07.2021,5101140254,"1,400.00",Redacted Personal Information
Manchester City Council,Manchester Leisure,Library Materials Acquisition,08.07.2021,1907285843,532.00,Askews and Holts
Manchester City Council,Manchester Leisure,Library Materials Acquisition,08.07.2021,1907285841,504.56,Askews and Holts
Manchester City Council,Manchester Leisure,Special Events,08.07.2021,5101140036,"10,000.00",Manchester Literature Festival
Manchester City Council,Manchester Leisure,Special Events,08.07.2021,5101140247,500.00,Redacted Personal Information
Manchester City Council,Libraries and Theatres,Training and Development,08.07.2021,5101140085,"1,850.00",North West Employers Ltd
Manchester City Council,Hospitality + Trading Services,Electricity,08.07.2021,1907286114,"30,583.98",Npower
Manchester City Council,Hospitality + Trading Services,Electricity,08.07.2021,1907286050,"16,287.81",Npower
Manchester City Council,Hospitality + Trading Services,Electricity,08.07.2021,1907286072,"5,563.20",Npower
Manchester City Council,Hospitality + Trading Services,Electricity,08.07.2021,1907286151,"2,482.43",Npower
Manchester City Council,Hospitality + Trading Services,Electricity,08.07.2021,1907286108,"1,484.87",Npower
Manchester City Council,Hospitality + Trading Services,Water Service Charges - Unmetered,08.07.2021,1907285981,"6,980.46",Anglian Water Business (National)
Manchester City Council,Hospitality + Trading Services,Water Service Charges - Unmetered,08.07.2021,1907285945,"1,501.04",Anglian Water Business (National)
Manchester City Council,Hospitality + Trading Services,Water Service Charges - Unmetered,08.07.2021,1907285963,"1,501.04",Anglian Water Business (National)
Manchester City Council,Hospitality + Trading Services,Water Service Charges - Unmetered,08.07.2021,1907285959,663.40,Anglian Water Business (National)
Manchester City Council,Hospitality + Trading Services,Vehicle Hire Costs,08.07.2021,5101140155,"3,103.23",Fleet Dynamic Consultancy Ltd
Manchester City Council,Hospitality + Trading Services,Building Materials for direct delivery,08.07.2021,5101140237,"7,871.09",Killgerm Chemicals Ltd
Manchester City Council,Environment and Operations,Professional fees,08.07.2021,5101140152,"1,890.00",C2Compliance Limited
Manchester City Council,Childrens & Education Services,Electricity,08.07.2021,1907286129,"1,271.31",Npower
Manchester City Council,Childrens & Education Services,Electricity,08.07.2021,1907286130,"1,207.67",Npower
Manchester City Council,Childrens & Education Services,Electricity,08.07.2021,1907286128,"1,145.02",Npower
Manchester City Council,Childrens & Education Services,Electricity,08.07.2021,1907286111,851.53,Npower
Manchester City Council,Childrens & Education Services,Electricity,08.07.2021,1907286127,835.42,Npower
Manchester City Council,Childrens & Education Services,Electricity,08.07.2021,1907286056,680.02,Npower
Manchester City Council,Childrens & Education Services,Electricity,08.07.2021,1700121523,"-1,239.50",Npower
Manchester City Council,Childrens & Education Services,Electricity,08.07.2021,1700121525,"-1,271.31",Npower
Manchester City Council,Childrens & Education Services,Electricity,08.07.2021,1700121524,"-1,289.12",Npower
Manchester City Council,Childrens & Education Services,Electricity,08.07.2021,1700121526,"-1,319.17",Npower
Manchester City Council,Childrens & Education Services,Electricity,08.07.2021,1700121527,"-1,374.67",Npower
Manchester City Council,Childrens & Education Services,Water Service Charges - Unmetered,08.07.2021,1907285961,"3,490.22",Anglian Water Business (National)
Manchester City Council,Childrens & Education Services,Water Service Charges - Unmetered,08.07.2021,1907285979,"1,569.82",Anglian Water Business (National)
Manchester City Council,Childrens & Education Services,Water Service Charges - Unmetered,08.07.2021,1907286013,750.52,Anglian Water Business (National)
Manchester City Council,Childrens & Education Services,Water Service Charges - Unmetered,08.07.2021,1907286021,663.40,Anglian Water Business (National)
Manchester City Council,Childrens & Education Services,Transport Coach Hire,08.07.2021,5101140232,"3,645.00",Bolton Mbc
Manchester City Council,Childrens & Education Services,Third party payments relating to Voluntary Organisations,08.07.2021,5101140189,"39,593.75",National Youth Advocacy Service
Manchester City Council,Childrens & Education Services,Third party payments relating to Voluntary Organisations,08.07.2021,5101140259,"37,221.25",The Children'S Society Services Ltd
Manchester City Council,Childrens & Education Services,Payments for services,08.07.2021,5101140231,"8,945.25",Enhance EHC Ltd
Manchester City Council,Childrens & Education Services,Payments for services,08.07.2021,5101140227,"4,518.18",Chaigeley Education Foundation
Manchester City Council,Childrens & Education Services,Payments for services,08.07.2021,5101140226,"2,520.00",High Peak School Limited
Manchester City Council,Childrens & Education Services,Supported Accommodation,08.07.2021,5101140129,535.64,Redacted Personal Information
Manchester City Council,Childrens & Education Services,Supported Accommodation,08.07.2021,5101140132,535.64,Redacted Personal Information
Manchester City Council,Childrens & Education Services,Supported Accommodation,08.07.2021,5101140133,535.64,Redacted Personal Information
Manchester City Council,Childrens & Education Services,Legal Fees,08.07.2021,5101140250,980.18,Warwickshire County Council
Manchester City Council,Adult Social Care,Agency staff provision,08.07.2021,5101140126,"37,122.55",Skills & Work Solutions
Manchester City Council,Adult Social Care,Agency staff provision,08.07.2021,1907280145,"17,600.00",Workforce HCM Limited
Manchester City Council,Adult Social Care,Electricity,08.07.2021,1907286149,918.99,Npower
Manchester City Council,Adult Social Care,Electricity,08.07.2021,1907286147,847.68,Npower
Manchester City Council,Adult Social Care,Electricity,08.07.2021,1907286105,843.40,Npower
Manchester City Council,Adult Social Care,Electricity,08.07.2021,1907286121,788.22,Npower
Manchester City Council,Adult Social Care,Electricity,08.07.2021,1700121532,-955.87,Npower
Manchester City Council,Adult Social Care,Electricity,08.07.2021,1700121534,"-1,523.09",Npower
Manchester City Council,Adult Social Care,Electricity,08.07.2021,1700121533,"-1,547.93",Npower
Manchester City Council,Adult Social Care,Rents,08.07.2021,5101140241,"13,043.00",K L Properties
Manchester City Council,Adult Social Care,Rents,08.07.2021,1907286390,"3,242.00",My Happy Home Growing Ltd
Manchester City Council,Adult Social Care,Water Service Charges - Unmetered,08.07.2021,1907285973,663.40,Anglian Water Business (National)
Manchester City Council,Adult Social Care,Equipment,08.07.2021,5101140248,720.00,Bentley Fielden Ltd
Manchester City Council,Adult Social Care,Building Materials for direct delivery,08.07.2021,5101139506,910.20,Invacare Limited
Manchester City Council,Adult Social Care,Professional fees,08.07.2021,5101140105,"2,950.00",YOURmedpack Ltd
Manchester City Council,Adult Social Care,Professional fees,08.07.2021,5101140103,516.00,YOURmedpack Ltd
Manchester City Council,Adult Social Care,I T Provision,08.07.2021,5101140128,"9,229.17",Percy Westhead & Company
Manchester City Council,Adult Social Care,Bed and Breakfast Accommodation Expenditure,08.07.2021,5101140143,"4,500.00",Medlock House Ltd
Manchester City Council,Adult Social Care,Bed and Breakfast Accommodation Expenditure,08.07.2021,1907275084,"1,032.30",Peter Dickinson Associates Ltd
Manchester City Council,Adult Social Care,Third party payments to Health Authority,08.07.2021,5101140234,"14,931.00",Greater Manchester Mental Health
Manchester City Council,Adult Social Care,Third party payments relating to Voluntary Organisations,08.07.2021,5101140101,"29,166.68",Manchester Carers Forum
Manchester City Council,Adult Social Care,Third party payments relating to Voluntary Organisations,08.07.2021,5101140102,"29,166.68",Manchester Carers Forum
Manchester City Council,Adult Social Care,Third party payments relating to Voluntary Organisations,08.07.2021,5101140111,"19,078.00",Manchester Carers Forum
Manchester City Council,Adult Social Care,Third party payments relating to Voluntary Organisations,08.07.2021,5101140042,"11,000.00",Stepping Stone Projects
Manchester City Council,Adult Social Care,Third party payments relating to Voluntary Organisations,08.07.2021,5101140043,"11,000.00",Stepping Stone Projects
Manchester City Council,Adult Social Care,Third party payments relating to Voluntary Organisations,08.07.2021,5101140046,"11,000.00",Stepping Stone Projects
Manchester City Council,Adult Social Care,Third party payments relating to Voluntary Organisations,08.07.2021,5101140260,"3,011.75",The Mustard Tree
Manchester City Council,Adult Social Care,Supporting People Payments,08.07.2021,5101140261,"6,000.00",Irwell Valley Housing Association
Manchester City Council,Adult Social Care,Supporting People Payments,08.07.2021,5101140091,"1,033.88",The Guinness Partnership Ltd
Manchester City Council,Adult Social Care,Supporting People Payments,08.07.2021,5101140091,972.69,The Guinness Partnership Ltd
Manchester City Council,Adult Social Care,Supporting People Payments,08.07.2021,5101140091,789.60,The Guinness Partnership Ltd
Manchester City Council,Adult Social Care,Supporting People Payments,08.07.2021,5101140091,785.52,The Guinness Partnership Ltd
Manchester City Council,Adult Social Care,Supporting People Payments,08.07.2021,5101140091,695.34,The Guinness Partnership Ltd
Manchester City Council,Adult Social Care,Personal needs of client,08.07.2021,5101140245,"3,500.00",Tunstall Healthcare (UK) Ltd
Manchester City Council,Adult Social Care,Personal needs of client,08.07.2021,5101140212,"3,007.00",James Leckey Design Ltd
Manchester City Council,Adult Social Care,Personal needs of client,08.07.2021,5101140243,512.00,G & S Smirthwaite Limited
Manchester City Council,Corporate Services,Training and Development,08.07.2021,5101140083,"1,980.00",Social Welfare Training Ltd
Manchester City Council,Corporate Services,Electricity,08.07.2021,1907286146,"3,189.12",Npower
Manchester City Council,Corporate Services,Electricity,08.07.2021,1907286104,"1,574.85",Npower
Manchester City Council,Corporate Services,Electricity,08.07.2021,1907286103,"1,335.41",Npower
Manchester City Council,Corporate Services,Electricity,08.07.2021,1907286041,"1,212.85",Npower
Manchester City Council,Corporate Services,Electricity,08.07.2021,1907286133,727.78,Npower
Manchester City Council,Corporate Services,Electricity,08.07.2021,1907286136,726.78,Npower
Manchester City Council,Corporate Services,Electricity,08.07.2021,1907286101,721.70,Npower
Manchester City Council,Corporate Services,Electricity,08.07.2021,1907286062,685.65,Npower
Manchester City Council,Corporate Services,Electricity,08.07.2021,1907286099,646.46,Npower
Manchester City Council,Corporate Services,Electricity,08.07.2021,1907286126,645.44,Npower
Manchester City Council,Corporate Services,Electricity,08.07.2021,1907286082,621.84,Npower
Manchester City Council,Corporate Services,Electricity,08.07.2021,1907286083,603.51,Npower
Manchester City Council,Corporate Services,Electricity,08.07.2021,1907286135,603.08,Npower
Manchester City Council,Corporate Services,Electricity,08.07.2021,1907286137,566.34,Npower
Manchester City Council,Corporate Services,Electricity,08.07.2021,1907286096,532.49,Npower
Manchester City Council,Corporate Services,Electricity,08.07.2021,1700121528,-768.16,Npower
Manchester City Council,Corporate Services,Electricity,08.07.2021,1700121522,"-1,094.19",Npower
Manchester City Council,Corporate Services,Electricity,08.07.2021,1700121531,"-3,106.83",Npower
Manchester City Council,Corporate Services,Electricity,08.07.2021,1700121530,"-3,453.86",Npower
Manchester City Council,Corporate Services,Water Service Charges - Unmetered,08.07.2021,1907286000,538.51,Anglian Water Business (National)
Manchester City Council,Corporate Services,Car Parking Permits,08.07.2021,5101140225,"8,759.95",Verrus (UK) T/A paybyphone
Manchester City Council,Corporate Services,Professional fees,08.07.2021,5101140040,"2,250.00",Gleeds Management Services Limited
Manchester City Council,Corporate Services,Professional fees,08.07.2021,5101139592,"1,025.00",Keelagher Okey Associates Ltd t/a
Manchester City Council,Corporate Services,Postage,08.07.2021,5101140157,"11,721.96",Royal Mail Group Plc
Manchester City Council,Corporate Services,Postage,08.07.2021,5101140125,"9,798.43",Royal Mail Group Plc
Manchester City Council,Corporate Services,Postage,08.07.2021,5101140121,"8,389.82",Royal Mail Group Plc
Manchester City Council,Corporate Services,LRSG Grant Payment,08.07.2021,1907285434,"2,000.00",Redacted Personal Information
Manchester City Council,Corporate Services,Works and associated costs for Land and Buildings,08.07.2021,5101140255,"10,608.00",Conlon Construction Ltd
Manchester City Council,Corporate Services,Works and associated costs for Land and Buildings,08.07.2021,5101140145,"9,050.41",F Parkinson Limited
Manchester City Council,Corporate Services,Works and associated costs for Land and Buildings,08.07.2021,5101139934,"2,527.36",Apex Self Storage Ltd
Manchester City Council,Corporate Services,Works and associated costs for Land and Buildings,08.07.2021,5101140135,"-2,527.36",Apex Self Storage Ltd
Manchester City Council,Housing Revenue Account,Council Dwellings - Acquisition,08.07.2021,1907285435,"3,180.00",H M Revenues and Customs
Manchester City Council,Housing Revenue Account,Council Dwelling Adaptations,08.07.2021,5101140228,"500,468.47",Manchester Working Ltd
Manchester City Council,Housing Revenue Account,Council Dwelling Adaptations,08.07.2021,5101140233,"283,319.77",Emanuel Whittaker Ltd
Manchester City Council,Housing Revenue Account,Council Dwelling Adaptations,08.07.2021,5101140109,"199,913.40",Fieldway Supplies Ltd
Manchester City Council,Housing Revenue Account,Council Dwelling Adaptations,08.07.2021,5101140100,"74,095.39",Rothwell Plumbing Services Ltd
Manchester City Council,Chief Executives,Agency staff provision,08.07.2021,5101140188,"27,809.40",Pertemps Professional Recruitment L
Manchester City Council,Chief Executives,Training and Development,08.07.2021,5101140210,"2,642.90",Cipfa
Manchester City Council,Chief Executives,Postage,08.07.2021,5101140107,"4,356.41",Royal Mail Group Plc
Manchester City Council,Chief Executives,Examination Fees,08.07.2021,5101140117,"48,054.37",Central Mcr Uni Hospital t/a
Manchester City Council,Chief Executives,Works and associated costs for Land and Buildings,08.07.2021,1907285453,"5,483.03",Metal Envelope Engineering GmbH
Manchester City Council,Chief Executives,Works and associated costs for Land and Buildings,08.07.2021,1907285438,"2,088.77",Metal Envelope Engineering GmbH
Manchester City Council,Chief Executives,Compensation Payments,08.07.2021,5101140078,"4,318.26",Russell & Russell Solicitors LLP
Manchester City Council,Regeneration Finance,Electricity,08.07.2021,1907286142,"29,299.76",Npower
Manchester City Council,Regeneration Finance,Electricity,08.07.2021,1907286089,"17,970.14",Npower
Manchester City Council,Regeneration Finance,Electricity,08.07.2021,1907286110,"17,396.00",Npower
Manchester City Council,Regeneration Finance,Electricity,08.07.2021,1907286090,"16,165.22",Npower
Manchester City Council,Regeneration Finance,Electricity,08.07.2021,1907286131,"15,954.65",Npower
Manchester City Council,Regeneration Finance,Electricity,08.07.2021,1907286087,"15,145.96",Npower
Manchester City Council,Regeneration Finance,Electricity,08.07.2021,1907286088,"14,546.34",Npower
Manchester City Council,Regeneration Finance,Electricity,08.07.2021,1907286040,"10,711.35",Npower
Manchester City Council,Regeneration Finance,Electricity,08.07.2021,1907286141,"10,440.26",Npower
Manchester City Council,Regeneration Finance,Electricity,08.07.2021,1907286116,"7,221.83",Npower
Manchester City Council,Regeneration Finance,Electricity,08.07.2021,1907286067,"6,831.59",Npower
Manchester City Council,Regeneration Finance,Electricity,08.07.2021,1907286140,"6,142.60",Npower
Manchester City Council,Regeneration Finance,Electricity,08.07.2021,1907286139,"6,062.21",Npower
Manchester City Council,Regeneration Finance,Electricity,08.07.2021,1907286138,"5,370.59",Npower
Manchester City Council,Regeneration Finance,Electricity,08.07.2021,1907286074,"4,221.82",Npower
Manchester City Council,Regeneration Finance,Electricity,08.07.2021,1907286044,"3,826.25",Npower
Manchester City Council,Regeneration Finance,Electricity,08.07.2021,1907286095,"3,611.59",Npower
Manchester City Council,Regeneration Finance,Electricity,08.07.2021,1907286094,"3,345.36",Npower
Manchester City Council,Regeneration Finance,Electricity,08.07.2021,1907286045,"3,152.86",Npower
Manchester City Council,Regeneration Finance,Electricity,08.07.2021,1907286042,"2,990.58",Npower
Manchester City Council,Regeneration Finance,Electricity,08.07.2021,1907286043,"2,864.16",Npower
Manchester City Council,Regeneration Finance,Electricity,08.07.2021,1907286073,"2,657.07",Npower
Manchester City Council,Regeneration Finance,Electricity,08.07.2021,1907286093,"2,195.76",Npower
Manchester City Council,Regeneration Finance,Electricity,08.07.2021,1907286081,"2,013.87",Npower
Manchester City Council,Regeneration Finance,Electricity,08.07.2021,1907286106,"1,900.25",Npower
Manchester City Council,Regeneration Finance,Electricity,08.07.2021,1907286085,"1,601.29",Npower
Manchester City Council,Regeneration Finance,Electricity,08.07.2021,1907286080,"1,291.76",Npower
Manchester City Council,Regeneration Finance,Electricity,08.07.2021,1907286107,"1,289.20",Npower
Manchester City Council,Regeneration Finance,Electricity,08.07.2021,1907286078,"1,252.89",Npower
Manchester City Council,Regeneration Finance,Electricity,08.07.2021,1907286075,"1,172.49",Npower
Manchester City Council,Regeneration Finance,Electricity,08.07.2021,1907286077,"1,026.65",Npower
Manchester City Council,Regeneration Finance,Electricity,08.07.2021,1907286076,977.69,Npower
Manchester City Council,Regeneration Finance,Electricity,08.07.2021,1907286086,847.53,Npower
Manchester City Council,Regeneration Finance,Electricity,08.07.2021,1907286098,770.97,Npower
Manchester City Council,Regeneration Finance,Electricity,08.07.2021,1907286125,724.88,Npower
Manchester City Council,Regeneration Finance,Electricity,08.07.2021,1907286079,645.55,Npower
Manchester City Council,Regeneration Finance,Electricity,08.07.2021,1907286046,616.79,Npower
Manchester City Council,Regeneration Finance,Electricity,08.07.2021,1907286134,592.27,Npower
Manchester City Council,Regeneration Finance,Electricity,08.07.2021,1907286132,533.68,Npower
Manchester City Council,Regeneration Finance,Electricity,08.07.2021,1907286084,532.72,Npower
Manchester City Council,Regeneration Finance,Electricity,08.07.2021,1700121519,-882.59,Npower
Manchester City Council,Regeneration Finance,Electricity,08.07.2021,1700121518,-941.74,Npower
Manchester City Council,Regeneration Finance,Electricity,08.07.2021,1700121517,"-1,321.55",Npower
Manchester City Council,Regeneration Finance,Electricity,08.07.2021,1700121514,"-1,762.02",Npower
Manchester City Council,Regeneration Finance,Electricity,08.07.2021,1700121516,"-1,973.19",Npower
Manchester City Council,Regeneration Finance,Electricity,08.07.2021,1700121515,"-2,081.55",Npower
Manchester City Council,Regeneration Finance,Electricity,08.07.2021,1700121521,"-3,456.69",Npower
Manchester City Council,Regeneration Finance,Electricity,08.07.2021,1700121520,"-3,966.80",Npower
Manchester City Council,Regeneration Finance,Electricity,08.07.2021,1700121529,"-6,142.60",Npower
Manchester City Council,Regeneration Finance,Water Service Charges - Unmetered,08.07.2021,1907285986,"21,910.66",Anglian Water Business (National)
Manchester City Council,Regeneration Finance,Water Service Charges - Unmetered,08.07.2021,1907285998,"21,910.66",Anglian Water Business (National)
Manchester City Council,Regeneration Finance,Water Service Charges - Unmetered,08.07.2021,1907285976,"13,262.06",Anglian Water Business (National)
Manchester City Council,Regeneration Finance,Water Service Charges - Unmetered,08.07.2021,1907285940,"6,980.46",Anglian Water Business (National)
Manchester City Council,Regeneration Finance,Water Service Charges - Unmetered,08.07.2021,1907285947,"6,980.46",Anglian Water Business (National)
Manchester City Council,Regeneration Finance,Water Service Charges - Unmetered,08.07.2021,1907285958,"6,980.46",Anglian Water Business (National)
Manchester City Council,Regeneration Finance,Water Service Charges - Unmetered,08.07.2021,1907285964,"6,980.46",Anglian Water Business (National)
Manchester City Council,Regeneration Finance,Water Service Charges - Unmetered,08.07.2021,1907285968,"6,980.46",Anglian Water Business (National)
Manchester City Council,Regeneration Finance,Water Service Charges - Unmetered,08.07.2021,1907285977,"6,980.46",Anglian Water Business (National)
Manchester City Council,Regeneration Finance,Water Service Charges - Unmetered,08.07.2021,1907285984,"6,980.46",Anglian Water Business (National)
Manchester City Council,Regeneration Finance,Water Service Charges - Unmetered,08.07.2021,1907285995,"6,980.46",Anglian Water Business (National)
Manchester City Council,Regeneration Finance,Water Service Charges - Unmetered,08.07.2021,1907286005,"3,139.65",Anglian Water Business (National)
Manchester City Council,Regeneration Finance,Water Service Charges - Unmetered,08.07.2021,1907286008,"3,139.65",Anglian Water Business (National)
Manchester City Council,Regeneration Finance,Water Service Charges - Unmetered,08.07.2021,1907286011,"3,139.65",Anglian Water Business (National)
Manchester City Council,Regeneration Finance,Water Service Charges - Unmetered,08.07.2021,1907286020,"3,139.65",Anglian Water Business (National)
Manchester City Council,Regeneration Finance,Water Service Charges - Unmetered,08.07.2021,1907285918,"1,501.04",Anglian Water Business (National)
Manchester City Council,Regeneration Finance,Water Service Charges - Unmetered,08.07.2021,1907285962,"1,501.04",Anglian Water Business (National)
Manchester City Council,Regeneration Finance,Water Service Charges - Unmetered,08.07.2021,1907285966,"1,501.04",Anglian Water Business (National)
Manchester City Council,Regeneration Finance,Water Service Charges - Unmetered,08.07.2021,1907285971,"1,501.04",Anglian Water Business (National)
Manchester City Council,Regeneration Finance,Water Service Charges - Unmetered,08.07.2021,1907285972,"1,501.04",Anglian Water Business (National)
Manchester City Council,Regeneration Finance,Water Service Charges - Unmetered,08.07.2021,1907285985,"1,501.04",Anglian Water Business (National)
Manchester City Council,Regeneration Finance,Water Service Charges - Unmetered,08.07.2021,1907285988,"1,501.04",Anglian Water Business (National)
Manchester City Council,Regeneration Finance,Water Service Charges - Unmetered,08.07.2021,1907286012,"1,501.04",Anglian Water Business (National)
Manchester City Council,Regeneration Finance,Water Service Charges - Unmetered,08.07.2021,1907285965,663.40,Anglian Water Business (National)
Manchester City Council,Regeneration Finance,Water Service Charges - Unmetered,08.07.2021,1907285982,663.40,Anglian Water Business (National)
Manchester City Council,Regeneration Finance,Water Service Charges - Unmetered,08.07.2021,1907286009,663.40,Anglian Water Business (National)
Manchester City Council,Regeneration Finance,Water Service Charges - Unmetered,08.07.2021,1907286010,663.40,Anglian Water Business (National)
Manchester City Council,Regeneration Finance,Water Service Charges - Unmetered,08.07.2021,1907286015,663.40,Anglian Water Business (National)
Manchester City Council,Regeneration Finance,Water Service Charges - Unmetered,08.07.2021,1907286017,663.40,Anglian Water Business (National)
Manchester City Council,Regeneration Finance,Water Service Charges - Unmetered,08.07.2021,1907286018,663.40,Anglian Water Business (National)
Manchester City Council,Regeneration Finance,Water Service Charges - Unmetered,08.07.2021,1907286019,663.40,Anglian Water Business (National)
Manchester City Council,Regeneration Finance,Water Service Charges - Unmetered,08.07.2021,1907286022,663.40,Anglian Water Business (National)
Manchester City Council,Regeneration Finance,Professional fees,08.07.2021,5101140127,"2,203.73",Mpulse Ltd
Manchester City Council,Highways Services,Electricity,08.07.2021,1907286091,"11,305.37",Npower
Manchester City Council,Highways Services,Electricity,08.07.2021,1907286120,"2,238.57",Npower
Manchester City Council,Highways Services,Electricity,08.07.2021,1907286068,"1,810.59",Npower
Manchester City Council,Highways Services,Electricity,08.07.2021,1907286119,"1,331.35",Npower
Manchester City Council,Highways Services,Electricity,08.07.2021,1907286118,"1,239.86",Npower
Manchester City Council,Highways Services,Electricity,08.07.2021,1907286112,778.37,Npower
Manchester City Council,Highways Services,Electricity,08.07.2021,1907286054,620.15,Npower
Manchester City Council,Highways Services,Building Materials for direct delivery,08.07.2021,5101140168,"1,574.30",TARMAC
Manchester City Council,Highways Services,Payments to Sub-Contractors,08.07.2021,5101139988,"4,479.67",Verrus (UK) T/A paybyphone
Manchester City Council,Highways Services,Professional fees,08.07.2021,5101140099,550.00,Rigby Taylor Ltd
Manchester City Council,Highways Services,Compensation Payments,08.07.2021,1907286388,"3,000.00",JPS WALKER
Manchester City Council,Highways Services,Compensation Payments,08.07.2021,1907285437,"9,985.00",Emsleys Client Account
Manchester City Council,Highways Services,Compensation Payments,08.07.2021,1907286388,"2,742.00",JPS WALKER
Manchester City Council,Insurance Fund,Miscellaneous Insurance Premium,08.07.2021,1907285433,"8,683.26",Zurich Insurance
Manchester City Council,Manchester Leisure,Contract Cleaning External,09.07.2021,5101140281,"1,538.40",GTS Steam Cleaners
Manchester City Council,Manchester Leisure,Contract Cleaning External,09.07.2021,5101140281,930.60,GTS Steam Cleaners
Manchester City Council,Manchester Leisure,Contract Cleaning External,09.07.2021,5101140292,509.25,GTS Steam Cleaners
Manchester City Council,Manchester Leisure,Refuse Collection,09.07.2021,5101140370,"21,666.41",Biffa Municipal Limited
Manchester City Council,Manchester Leisure,Payments to Sub-Contractors,09.07.2021,5101140355,"9,848.86",Greenfingers Landscape Ltd
Manchester City Council,Manchester Leisure,Payments to Sub-Contractors,09.07.2021,5101139288,"3,600.00",Ramora Ltd
Manchester City Council,Manchester Leisure,Payments to Sub-Contractors,09.07.2021,5101140242,"2,085.00",Groundwork Landscapes Ltd
Manchester City Council,Manchester Leisure,Payments to Sub-Contractors,09.07.2021,5101139286,"1,749.92",Ramora Ltd
Manchester City Council,Manchester Leisure,Payments to Sub-Contractors,09.07.2021,5101139287,"1,461.73",Ramora Ltd
Manchester City Council,Manchester Leisure,Payments to Sub-Contractors,09.07.2021,5101140296,504.00,Arboricultural Services Treework
Manchester City Council,Manchester Leisure,Reuse credits,09.07.2021,5101140372,"2,499.93",Biffa Municipal Limited
Manchester City Council,Manchester Leisure,Professional fees,09.07.2021,5101140369,"5,000.00",Lois Burton Ltd
Manchester City Council,Manchester Leisure,Professional fees,09.07.2021,5101140332,870.00,Osborne Richardson
Manchester City Council,Manchester Leisure,Professional fees,09.07.2021,5101140338,741.00,Osborne Richardson
Manchester City Council,Manchester Leisure,Professional fees,09.07.2021,5101140374,500.00,Manchester Cathedral
Manchester City Council,Manchester Leisure,Grant and subscriptions awarded,09.07.2021,5101140351,"5,490.00",Oasis Academy Harpur Mount
Manchester City Council,Manchester Leisure,Grant and subscriptions awarded,09.07.2021,5101140346,"2,492.00",Riverbank Community Garden
Manchester City Council,Manchester Leisure,Grant and subscriptions awarded,09.07.2021,5101140348,"2,000.00",Irk Valley Community School
Manchester City Council,Manchester Leisure,Grant and subscriptions awarded,09.07.2021,5101140350,658.52,GMCVO
Manchester City Council,Hospitality + Trading Services,I T Provision,09.07.2021,5101140367,"2,050.00",Clear Skies Software Ltd
Manchester City Council,Hospitality + Trading Services,I T Provision,09.07.2021,5101140367,"2,050.00",Clear Skies Software Ltd
Manchester City Council,Hospitality + Trading Services,Subsistence and Conference Expenses,09.07.2021,5101140311,998.00,The Federation Of Burial and
Manchester City Council,Environment and Operations,External repairs and maintenance for buildings,09.07.2021,5101140300,500.00,Platt White Partnership
Manchester City Council,Environment and Operations,External repairs and maintenance for buildings,09.07.2021,5101140301,500.00,Platt White Partnership
Manchester City Council,Environment and Operations,Construction Works,09.07.2021,5101140171,"11,990.33",J.Hopkins (Contractors) Ltd.
Manchester City Council,Environment and Operations,Construction Works,09.07.2021,5101140208,"4,204.10",Amey Highways Lighting (Manchester)
Manchester City Council,Childrens & Education Services,Transport Coach Hire,09.07.2021,5101139935,"5,089.78",MCR Blackcab Ltd
Manchester City Council,Childrens & Education Services,Transport Coach Hire,09.07.2021,5101140310,"4,066.00",MS Minibuses Ltd
Manchester City Council,Childrens & Education Services,Equipment,09.07.2021,5101140417,810.00,Bennett Workplace Solutions Ltd
Manchester City Council,Childrens & Education Services,Signers/Interpreters Fees,09.07.2021,5101140368,690.40,Language Line Ltd
Manchester City Council,Childrens & Education Services,Professional fees,09.07.2021,1907286402,"1,600.00",18 St John Street Chambers
Manchester City Council,Childrens & Education Services,Subsistence and Conference Expenses,09.07.2021,1907275086,602.00,Y Bont Trust
Manchester City Council,Childrens & Education Services,Third party payments to other Local Authorities,09.07.2021,5101140364,"5,566.25",Firwood High School
Manchester City Council,Childrens & Education Services,Third party payments relating to Voluntary Organisations,09.07.2021,5101140397,"43,750.00",Remedi
Manchester City Council,Childrens & Education Services,Third party payments relating to Voluntary Organisations,09.07.2021,5101140395,"1,050.00",Remedi
Manchester City Council,Childrens & Education Services,Third party payments relating to Voluntary Organisations,09.07.2021,5101140272,603.09,Findel Education Ltd
Manchester City Council,Childrens & Education Services,Payments for services,09.07.2021,5101140330,"5,026.74",The Together Trust
Manchester City Council,Childrens & Education Services,Payments for services,09.07.2021,5101140318,"2,033.80",The Together Trust
Manchester City Council,Childrens & Education Services,Payments for services,09.07.2021,5101140324,"1,560.04",The Together Trust
Manchester City Council,Childrens & Education Services,Payments for services,09.07.2021,5101140333,"1,203.92",The Together Trust
Manchester City Council,Childrens & Education Services,Payments for services,09.07.2021,5101140329,589.00,The Together Trust
Manchester City Council,Childrens & Education Services,Supporting People Payments,09.07.2021,5101140366,820.80,Westfield Minibuses
Manchester City Council,Childrens & Education Services,Foster Payments,09.07.2021,5101140400,"2,800.00",Gligan Fitness Ltd
Manchester City Council,Adult Social Care,Agency staff provision,09.07.2021,5101140421,"1,269.40",Vitality 24
Manchester City Council,Adult Social Care,Agency staff provision,09.07.2021,5101140289,"1,015.02",Vitality 24
Manchester City Council,Adult Social Care,Agency staff provision,09.07.2021,5101140286,973.02,Vitality 24
Manchester City Council,Adult Social Care,Agency staff provision,09.07.2021,5101140287,768.65,Vitality 24
Manchester City Council,Adult Social Care,Training and Development,09.07.2021,5101140274,855.00,University Of Salford
Manchester City Council,Adult Social Care,Training and Development,09.07.2021,5101140276,855.00,University Of Salford
Manchester City Council,Adult Social Care,Training and Development,09.07.2021,5101140277,855.00,University Of Salford
Manchester City Council,Adult Social Care,Training and Development,09.07.2021,5101140275,-855.00,University Of Salford
Manchester City Council,Adult Social Care,Rents,09.07.2021,5101140294,"4,359.01",Housing Social Ltd
Manchester City Council,Adult Social Care,Rents,09.07.2021,1907287040,"1,390.00",OCASA RESIDENTIAL LTD
Manchester City Council,Adult Social Care,Cleaning Equipment and Materials,09.07.2021,5101139392,776.00,Concept Care
Manchester City Council,Adult Social Care,Furniture,09.07.2021,5101140291,803.10,Furniture Resource Centre Ltd
Manchester City Council,Adult Social Care,Hire of Equipment,09.07.2021,5101140393,520.00,M-R-S Communications Ltd
Manchester City Council,Adult Social Care,Grant Payments,09.07.2021,5101140396,500.00,Independent Choices Gtr Manchester
Manchester City Council,Adult Social Care,Bed and Breakfast Accommodation Expenditure,09.07.2021,5101140363,"16,554.00",Redacted Personal Information
Manchester City Council,Adult Social Care,Bed and Breakfast Accommodation Expenditure,09.07.2021,5101140302,"11,514.00",Redacted Personal Information
Manchester City Council,Adult Social Care,Third party payments relating to Voluntary Organisations,09.07.2021,5101140334,"37,947.00",District Homes Cic
Manchester City Council,Adult Social Care,Third party payments relating to Voluntary Organisations,09.07.2021,5101140422,"5,835.85",Redacted Personal Information
Manchester City Council,Adult Social Care,Third party payments relating to Voluntary Organisations,09.07.2021,5101140268,"1,500.00",George House Trust
Manchester City Council,Adult Social Care,Third party payments relating to Voluntary Organisations,09.07.2021,5101140280,600.00,People First Housing Association
Manchester City Council,Adult Social Care,Third party payments relating to Voluntary Organisations,09.07.2021,5101140284,600.00,People First Housing Association
Manchester City Council,Adult Social Care,Third party payments relating to Voluntary Organisations,09.07.2021,5101140288,600.00,People First Housing Association
Manchester City Council,Adult Social Care,Supporting People Payments,09.07.2021,5101140306,"1,907.00",Places for People Living +
Manchester City Council,Adult Social Care,Supported Accommodation,09.07.2021,5101140356,"1,620.12",Places for People Living +
Manchester City Council,Adult Social Care,Supported Accommodation,09.07.2021,5101140357,"1,620.12",Places for People Living +
Manchester City Council,Adult Social Care,Supported Accommodation,09.07.2021,5101140358,"1,620.12",Places for People Living +
Manchester City Council,Adult Social Care,Personal needs of client,09.07.2021,5101139486,904.00,Newlyn Healthcare Limited
Manchester City Council,Adult Social Care,Personal needs of client,09.07.2021,5101140371,684.00,Anywhere Care Ltd
Manchester City Council,Childrens Services,Works and associated costs for Land and Buildings,09.07.2021,5101140308,"39,822.98",John Turner Construction Group
Manchester City Council,Childrens Services,Works and associated costs for Land and Buildings,09.07.2021,5101140307,"29,677.02",John Turner Construction Group
Manchester City Council,Childrens Services,Works and associated costs for Land and Buildings,09.07.2021,5101140308,"14,215.63",John Turner Construction Group
Manchester City Council,Corporate Services,Security,09.07.2021,5101139882,"5,484.20",NSL Ltd
Manchester City Council,Corporate Services,Professional fees,09.07.2021,5101140312,"10,125.00",Gleeds Management Services Limited
Manchester City Council,Corporate Services,Works and associated costs for Land and Buildings,09.07.2021,5101140137,"1,255.68",Apex Self Storage Ltd
Manchester City Council,Corporate Services,Works and associated costs for Land and Buildings,09.07.2021,5101140147,895.20,Groundwork & Leisure Services Ltd
Manchester City Council,Housing Revenue Account,Professional fees,09.07.2021,5101140373,"12,866.74",Morgan Sindall Property
Manchester City Council,Housing Revenue Account,Council Dwelling Adaptations,09.07.2021,5101140263,"11,200.00",Carebase
Manchester City Council,Chief Executives,Training and Development,09.07.2021,5101140361,"1,200.00",Purple Infusion Ltd
Manchester City Council,Chief Executives,Printing,09.07.2021,5101140278,"4,158.00",Impression (Bolton) Ltd
Manchester City Council,Chief Executives,Postage,09.07.2021,5101140270,"2,715.52",Whistl North Ltd
Manchester City Council,Chief Executives,ICT Support & Maintenance,09.07.2021,5101140290,"15,100.00",Zipporah Ltd
Manchester City Council,Chief Executives,Works and associated costs for Land and Buildings,09.07.2021,5101140392,"22,383.87",NE1 Procurement Services Limited
Manchester City Council,Chief Executives,Legal Fees,09.07.2021,5101140314,"10,050.00",Redacted Personal Information
Manchester City Council,Regeneration Finance,Expenditure re Internal Trading Ordered Externally,09.07.2021,5101140341,"1,104.29",Portakabin Ltd
Manchester City Council,Regeneration Finance,Expenditure re Internal Trading Ordered Externally,09.07.2021,5101140337,"1,020.14",Portakabin Ltd
Manchester City Council,Regeneration Finance,Expenditure re Internal Trading Ordered Externally,09.07.2021,5101140342,936.70,Portakabin Ltd
Manchester City Council,Regeneration Finance,Expenditure re Internal Trading Ordered Externally,09.07.2021,5101140335,931.63,Portakabin Ltd
Manchester City Council,Regeneration Finance,Expenditure re Internal Trading Ordered Externally,09.07.2021,5101140339,931.63,Portakabin Ltd
Manchester City Council,Highways Services,Grounds Maintenance Costs,09.07.2021,5101140376,900.00,Redgate Holdings Ltd
Manchester City Council,Highways Services,Grounds Maintenance Costs,09.07.2021,5101140377,900.00,Redgate Holdings Ltd
Manchester City Council,Highways Services,Equipment,09.07.2021,5101140202,891.68,Amey Highways Lighting (Manchester)
Manchester City Council,Highways Services,Professional fees,09.07.2021,5101140328,"5,324.50",Waterman Aspen Ltd
Manchester City Council,Highways Services,Professional fees,09.07.2021,5101140322,"-4,837.50",Waterman Aspen Ltd
Manchester City Council,Manchester Leisure,Refuse Collection,12.07.2021,5101140430,"40,833.30",Biffa Municipal Limited
Manchester City Council,Manchester Leisure,Equipment,12.07.2021,5101139560,"7,040.00",Willfab Ltd
Manchester City Council,Manchester Leisure,Equipment,12.07.2021,5101140459,507.00,Eagle Containers Ltd
Manchester City Council,Manchester Leisure,Equipment,12.07.2021,5101139557,"-7,040.00",Willfab Ltd
Manchester City Council,Manchester Leisure,"Consumable items eg Toilet rolls, soap etc",12.07.2021,1907288756,780.00,HAWK COURIERS LTD
Manchester City Council,Manchester Leisure,"Consumable items eg Toilet rolls, soap etc",12.07.2021,1907288779,602.04,WWW.REXLONDONTRADE.COM
Manchester City Council,Manchester Leisure,Building Materials for direct delivery,12.07.2021,5101140508,836.64,Cromwell Polythene Limited
Manchester City Council,Manchester Leisure,Building Materials for direct delivery,12.07.2021,5101140542,680.00,Willfab Ltd
Manchester City Council,Manchester Leisure,Payments to Sub-Contractors,12.07.2021,5101140433,780.00,Groundwork Landscapes Ltd
Manchester City Council,Manchester Leisure,Professional fees,12.07.2021,5101140431,"20,000.00",Biffa Municipal Limited
Manchester City Council,Manchester Leisure,Professional fees,12.07.2021,5101140456,500.00,Royal Flush Marketing Ltd
Manchester City Council,Manchester Leisure,Grant and subscriptions awarded,12.07.2021,5101140539,"2,049.24",Christ Church West Didsbury
Manchester City Council,Manchester Leisure,Grant and subscriptions awarded,12.07.2021,5101140550,"2,000.00",Wythenshawe Waste Warriors
Manchester City Council,Hospitality + Trading Services,Vehicle Hire Costs,12.07.2021,5101140544,"12,622.62",F.R.Sharrock Ltd
Manchester City Council,Hospitality + Trading Services,Compensation Payments,12.07.2021,1907283347,"9,856.48",CLATTERBRIDGE PRIVATE CLINIC
Manchester City Council,Environment and Operations,Works and associated costs for Land and Buildings,12.07.2021,5101140432,"20,998.20",Biffa Municipal Limited
Manchester City Council,Environment and Operations,Construction Works,12.07.2021,5101140461,"30,217.75",John Sisk & Son (Holdings) Ltd
Manchester City Council,Environment and Operations,Construction Works,12.07.2021,5101139453,"2,400.00",Transport for Greater Manchester
Manchester City Council,Environment and Operations,Construction Works,12.07.2021,5101140460,"-30,217.75",John Sisk & Son (Holdings) Ltd
Manchester City Council,Childrens & Education Services,Travel,12.07.2021,1907289100,583.00,Diversity Travel Ltd
Manchester City Council,Childrens & Education Services,Transport Coach Hire,12.07.2021,5101139200,"2,470.00",Liddle Hackney Carriage
Manchester City Council,Childrens & Education Services,Transport Coach Hire,12.07.2021,5101139691,"1,583.50",Cresta Car Hire
Manchester City Council,Childrens & Education Services,"Consumable items eg Toilet rolls, soap etc",12.07.2021,1907288532,"1,200.00",HIRA CARPETS
Manchester City Council,Childrens & Education Services,"Consumable items eg Toilet rolls, soap etc",12.07.2021,1907288052,891.55,ENTERPRISE RENT A CAR UK
Manchester City Council,Childrens & Education Services,"Consumable items eg Toilet rolls, soap etc",12.07.2021,1907288642,590.00,FLOOR EXPRESS
Manchester City Council,Childrens & Education Services,General Office expenses,12.07.2021,1907288255,"1,000.00",LONGLEY LANE CARPETS
Manchester City Council,Childrens & Education Services,General Office expenses,12.07.2021,1907288664,743.47,Argos Business Solutions
Manchester City Council,Childrens & Education Services,General Office expenses,12.07.2021,1907288170,596.94,Argos Business Solutions
Manchester City Council,Childrens & Education Services,General Office expenses,12.07.2021,1907288456,566.93,Argos Business Solutions
Manchester City Council,Childrens & Education Services,General Office expenses,12.07.2021,1907288596,556.94,Argos Business Solutions
Manchester City Council,Childrens & Education Services,General Office expenses,12.07.2021,1907288241,504.98,Argos Business Solutions
Manchester City Council,Childrens & Education Services,General Office expenses,12.07.2021,1907288496,503.00,Ikea Business Accounts
Manchester City Council,Childrens & Education Services,Professional fees,12.07.2021,5101140485,"2,800.00",KD Safeguarding Ltd
Manchester City Council,Childrens & Education Services,Professional fees,12.07.2021,1907282439,"2,389.00",Pickering Psychology Services Ltd
Manchester City Council,Childrens & Education Services,Professional fees,12.07.2021,1907257890,825.00,Redacted Personal Information
Manchester City Council,Childrens & Education Services,Professional fees,12.07.2021,1907263621,650.00,Redacted Personal Information
Manchester City Council,Childrens & Education Services,Third party payments to other Local Authorities,12.07.2021,5101140551,"12,043.53",New Bridge School
Manchester City Council,Childrens & Education Services,Third party payments to other Local Authorities,12.07.2021,5101140470,"5,434.00",Greenacre School
Manchester City Council,Childrens & Education Services,Payments for services,12.07.2021,5101140454,"9,500.00",MJSSE
Manchester City Council,Childrens & Education Services,Payments for services,12.07.2021,5101140453,"8,500.00",MJSSE
Manchester City Council,Childrens & Education Services,Personal needs of client,12.07.2021,1907288887,"1,341.00",Premier Inn P CARD ONLY
Manchester City Council,Childrens & Education Services,Personal needs of client,12.07.2021,1907288919,"1,008.63",TRAVELODGE P CARD ONLY
Manchester City Council,Childrens & Education Services,Personal needs of client,12.07.2021,1907288842,946.50,Premier Inn P CARD ONLY
Manchester City Council,Childrens & Education Services,Personal needs of client,12.07.2021,1907288825,777.00,MARSTON GROUP LIMITED
Manchester City Council,Childrens & Education Services,Personal needs of client,12.07.2021,1907288847,566.00,HOTEL IBIS
Manchester City Council,Childrens & Education Services,Legal Fees,12.07.2021,1907275206,"1,639.50",Weightmans LLP Solicitors
Manchester City Council,Childrens & Education Services,Legal Fees,12.07.2021,5101140423,"1,781.25",Weightmans LLP Solicitors
Manchester City Council,Childrens & Education Services,Compensation Payments,12.07.2021,1907282461,"3,400.00",Simpson Millar LLP Client No3 Accou
Manchester City Council,Childrens & Education Services,Compensation Payments,12.07.2021,1907263763,"2,149.60",Clyde & Co Claims LLP
Manchester City Council,Childrens & Education Services,Compensation Payments,12.07.2021,1907261967,"1,296.50",Clyde & Co Claims LLP
Manchester City Council,Childrens & Education Services,Compensation Payments,12.07.2021,1907282341,585.00,Department For Work & Pensions
Manchester City Council,Adult Social Care,Agency staff provision,12.07.2021,5101140672,"30,467.50",Healthwork Ltd
Manchester City Council,Adult Social Care,Agency staff provision,12.07.2021,5101140668,"27,187.50",Healthwork Ltd
Manchester City Council,Adult Social Care,Agency staff provision,12.07.2021,5101140670,"27,187.50",Healthwork Ltd
Manchester City Council,Adult Social Care,Agency staff provision,12.07.2021,5101140671,"27,187.50",Healthwork Ltd
Manchester City Council,Adult Social Care,Agency staff provision,12.07.2021,5101140669,"22,435.00",Healthwork Ltd
Manchester City Council,Adult Social Care,Agency staff provision,12.07.2021,5101140673,"-59,250.00",Healthwork Ltd
Manchester City Council,Adult Social Care,Training and Development,12.07.2021,5101140425,800.00,Manchester Metropolitan University
Manchester City Council,Adult Social Care,Training and Development,12.07.2021,5101140427,800.00,Manchester Metropolitan University
Manchester City Council,Adult Social Care,Rents,12.07.2021,5101140516,"38,245.36",Housing Social Ltd
Manchester City Council,Adult Social Care,Rents,12.07.2021,5101140463,"36,833.68",M & Q Properties Management Ltd
Manchester City Council,Adult Social Care,"Consumable items eg Toilet rolls, soap etc",12.07.2021,1907288227,"3,619.18",S AND S SALES MCR LTD
Manchester City Council,Adult Social Care,"Consumable items eg Toilet rolls, soap etc",12.07.2021,1907288249,"3,244.66",S AND S SALES MCR LTD
Manchester City Council,Adult Social Care,"Consumable items eg Toilet rolls, soap etc",12.07.2021,1907288253,"3,244.66",S AND S SALES MCR LTD
Manchester City Council,Adult Social Care,"Consumable items eg Toilet rolls, soap etc",12.07.2021,1907288145,"3,201.83",CARRINGTON RIDING
Manchester City Council,Adult Social Care,"Consumable items eg Toilet rolls, soap etc",12.07.2021,1907288103,"2,240.00",SUMUP  *STUDENT LIVING MA
Manchester City Council,Adult Social Care,"Consumable items eg Toilet rolls, soap etc",12.07.2021,1907288655,"1,944.66",STERLING PROPERTY CO L
Manchester City Council,Adult Social Care,"Consumable items eg Toilet rolls, soap etc",12.07.2021,1907288741,"1,656.00",Premier Inn P CARD ONLY
Manchester City Council,Adult Social Care,"Consumable items eg Toilet rolls, soap etc",12.07.2021,1907288636,"1,296.44",STERLING PROPERTY CO L
Manchester City Council,Adult Social Care,"Consumable items eg Toilet rolls, soap etc",12.07.2021,1907288020,"1,170.00",A1 PROPERTIES
Manchester City Council,Adult Social Care,"Consumable items eg Toilet rolls, soap etc",12.07.2021,1907288422,"1,154.00",COUNTRYNORTH
Manchester City Council,Adult Social Care,"Consumable items eg Toilet rolls, soap etc",12.07.2021,1907288304,"1,000.64",PARK CITY HOTEL
Manchester City Council,Adult Social Care,"Consumable items eg Toilet rolls, soap etc",12.07.2021,1907288308,"1,000.64",PARK CITY HOTEL
Manchester City Council,Adult Social Care,"Consumable items eg Toilet rolls, soap etc",12.07.2021,1907288133,806.95,Argos Business Solutions
Manchester City Council,Adult Social Care,"Consumable items eg Toilet rolls, soap etc",12.07.2021,1907288015,669.99,Argos Business Solutions
Manchester City Council,Adult Social Care,"Consumable items eg Toilet rolls, soap etc",12.07.2021,1907288654,668.54,ALLPAY *YOUR HOUSING GROU
Manchester City Council,Adult Social Care,Catering Provisions,12.07.2021,1907288683,599.00,Argos Business Solutions
Manchester City Council,Adult Social Care,Grant and subscriptions awarded,12.07.2021,5101140473,"8,760.00",Coffee4Craig Ltd
Manchester City Council,Adult Social Care,Bed and Breakfast Accommodation Expenditure,12.07.2021,5101140472,"9,985.00",Redacted Personal Information
Manchester City Council,Adult Social Care,Bed and Breakfast Accommodation Expenditure,12.07.2021,5101140505,"8,025.00",Hala Guest House
Manchester City Council,Adult Social Care,Third party payments relating to Voluntary Organisations,12.07.2021,5101140531,"100,000.00",The Depaul Trust
Manchester City Council,Adult Social Care,Third party payments relating to Voluntary Organisations,12.07.2021,5101140477,"8,158.00",Greater Manchester Immigration Aid
Manchester City Council,Adult Social Care,Third party payments relating to Voluntary Organisations,12.07.2021,5101140491,"6,831.33",Great Places Housing Association
Manchester City Council,Adult Social Care,Third party payments relating to Voluntary Organisations,12.07.2021,5101140494,"-2,290.00",Great Places Housing Association
Manchester City Council,Adult Social Care,Payments for services,12.07.2021,5101140442,"2,150.00",Delphi Medical
Manchester City Council,Adult Social Care,Payments for services,12.07.2021,1907288598,"1,666.00",HOLIDAY INN P CARD ONLY
Manchester City Council,Adult Social Care,Payments for services,12.07.2021,1907288184,"1,114.51",TRAVELODGE P CARD ONLY
Manchester City Council,Adult Social Care,Payments for services,12.07.2021,1907288384,"1,102.00",HOLIDAY INN P CARD ONLY
Manchester City Council,Adult Social Care,Payments for services,12.07.2021,1907288382,962.00,HOLIDAY INN P CARD ONLY
Manchester City Council,Adult Social Care,Payments for services,12.07.2021,1907288550,838.00,Premier Inn P CARD ONLY
Manchester City Council,Adult Social Care,Payments for services,12.07.2021,1907288113,789.28,TRAVELODGE P CARD ONLY
Manchester City Council,Adult Social Care,Payments for services,12.07.2021,1907288629,700.00,Premier Inn P CARD ONLY
Manchester City Council,Adult Social Care,Payments for services,12.07.2021,1907288790,671.00,Premier Inn P CARD ONLY
Manchester City Council,Adult Social Care,Payments for services,12.07.2021,1907288740,632.00,Premier Inn P CARD ONLY
Manchester City Council,Adult Social Care,Payments for services,12.07.2021,1907288186,620.00,Premier Inn P CARD ONLY
Manchester City Council,Adult Social Care,Payments for services,12.07.2021,1907288007,606.00,HOTEL AT BOOKING.COM
Manchester City Council,Adult Social Care,Payments for services,12.07.2021,1907288395,600.00,Premier Inn P CARD ONLY
Manchester City Council,Adult Social Care,Payments for services,12.07.2021,1907288321,593.47,TRAVELODGE P CARD ONLY
Manchester City Council,Adult Social Care,Payments for services,12.07.2021,1907288069,513.93,TRAVELODGE P CARD ONLY
Manchester City Council,Adult Social Care,Payments for services,12.07.2021,1907288656,512.00,Premier Inn P CARD ONLY
Manchester City Council,Adult Social Care,Payments for services,12.07.2021,1907288439,511.00,Premier Inn P CARD ONLY
Manchester City Council,Corporate Services,Professional fees,12.07.2021,5101140541,"2,700.00",Salford City Council
Manchester City Council,Corporate Services,Payments to Contractors,12.07.2021,5101140414,"269,168.67",NSL Ltd
Manchester City Council,Corporate Services,Payments to Contractors,12.07.2021,5101140410,"68,069.72",NSL Ltd
Manchester City Council,Corporate Services,Works and associated costs for Land and Buildings,12.07.2021,5101140087,"52,210.03",ISG Construction Limited
Manchester City Council,Corporate Services,Works and associated costs for Land and Buildings,12.07.2021,5101140096,"33,056.02",Morgan Sindall C & I Ltd
Manchester City Council,Corporate Services,Works and associated costs for Land and Buildings,12.07.2021,5101140096,"6,855.17",Morgan Sindall C & I Ltd
Manchester City Council,Corporate Services,Works and associated costs for Land and Buildings,12.07.2021,5101140504,"1,834.00",Barcham Trees Plc
Manchester City Council,Corporate Services,Works and associated costs for Land and Buildings,12.07.2021,5101140501,"-1,834.00",Barcham Trees Plc
Manchester City Council,Corporate Services,Legal Fees,12.07.2021,1907288823,"1,255.50",HMCTS (Manchester)
Manchester City Council,Corporate Services,Legal Fees,12.07.2021,1907288885,"3,000.00",HMCTS (Manchester)
Manchester City Council,Housing General Fund,Building Works,12.07.2021,5101140438,"237,711.85",Wythenshawe Community Housing Group
Manchester City Council,Housing General Fund,Capital Receipts,12.07.2021,1907282335,"16,900.00",Redrow Homes Lancashire
Manchester City Council,Housing Revenue Account,Northwards Repairs Fee,12.07.2021,5101140468,"11,327.00",Northwards Housing Limited
Manchester City Council,Housing Revenue Account,Private Finance and Public Private partnership initiatives,12.07.2021,5101140441,"1,978.69",Switch2 Energey Limited
Manchester City Council,Housing Revenue Account,Council Dwelling Adaptations,12.07.2021,5101140490,"162,874.13","Jackson, Jackson & Sons Ltd"
Manchester City Council,Chief Executives,Agency staff provision,12.07.2021,5101140500,"1,555.20",Ashberry Recruitment Ltd
Manchester City Council,Chief Executives,Equipment,12.07.2021,1907288421,655.78,ZOOM.US 888-799-9666
Manchester City Council,Chief Executives,Payments to Sub-Contractors,12.07.2021,5101140457,"2,700.00",Getty Images International
Manchester City Council,Chief Executives,Advertising,12.07.2021,1907288775,700.00,Facebook (CARD ONLY)
Manchester City Council,Chief Executives,Examination Fees,12.07.2021,5101140520,"2,056.75",ROAR Forensics Ltd
Manchester City Council,Chief Executives,Internet access,12.07.2021,1907288412,506.45,GEAR4MUSIC
Manchester City Council,Chief Executives,Works and associated costs for Land and Buildings,12.07.2021,5101140547,"24,203.00",NE1 Procurement Services Limited
Manchester City Council,Chief Executives,Works and associated costs for Land and Buildings,12.07.2021,5101140525,"12,906.00",NE1 Procurement Services Limited
Manchester City Council,Chief Executives,Legal Fees,12.07.2021,1907288319,"2,503.55",WWW.ALERETOXICOLOGY.CO.U
Manchester City Council,Chief Executives,Legal Fees,12.07.2021,1907288379,"2,900.00",WWW.ICO.ORG.UK
Manchester City Council,Chief Executives,Legal Fees,12.07.2021,1907288392,"3,101.63",WWW.ALERETOXICOLOGY.CO.U
Manchester City Council,Chief Executives,Compensation Payments,12.07.2021,5101140448,"3,373.89",Weightmans LLP Solicitors
Manchester City Council,Chief Executives,Compensation Payments,12.07.2021,5101140445,"2,102.50",Weightmans LLP Solicitors
Manchester City Council,Chief Executives,Compensation Payments,12.07.2021,5101140447,"2,018.26",Weightmans LLP Solicitors
Manchester City Council,Chief Executives,Compensation Payments,12.07.2021,5101140446,"1,825.00",Weightmans LLP Solicitors
Manchester City Council,Regeneration Finance,Internal Repairs and Maintenance for buildings,12.07.2021,5101140530,"112,803.88",ENGIE Services Ltd
Manchester City Council,Regeneration Finance,External repairs and maintenance for buildings,12.07.2021,5101140412,"5,900.00",P Mcguinness & Co Ltd
Manchester City Council,Regeneration Finance,External repairs and maintenance for buildings,12.07.2021,5101140394,924.00,Cheshire Scaffolds Ltd
Manchester City Council,Regeneration Finance,Security,12.07.2021,5101140535,"3,625.00",Ridge Park Security Ltd
Manchester City Council,Regeneration Finance,Security,12.07.2021,5101140537,"3,400.00",Ridge Park Security Ltd
Manchester City Council,Regeneration Finance,Grant and subscriptions awarded,12.07.2021,5101140522,"8,000.00",Northmoor Community Association
Manchester City Council,Regeneration Finance,Removal and Storage of Furniture,12.07.2021,5101140546,534.89,Restore PLC
Manchester City Council,Highways Services,Payments to Sub-Contractors,12.07.2021,5101140365,"3,815.00",Pell Frischmann Consultants Ltd
Manchester City Council,Highways Services,Payments to Sub-Contractors,12.07.2021,5101140543,"3,438.00",Northern Marking Limited
Manchester City Council,Highways Services,Payments to Sub-Contractors,12.07.2021,5101140435,"1,788.31",Rhodes and Sons Construction Ltd
Manchester City Council,Highways Services,Payments to Sub-Contractors,12.07.2021,5101140434,556.74,Rhodes and Sons Construction Ltd
Manchester City Council,Highways Services,Hire of Machinery,12.07.2021,5101140497,550.00,MTK Breaker Hire and Sales Ltd
Manchester City Council,Highways Services,Hire of Equipment,12.07.2021,5101140497,770.00,MTK Breaker Hire and Sales Ltd
Manchester City Council,Highways Services,Professional fees,12.07.2021,5101140354,"10,878.00",Mace Cost Consultancy Ltd
Manchester City Council,Highways Services,I T Provision,12.07.2021,5101140451,"22,000.00",Buchanan computing Limited
Manchester City Council,Highways Services,Purchase Card Recovery,12.07.2021,1907288994,"1,000.00",Healthwork Ltd
Manchester City Council,General Fund,Grant and subscriptions awarded,12.07.2021,1907287037,"113,382.00",Trafford M B C
Manchester City Council,Manchester Leisure,External repairs and maintenance for buildings,13.07.2021,5101140674,"16,199.03",Laing O'Rourke Construction Ltd
Manchester City Council,Manchester Leisure,Contract Cleaning External,13.07.2021,5101140586,750.00,Northwest Asbestos Removals Ltd
Manchester City Council,Manchester Leisure,"Clothes, Uniform and Laundry",13.07.2021,5101140657,803.00,Earth Anchors Ltd
Manchester City Council,Manchester Leisure,Professional fees,13.07.2021,5101140619,"2,643.46",Redacted Personal Information
Manchester City Council,Manchester Leisure,Professional fees,13.07.2021,5101140644,500.00,Manchester Cathedral
Manchester City Council,Manchester Leisure,I T Provision,13.07.2021,5101140730,"54,741.00",XMA Limited
Manchester City Council,Manchester Leisure,Grant and subscriptions awarded,13.07.2021,5101140692,"3,000.00",Withington Village Regen
Manchester City Council,Manchester Leisure,Grant and subscriptions awarded,13.07.2021,5101140702,"1,260.00",Manchester's Got Talent
Manchester City Council,Manchester Leisure,Grant and subscriptions awarded,13.07.2021,5101140690,500.00,Alexandra Avenue Green Spaces
Manchester City Council,Manchester Leisure,Works and associated costs for Land and Buildings,13.07.2021,5101140674,"325,786.88",Laing O'Rourke Construction Ltd
Manchester City Council,Hospitality + Trading Services,Vehicle Hire Costs,13.07.2021,5101140556,"25,245.24",F.R.Sharrock Ltd
Manchester City Council,Hospitality + Trading Services,Hire of Machinery,13.07.2021,5101140745,"2,486.00",H & C Plant Hire Ltd
Manchester City Council,Hospitality + Trading Services,Hire of Machinery,13.07.2021,5101140741,"2,147.00",H & C Plant Hire Ltd
Manchester City Council,Hospitality + Trading Services,Hire of Equipment,13.07.2021,5101140743,"8,783.87",Fast Hire UK
Manchester City Council,Hospitality + Trading Services,Catering Provisions,13.07.2021,1907289558,"1,061.23",Brake Bros Foodservice Ltd
Manchester City Council,Hospitality + Trading Services,Catering Provisions,13.07.2021,1907289810,891.88,Brake Bros Foodservice Ltd
Manchester City Council,Hospitality + Trading Services,Catering Provisions,13.07.2021,1907289478,871.54,Brake Bros Foodservice Ltd
Manchester City Council,Hospitality + Trading Services,Catering Provisions,13.07.2021,1907289428,849.00,Ralph Livesey Ltd
Manchester City Council,Hospitality + Trading Services,Catering Provisions,13.07.2021,1907289332,823.46,Ralph Livesey Ltd
Manchester City Council,Hospitality + Trading Services,Catering Provisions,13.07.2021,1907289820,821.99,Brake Bros Foodservice Ltd
Manchester City Council,Hospitality + Trading Services,Catering Provisions,13.07.2021,1907289603,728.28,Brake Bros Foodservice Ltd
Manchester City Council,Hospitality + Trading Services,Catering Provisions,13.07.2021,1907290043,716.15,Brake Bros Foodservice Ltd
Manchester City Council,Hospitality + Trading Services,Catering Provisions,13.07.2021,1907289459,709.15,Brake Bros Foodservice Ltd
Manchester City Council,Hospitality + Trading Services,Catering Provisions,13.07.2021,1907289449,708.48,Brake Bros Foodservice Ltd
Manchester City Council,Hospitality + Trading Services,Catering Provisions,13.07.2021,1907289809,690.83,Brake Bros Foodservice Ltd
Manchester City Council,Hospitality + Trading Services,Catering Provisions,13.07.2021,1907289976,679.71,Ralph Livesey Ltd
Manchester City Council,Hospitality + Trading Services,Catering Provisions,13.07.2021,1907289867,677.56,Brake Bros Foodservice Ltd
Manchester City Council,Hospitality + Trading Services,Catering Provisions,13.07.2021,1907290061,672.25,Brake Bros Foodservice Ltd
Manchester City Council,Hospitality + Trading Services,Catering Provisions,13.07.2021,1907289736,668.79,Ralph Livesey Ltd
Manchester City Council,Hospitality + Trading Services,Catering Provisions,13.07.2021,1907290108,667.27,Brake Bros Foodservice Ltd
Manchester City Council,Hospitality + Trading Services,Catering Provisions,13.07.2021,1907289491,646.12,Brake Bros Foodservice Ltd
Manchester City Council,Hospitality + Trading Services,Catering Provisions,13.07.2021,1907289848,639.62,Brake Bros Foodservice Ltd
Manchester City Council,Hospitality + Trading Services,Catering Provisions,13.07.2021,1907289368,634.52,Ralph Livesey Ltd
Manchester City Council,Hospitality + Trading Services,Catering Provisions,13.07.2021,1907289421,631.61,Ralph Livesey Ltd
Manchester City Council,Hospitality + Trading Services,Catering Provisions,13.07.2021,1907290112,630.32,Brake Bros Foodservice Ltd
Manchester City Council,Hospitality + Trading Services,Catering Provisions,13.07.2021,1907289998,630.20,Ralph Livesey Ltd
Manchester City Council,Hospitality + Trading Services,Catering Provisions,13.07.2021,1907290046,615.32,Brake Bros Foodservice Ltd
Manchester City Council,Hospitality + Trading Services,Catering Provisions,13.07.2021,1907289766,615.19,Brake Bros Foodservice Ltd
Manchester City Council,Hospitality + Trading Services,Catering Provisions,13.07.2021,1907289800,614.51,Brake Bros Foodservice Ltd
Manchester City Council,Hospitality + Trading Services,Catering Provisions,13.07.2021,1907289865,606.95,Chicken Joes Limited
Manchester City Council,Hospitality + Trading Services,Catering Provisions,13.07.2021,1907289897,593.31,Chicken Joes Limited
Manchester City Council,Hospitality + Trading Services,Catering Provisions,13.07.2021,1907289790,590.50,Brake Bros Foodservice Ltd
Manchester City Council,Hospitality + Trading Services,Catering Provisions,13.07.2021,1907289456,589.93,Brake Bros Foodservice Ltd
Manchester City Council,Hospitality + Trading Services,Catering Provisions,13.07.2021,1907290007,572.56,Ralph Livesey Ltd
Manchester City Council,Hospitality + Trading Services,Catering Provisions,13.07.2021,1907290070,568.76,Brake Bros Foodservice Ltd
Manchester City Council,Hospitality + Trading Services,Catering Provisions,13.07.2021,1907289904,568.28,Ralph Livesey Ltd
Manchester City Council,Hospitality + Trading Services,Catering Provisions,13.07.2021,1907289611,565.41,Brake Bros Foodservice Ltd
Manchester City Council,Hospitality + Trading Services,Catering Provisions,13.07.2021,1907290122,561.30,Brake Bros Foodservice Ltd
Manchester City Council,Hospitality + Trading Services,Catering Provisions,13.07.2021,1907289692,549.80,Ralph Livesey Ltd
Manchester City Council,Hospitality + Trading Services,Catering Provisions,13.07.2021,1907289738,547.73,Ralph Livesey Ltd
Manchester City Council,Hospitality + Trading Services,Catering Provisions,13.07.2021,1907289327,544.52,Brake Bros Foodservice Ltd
Manchester City Council,Hospitality + Trading Services,Catering Provisions,13.07.2021,1907289424,540.75,Ralph Livesey Ltd
Manchester City Council,Hospitality + Trading Services,Catering Provisions,13.07.2021,1907289613,539.20,Brake Bros Foodservice Ltd
Manchester City Council,Hospitality + Trading Services,Catering Provisions,13.07.2021,1907289875,536.66,Brake Bros Foodservice Ltd
Manchester City Council,Hospitality + Trading Services,Catering Provisions,13.07.2021,1907289541,535.96,Brake Bros Foodservice Ltd
Manchester City Council,Hospitality + Trading Services,Catering Provisions,13.07.2021,1907289756,535.68,Brake Bros Foodservice Ltd
Manchester City Council,Hospitality + Trading Services,Catering Provisions,13.07.2021,1907289658,534.53,Ralph Livesey Ltd
Manchester City Council,Hospitality + Trading Services,Catering Provisions,13.07.2021,1907289379,525.08,Ralph Livesey Ltd
Manchester City Council,Hospitality + Trading Services,Catering Provisions,13.07.2021,1907289477,521.50,Brake Bros Foodservice Ltd
Manchester City Council,Hospitality + Trading Services,Catering Provisions,13.07.2021,1907290142,521.05,Brake Bros Foodservice Ltd
Manchester City Council,Hospitality + Trading Services,Catering Provisions,13.07.2021,1907290130,517.81,Brake Bros Foodservice Ltd
Manchester City Council,Hospitality + Trading Services,Catering Provisions,13.07.2021,1907289792,516.68,Brake Bros Foodservice Ltd
Manchester City Council,Hospitality + Trading Services,Catering Provisions,13.07.2021,1907289900,516.26,Brake Bros Foodservice Ltd
Manchester City Council,Hospitality + Trading Services,Catering Provisions,13.07.2021,1907289463,512.48,Chicken Joes Limited
Manchester City Council,Hospitality + Trading Services,Catering Provisions,13.07.2021,1907289719,512.14,Ralph Livesey Ltd
Manchester City Council,Hospitality + Trading Services,Catering Provisions,13.07.2021,1907289616,512.03,Brake Bros Foodservice Ltd
Manchester City Council,Hospitality + Trading Services,Catering Provisions,13.07.2021,1907289745,501.68,Ralph Livesey Ltd
Manchester City Council,Hospitality + Trading Services,I T Provision,13.07.2021,5101140576,762.50,Blackstone Computer Services Ltd
Manchester City Council,Environment and Operations,Construction Works,13.07.2021,5101140564,"41,117.71",J.Hopkins (Contractors) Ltd.
Manchester City Council,Environment and Operations,Construction Works,13.07.2021,5101140799,"-47,017.68",Electricity North West Limited
Manchester City Council,Childrens & Education Services,Storage Costs,13.07.2021,5101140615,"2,174.93",Restore PLC
Manchester City Council,Childrens & Education Services,Transport Coach Hire,13.07.2021,5101140409,"11,108.00",Sumi Travel Ltd.
Manchester City Council,Childrens & Education Services,Transport Coach Hire,13.07.2021,5101140572,"9,367.50",New City Cars Ltd
Manchester City Council,Childrens & Education Services,Transport Coach Hire,13.07.2021,5101140638,"3,719.50",Lancashire County Council
Manchester City Council,Childrens & Education Services,Transport Coach Hire,13.07.2021,5101140575,"3,634.00",MS Minibuses Ltd
Manchester City Council,Childrens & Education Services,Equipment,13.07.2021,5101140607,"4,426.62",Vision Aid Technologies
Manchester City Council,Childrens & Education Services,"Clothes, Uniform and Laundry",13.07.2021,5101140573,"-2,655.95",Keltic Limited
Manchester City Council,Childrens & Education Services,Professional fees,13.07.2021,1907287157,"10,100.00",Central Chambers
Manchester City Council,Childrens & Education Services,Professional fees,13.07.2021,1907287177,"2,656.25",St Johns Buildings-Barristers
Manchester City Council,Childrens & Education Services,Professional fees,13.07.2021,1907287228,832.38,Pickering Psychology Services Ltd
Manchester City Council,Childrens & Education Services,Professional fees,13.07.2021,1907255306,740.00,Redacted Personal Information
Manchester City Council,Childrens & Education Services,Professional fees,13.07.2021,5101140630,630.00,Redacted Personal Information
Manchester City Council,Childrens & Education Services,Other Insurance Premiums,13.07.2021,5101140601,"1,270.29",Diocese of Salford
Manchester City Council,Childrens & Education Services,Expenditure re Internal Trading Ordered Externally,13.07.2021,5101140627,995.20,Language Line Ltd
Manchester City Council,Childrens & Education Services,Legal Fees,13.07.2021,5101140689,751.75,Warwickshire County Council
Manchester City Council,Childrens & Education Services,Legal Fees,13.07.2021,5101140694,978.96,Warwickshire County Council
Manchester City Council,Childrens & Education Services,Legal Fees,13.07.2021,5101140695,"1,078.78",Warwickshire County Council
Manchester City Council,Childrens & Education Services,Legal Fees,13.07.2021,5101140693,"4,038.33",Warwickshire County Council
Manchester City Council,Adult Social Care,Rents,13.07.2021,5101140574,"85,369.86",Accommodation Links Ltd
Manchester City Council,Adult Social Care,Rents,13.07.2021,5101140605,"27,473.95",Amco Management
Manchester City Council,Adult Social Care,Rents,13.07.2021,1907290291,723.02,AJD PROPERTY LTD
Manchester City Council,Adult Social Care,Rents,13.07.2021,1907290290,648.22,AJD PROPERTY LTD
Manchester City Council,Adult Social Care,Catering Provisions,13.07.2021,1907290199,670.74,Brake Bros Foodservice Ltd
Manchester City Council,Adult Social Care,Grant and subscriptions awarded,13.07.2021,5101140594,"31,453.00",LGBT Foundation
Manchester City Council,Adult Social Care,Grant and subscriptions awarded,13.07.2021,5101140552,"3,011.75",The Mustard Tree
Manchester City Council,Adult Social Care,Funeral and coroner related services,13.07.2021,5101140577,"3,359.00",Greater Manchester Funeral Service
Manchester City Council,Adult Social Care,Bed and Breakfast Accommodation Expenditure,13.07.2021,1907277242,"2,286.00",Voice Connect Ltd
Manchester City Council,Adult Social Care,Third party payments to Health Authority,13.07.2021,5101140701,"998,533.50",Central Mcr Uni Hospital t/a
Manchester City Council,Adult Social Care,Third party payments to Health Authority,13.07.2021,5101140562,"117,824.00",Greater Manchester Mental Health
Manchester City Council,Adult Social Care,Third party payments to Health Authority,13.07.2021,5101140701,"46,115.25",Central Mcr Uni Hospital t/a
Manchester City Council,Adult Social Care,Third party payments to Health Authority,13.07.2021,5101140562,"32,916.00",Greater Manchester Mental Health
Manchester City Council,Adult Social Care,Third party payments to Health Authority,13.07.2021,5101140562,"14,466.00",Greater Manchester Mental Health
Manchester City Council,Adult Social Care,Third party payments to Health Authority,13.07.2021,5101140701,"9,121.75",Central Mcr Uni Hospital t/a
Manchester City Council,Adult Social Care,Third party payments relating to Voluntary Organisations,13.07.2021,5101140583,"4,390.00",Independent Choices Gtr Manchester
Manchester City Council,Adult Social Care,Third party payments relating to Voluntary Organisations,13.07.2021,5101140499,"2,290.00",Great Places Housing Association
Manchester City Council,Adult Social Care,Payments for services,13.07.2021,5101140698,"286,667.48",Standwalk Ltd
Manchester City Council,Adult Social Care,Payments for services,13.07.2021,5101140570,"53,724.82",Brook
Manchester City Council,Adult Social Care,Payments for services,13.07.2021,5101140696,"42,891.50",Brook
Manchester City Council,Adult Social Care,Payments for services,13.07.2021,5101140696,"10,833.32",Brook
Manchester City Council,Adult Social Care,Payments for services,13.07.2021,5101140597,"-53,724.82",Brook
Manchester City Council,Adult Social Care,Supporting People Payments,13.07.2021,5101140599,"12,460.42",People First Housing Association
Manchester City Council,Adult Social Care,Supported Accommodation,13.07.2021,5101140648,777.14,The Guinness Partnership Ltd
Manchester City Council,Adult Social Care,Personal needs of client,13.07.2021,5101140641,"2,301.00",Newlyn Healthcare Limited
Manchester City Council,Adult Social Care,Legal Fees,13.07.2021,1907286385,520.00,Cosgrove Costings Limited
Manchester City Council,Corporate Services,Travel Season Ticket Loan Scheme,13.07.2021,5101140580,636.50,First Bus
Manchester City Council,Corporate Services,Audit Commission Fees,13.07.2021,5101140683,"12,000.00",Kpmg Llp
Manchester City Council,Corporate Services,Welfare Provision Service Awards,13.07.2021,5101140660,785.54,Furniture Resource Centre Ltd
Manchester City Council,Corporate Services,Works and associated costs for Land and Buildings,13.07.2021,5101140642,"22,495.00",Ramboll UK Limited
Manchester City Council,Corporate Services,Works and associated costs for Land and Buildings,13.07.2021,5101140598,"11,170.00",Ramboll UK Limited
Manchester City Council,Corporate Services,Works and associated costs for Land and Buildings,13.07.2021,5101140640,"9,587.50",Ramboll UK Limited
Manchester City Council,Corporate Services,Works and associated costs for Land and Buildings,13.07.2021,5101140653,"8,637.50",Ramboll UK Limited
Manchester City Council,Corporate Services,Works and associated costs for Land and Buildings,13.07.2021,5101140647,"6,950.00",Ramboll UK Limited
Manchester City Council,Corporate Services,Works and associated costs for Land and Buildings,13.07.2021,5101140649,"5,730.00",Ramboll UK Limited
Manchester City Council,Corporate Services,Works and associated costs for Land and Buildings,13.07.2021,5101140593,"5,250.00",Ramboll UK Limited
Manchester City Council,Corporate Services,Works and associated costs for Land and Buildings,13.07.2021,5101140654,"4,972.00",Ramboll UK Limited
Manchester City Council,Corporate Services,Works and associated costs for Land and Buildings,13.07.2021,5101140635,"4,827.50",Ramboll UK Limited
Manchester City Council,Corporate Services,Works and associated costs for Land and Buildings,13.07.2021,5101140596,"4,140.00",Ramboll UK Limited
Manchester City Council,Corporate Services,Works and associated costs for Land and Buildings,13.07.2021,5101140600,"3,812.50",Ramboll UK Limited
Manchester City Council,Corporate Services,Works and associated costs for Land and Buildings,13.07.2021,5101140645,"3,570.00",Ramboll UK Limited
Manchester City Council,Corporate Services,Works and associated costs for Land and Buildings,13.07.2021,5101140620,"3,100.00",Ramboll UK Limited
Manchester City Council,Corporate Services,Works and associated costs for Land and Buildings,13.07.2021,5101140595,"2,910.00",Ramboll UK Limited
Manchester City Council,Corporate Services,Works and associated costs for Land and Buildings,13.07.2021,5101140637,"2,895.00",Ramboll UK Limited
Manchester City Council,Corporate Services,Works and associated costs for Land and Buildings,13.07.2021,5101140652,"2,507.50",Ramboll UK Limited
Manchester City Council,Corporate Services,Works and associated costs for Land and Buildings,13.07.2021,5101140624,"2,495.00",Ramboll UK Limited
Manchester City Council,Corporate Services,Works and associated costs for Land and Buildings,13.07.2021,5101140650,"1,965.00",Ramboll UK Limited
Manchester City Council,Corporate Services,Works and associated costs for Land and Buildings,13.07.2021,5101140617,"1,895.00",Ramboll UK Limited
Manchester City Council,Corporate Services,Works and associated costs for Land and Buildings,13.07.2021,5101140646,"1,650.00",Ramboll UK Limited
Manchester City Council,Corporate Services,Works and associated costs for Land and Buildings,13.07.2021,5101140585,"1,500.00",Ramboll UK Limited
Manchester City Council,Corporate Services,Works and associated costs for Land and Buildings,13.07.2021,5101140643,650.00,Ramboll UK Limited
Manchester City Council,Corporate Services,Works and associated costs for Land and Buildings,13.07.2021,5101140591,610.00,Ramboll UK Limited
Manchester City Council,Corporate Services,Works and associated costs for Land and Buildings,13.07.2021,5101140675,"46,757.06",Warden Construction Ltd
Manchester City Council,Corporate Services,Works and associated costs for Land and Buildings,13.07.2021,5101140483,"2,480.00",BCL
Manchester City Council,Housing Revenue Account,Travel,13.07.2021,5101140466,"3,643.59",Northwards Housing Limited
Manchester City Council,Housing Revenue Account,Travel,13.07.2021,5101140686,"-3,643.59",Northwards Housing Limited
Manchester City Council,Housing Revenue Account,Professional fees,13.07.2021,5101140616,"15,375.00",Capita Property & Infras'ture Ltd
Manchester City Council,Housing Revenue Account,Council Dwelling Adaptations,13.07.2021,5101140558,"2,564.00",Stannah Lift Services Ltd
Manchester City Council,Chief Executives,Payments to Sub-Contractors,13.07.2021,5101140608,"1,155.80",Redacted Personal Information
Manchester City Council,Chief Executives,Funeral and coroner related services,13.07.2021,5101140613,"5,343.00",The Pennine Acute Hospital Nhs Trus
Manchester City Council,Chief Executives,Funeral and coroner related services,13.07.2021,5101140612,"1,753.80",Redacted Personal Information
Manchester City Council,Chief Executives,Funeral and coroner related services,13.07.2021,5101140610,"1,753.80",Redacted Personal Information
Manchester City Council,Chief Executives,Works and associated costs for Land and Buildings,13.07.2021,5101140633,"2,750.00",Pannone Corporate LLP
Manchester City Council,Regeneration Finance,Refuse Collection,13.07.2021,1907288929,"5,050.01",Shred-It Ltd
Manchester City Council,Regeneration Finance,Professional fees,13.07.2021,5101140684,"6,950.00",Kpmg Llp
Manchester City Council,Regeneration Finance,Professional fees,13.07.2021,5101140628,"6,000.00",Wenta
Manchester City Council,Regeneration Finance,Professional fees,13.07.2021,5101140579,"4,100.00",Redacted Personal Information
Manchester City Council,Regeneration Finance,Professional fees,13.07.2021,5101140587,"3,600.00",Redacted Personal Information
Manchester City Council,Regeneration Finance,Professional fees,13.07.2021,5101140589,"3,550.00",Redacted Personal Information
Manchester City Council,Regeneration Finance,Professional fees,13.07.2021,1907287151,"3,345.00",DICEY TECH LTD
Manchester City Council,Regeneration Finance,Professional fees,13.07.2021,5101140685,"-6,950.00",Kpmg Llp
Manchester City Council,Regeneration Finance,Legal Fees,13.07.2021,5101140687,"1,500.00",No 5 Chambers Ltd
Manchester City Council,Regeneration Finance,Legal Fees,13.07.2021,5101140631,"5,485.00",Pinsent Masons LLP
Manchester City Council,Highways Services,Building Materials for direct delivery,13.07.2021,5101140739,976.25,Benchmark Building Supplies Ltd
Manchester City Council,Highways Services,Building Materials for direct delivery,13.07.2021,5101140677,865.00,TARMAC
Manchester City Council,Highways Services,Building Materials for direct delivery,13.07.2021,5101140678,686.81,TARMAC
Manchester City Council,Highways Services,Payments to Sub-Contractors,13.07.2021,5101140566,"8,360.00",J.Hopkins (Contractors) Ltd.
Manchester City Council,Highways Services,Payments to Sub-Contractors,13.07.2021,5101140568,"3,960.00",J.Hopkins (Contractors) Ltd.
Manchester City Council,Highways Services,Payments to Sub-Contractors,13.07.2021,1907283353,949.75,Hurstwood Estates Ltd
Manchester City Council,Highways Services,Purchase of stores for re-distribution,13.07.2021,5101140738,667.52,Benchmark Building Supplies Ltd
Manchester City Council,Highways Services,Compensation Payments,13.07.2021,1907290287,"4,961.00",Amelans Solicitors
Manchester City Council,Highways Services,Compensation Payments,13.07.2021,1907287168,"4,800.00",Amelans Solicitors
Manchester City Council,General Fund,Levies,13.07.2021,1907212845,"3,752,540.00",GMCA
Manchester City Council,Manchester Leisure,Equipment,14.07.2021,5101140816,649.82,Chelford Farm Supplies Ltd
Manchester City Council,Manchester Leisure,Payments to Sub-Contractors,14.07.2021,5101139966,"1,350.00",Groundwork Landscapes Ltd
Manchester City Council,Manchester Leisure,Hire of Equipment,14.07.2021,5101140722,990.00,Tube UK Ltd
Manchester City Council,Manchester Leisure,Professional fees,14.07.2021,5101140795,"3,325.75",Experian Limited
Manchester City Council,Manchester Leisure,Professional fees,14.07.2021,5101140796,"2,059.50",Experian Limited
Manchester City Council,Manchester Leisure,Professional fees,14.07.2021,5101140809,"1,999.00",Manchester Art Gallery
Manchester City Council,Manchester Leisure,Grant and subscriptions awarded,14.07.2021,5101140843,"24,292.40",Greater Manchester Police
Manchester City Council,Manchester Leisure,Grant and subscriptions awarded,14.07.2021,5101140844,"2,752.54",Cheshire & Greater Manchester
Manchester City Council,Manchester Leisure,Special Events,14.07.2021,5101140736,"1,167.70",Total Rope Solutions Limited
Manchester City Council,Hospitality + Trading Services,Refuse Collection,14.07.2021,5101140478,"74,898.83",Fairfield Environmental Serv Ltd
Manchester City Council,Hospitality + Trading Services,Vehicle Fuel Costs,14.07.2021,5101140791,"1,142.40",Standard Fuels Oils
Manchester City Council,Environment and Operations,Construction Works,14.07.2021,5101140716,"1,707.30",GMCA
Manchester City Council,Childrens & Education Services,Transport Coach Hire,14.07.2021,5101140760,"7,929.47",MCR Blackcab Ltd
Manchester City Council,Childrens & Education Services,Transport Coach Hire,14.07.2021,5101140761,"3,687.03",MCR Blackcab Ltd
Manchester City Council,Childrens & Education Services,Furniture,14.07.2021,5101140988,694.02,Eps Supplies Ltd
Manchester City Council,Childrens & Education Services,Furniture,14.07.2021,5101140937,647.39,Eps Supplies Ltd
Manchester City Council,Childrens & Education Services,Furniture,14.07.2021,5101140987,530.38,Eps Supplies Ltd
Manchester City Council,Childrens & Education Services,Training and Development,14.07.2021,5101140769,519.91,Little Superstars Sports Club
Manchester City Council,Childrens & Education Services,Stationery,14.07.2021,5101140428,800.00,Childrens & Families Across Borders
Manchester City Council,Childrens & Education Services,Professional fees,14.07.2021,5101140783,"40,000.00",Capita Business Services Ltd
Manchester City Council,Childrens & Education Services,Professional fees,14.07.2021,5101140727,"4,736.25",Russell & Russell Solicitors LLP
Manchester City Council,Childrens & Education Services,Private Finance and Public Private partnership initiatives,14.07.2021,5101140880,"408,929.89",Manchester School Services Limited
Manchester City Council,Childrens & Education Services,Third party payments relating to Voluntary Organisations,14.07.2021,5101140721,"8,178.01",Manchester Settlement
Manchester City Council,Childrens & Education Services,Third party payments relating to Voluntary Organisations,14.07.2021,5101140720,"5,190.64",Manchester Settlement
Manchester City Council,Childrens & Education Services,Payments for services,14.07.2021,5101140818,"65,329.08",Belmont School Ltd
Manchester City Council,Childrens & Education Services,Payments for services,14.07.2021,5101140819,"63,548.37",Belmont School Ltd
Manchester City Council,Childrens & Education Services,Payments for services,14.07.2021,5101140867,"1,169.91",DHP Care Limited
Manchester City Council,Childrens & Education Services,Legal Fees,14.07.2021,5101140753,932.63,Warwickshire County Council
Manchester City Council,Childrens & Education Services,Legal Fees,14.07.2021,5101140707,"1,050.67",Warwickshire County Council
Manchester City Council,Childrens & Education Services,Legal Fees,14.07.2021,5101140869,"1,270.00",Weightmans LLP Solicitors
Manchester City Council,Childrens & Education Services,Legal Fees,14.07.2021,5101140780,"1,345.13",Warwickshire County Council
Manchester City Council,Childrens & Education Services,Legal Fees,14.07.2021,5101140786,"1,712.98",Warwickshire County Council
Manchester City Council,Childrens & Education Services,Legal Fees,14.07.2021,5101140859,"3,134.67",Warwickshire County Council
Manchester City Council,Childrens & Education Services,Legal Fees,14.07.2021,5101140705,"3,710.17",Warwickshire County Council
Manchester City Council,Childrens & Education Services,Legal Fees,14.07.2021,5101140785,"4,066.28",Warwickshire County Council
Manchester City Council,Childrens & Education Services,Legal Fees,14.07.2021,5101140868,"4,577.00",Weightmans LLP Solicitors
Manchester City Council,Childrens & Education Services,Legal Fees,14.07.2021,5101140776,"4,852.30",Warwickshire County Council
Manchester City Council,Adult Social Care,Rents,14.07.2021,5101140729,"86,011.00",Accommodation Links Ltd
Manchester City Council,Adult Social Care,Rents,14.07.2021,5101140725,"84,879.57",Accommodation Links Ltd
Manchester City Council,Adult Social Care,Rents,14.07.2021,5101140807,"8,618.79",Eeven Homes Ltd.
Manchester City Council,Adult Social Care,Rents,14.07.2021,5101140813,"4,060.75",Houses4Homes 4U Ltd
Manchester City Council,Adult Social Care,Equipment,14.07.2021,5101140726,603.18,Drive Devilbiss Healthcare Ltd
Manchester City Council,Adult Social Care,Equipment,14.07.2021,5101140751,598.00,NRS Healthcare
Manchester City Council,Adult Social Care,Equipment,14.07.2021,5101140752,580.00,NRS Healthcare
Manchester City Council,Adult Social Care,Grant and subscriptions awarded,14.07.2021,5101140651,"120,243.93",Big Life Centres
Manchester City Council,Adult Social Care,Bed and Breakfast Accommodation Expenditure,14.07.2021,5101140815,"31,380.50",Redacted Personal Information
Manchester City Council,Adult Social Care,Third party payments relating to Voluntary Organisations,14.07.2021,5101140771,"6,469.08",Talbot House Support Centre
Manchester City Council,Adult Social Care,Payments for services,14.07.2021,5101140850,"286,667.48",Standwalk Ltd
Manchester City Council,Adult Social Care,Personal needs of client,14.07.2021,5101140841,"1,078.00",Accora
Manchester City Council,Adult Social Care,Personal needs of client,14.07.2021,5101140977,"-1,110.00",G & S Smirthwaite Limited
Manchester City Council,Adult Social Care,Extra Care Sheltered Housing Payments,14.07.2021,5101140772,"14,965.44",Independent Living Alliance
Manchester City Council,Corporate Services,Hire of Equipment,14.07.2021,5101140862,"2,855.10",Flowbird Smart City Uk Ltd
Manchester City Council,Corporate Services,Stationery,14.07.2021,5101140709,710.00,Bennett Workplace Solutions Ltd
Manchester City Council,Corporate Services,Compensation Payments,14.07.2021,1907289309,"1,000.00",Redacted Personal Information
Manchester City Council,Corporate Services,Grant and subscriptions awarded,14.07.2021,5101140758,"1,600.00",Tameside Metropolitan Bouough
Manchester City Council,Corporate Services,Works and associated costs for Land and Buildings,14.07.2021,5101140871,"65,000.00",Purcell Architecture Limited
Manchester City Council,Corporate Services,Works and associated costs for Land and Buildings,14.07.2021,5101140877,"32,698.00",Mace Ltd
Manchester City Council,Corporate Services,Works and associated costs for Land and Buildings,14.07.2021,5101140872,"15,000.00",Purcell Architecture Limited
Manchester City Council,Corporate Services,Works and associated costs for Land and Buildings,14.07.2021,5101140876,"2,175.00",Planit
Manchester City Council,Corporate Services,Works and associated costs for Land and Buildings,14.07.2021,5101140877,"2,000.00",Mace Ltd
Manchester City Council,Corporate Services,Works and associated costs for Land and Buildings,14.07.2021,5101140874,"1,767.00",Purcell Architecture Limited
Manchester City Council,Corporate Services,Works and associated costs for Land and Buildings,14.07.2021,5101140877,"1,000.00",Mace Ltd
Manchester City Council,Corporate Services,Works and associated costs for Land and Buildings,14.07.2021,5101140877,680.00,Mace Ltd
Manchester City Council,Housing General Fund,Building Works,14.07.2021,1907293420,"6,494.00",Stannah Lift Services Ltd
Manchester City Council,Housing General Fund,Building Works,14.07.2021,1907293418,"6,387.00",Stannah Lift Services Ltd
Manchester City Council,Housing General Fund,Building Works,14.07.2021,1907293419,"6,015.00",Stannah Lift Services Ltd
Manchester City Council,Housing General Fund,Building Works,14.07.2021,1907293417,"3,178.77",Prism Medical UK Carefree Division
Manchester City Council,Housing Revenue Account,Professional fees,14.07.2021,5101140840,"15,400.00",Capita Property & Infras'ture Ltd
Manchester City Council,Housing Revenue Account,Surplus property Fees,14.07.2021,1907293427,"1,710.00",H M Revenues and Customs
Manchester City Council,Chief Executives,Agency staff provision,14.07.2021,5101140852,"79,904.67",Sellick Partnership (Legal) Ltd
Manchester City Council,Chief Executives,Agency staff provision,14.07.2021,5101140762,"10,450.00",NES UK Limited
Manchester City Council,Chief Executives,Agency staff provision,14.07.2021,5101140123,"4,044.90",Cadence Resourcing Ltd
Manchester City Council,Chief Executives,Agency staff provision,14.07.2021,5101140832,"4,044.90",Cadence Resourcing Ltd
Manchester City Council,Chief Executives,Agency staff provision,14.07.2021,5101140830,"-4,044.90",Cadence Resourcing Ltd
Manchester City Council,Chief Executives,Payments to Sub-Contractors,14.07.2021,5101140790,"7,500.00",Enventure Research Ltd
Manchester City Council,Chief Executives,Professional fees,14.07.2021,5101140513,"2,250.00",Significan't (UK) Ltd
Manchester City Council,Chief Executives,Professional fees,14.07.2021,1907285161,"1,925.00",Redacted Personal Information
Manchester City Council,Chief Executives,Professional fees,14.07.2021,1907287937,787.40,Forensic Testing Service Ltd
Manchester City Council,Chief Executives,ICT Support & Maintenance,14.07.2021,5101140626,690.00,Finastra
Manchester City Council,Chief Executives,I T Provision,14.07.2021,5101140711,"16,700.00",Liquidlogic Ltd
Manchester City Council,Chief Executives,Advertising,14.07.2021,5101140718,"4,056.81",Global Radio Services Ltd
Manchester City Council,Chief Executives,Advertising,14.07.2021,5101140715,"1,700.00",Reach Publishing Services Ltd
Manchester City Council,Chief Executives,Advertising,14.07.2021,5101140853,949.05,TES Global Ltd
Manchester City Council,Chief Executives,Advertising,14.07.2021,5101140854,949.05,TES Global Ltd
Manchester City Council,Chief Executives,Advertising,14.07.2021,5101140855,949.05,TES Global Ltd
Manchester City Council,Chief Executives,Licences Purchase,14.07.2021,5101140655,"69,972.00",Spacecraft Creative Limited
Manchester City Council,Chief Executives,Third party payments relating to Voluntary Organisations,14.07.2021,5101140728,"105,699.50",HOME
Manchester City Council,Chief Executives,Compensation Payments,14.07.2021,5101140775,"3,630.07",Russell & Russell Solicitors LLP
Manchester City Council,Chief Executives,Compensation Payments,14.07.2021,1907283339,"2,574.40",Pickering Psychology Services Ltd
Manchester City Council,Chief Executives,Compensation Payments,14.07.2021,5101140755,"2,236.50",Russell & Russell Solicitors LLP
Manchester City Council,Chief Executives,Compensation Payments,14.07.2021,5101140759,"1,618.75",Russell & Russell Solicitors LLP
Manchester City Council,Chief Executives,Compensation Payments,14.07.2021,5101140781,"1,612.50",Russell & Russell Solicitors LLP
Manchester City Council,Chief Executives,Compensation Payments,14.07.2021,1907287161,"1,183.56",Antony Hodari & Co Solicitors
Manchester City Council,Chief Executives,Compensation Payments,14.07.2021,1907286398,700.00,Kenworthy's Chambers
Manchester City Council,Chief Executives,Compensation Payments,14.07.2021,1907285158,650.00,Redacted Personal Information
Manchester City Council,Chief Executives,Compensation Payments,14.07.2021,1907286409,561.33,Forensic Testing Service Ltd
Manchester City Council,Chief Executives,Compensation Payments,14.07.2021,1907285166,520.00,Cosgrove Costing Ltd
Manchester City Council,Chief Executives,Compensation Payments,14.07.2021,1907282573,510.60,Forensic Testing Service Ltd
Manchester City Council,Regeneration Finance,Agency staff provision,14.07.2021,5101140774,"8,000.00",Odgers Berndtson
Manchester City Council,Regeneration Finance,Equipment,14.07.2021,5101140257,"1,863.54",Alerter Group Plc
Manchester City Council,Regeneration Finance,Training and Development,14.07.2021,5101140706,"2,839.00",Ncfe
Manchester City Council,Regeneration Finance,I T Provision,14.07.2021,5101140708,750.00,GATEWAY QUALIFICATIONS
Manchester City Council,Regeneration Finance,Professional fees,14.07.2021,5101140714,"1,033.00",AA Projects Ltd
Manchester City Council,Regeneration Finance,Professional fees,14.07.2021,5101140757,500.00,Concerto Support Services
Manchester City Council,Regeneration Finance,Grant and subscriptions awarded,14.07.2021,5101140847,"8,000.00",The Booth Centre
Manchester City Council,Regeneration Finance,Grant and subscriptions awarded,14.07.2021,5101140851,"8,000.00",Your Employment Service CIC (YES)
Manchester City Council,Regeneration Finance,Planning Application Fees,14.07.2021,1907290172,512.00,Kousar
Manchester City Council,Regeneration Finance,Legal Fees,14.07.2021,5101140828,600.00,Landmark Chambers
Manchester City Council,Highways Services,Payments to Sub-Contractors,14.07.2021,5101140878,"23,338.60",Network Rail Infrastructure Ltd
Manchester City Council,Highways Services,Payments to Sub-Contractors,14.07.2021,5101140879,"19,281.05",Network Rail Infrastructure Ltd
Manchester City Council,Highways Services,Payments to Sub-Contractors,14.07.2021,5101140737,"19,169.69",Bt Redcare
Manchester City Council,Highways Services,Payments to Sub-Contractors,14.07.2021,5101140697,"15,258.56",Northern Marking Limited
Manchester City Council,Highways Services,Compensation Payments,14.07.2021,1907293485,"6,210.00",WARD AND RYDER
Manchester City Council,Manchester Leisure,Electricity,15.07.2021,1907294353,839.73,Scottish & Southern Energy Plc
Manchester City Council,Manchester Leisure,Electricity,15.07.2021,1907294323,753.23,Scottish & Southern Energy Plc
Manchester City Council,Manchester Leisure,Electricity,15.07.2021,1907294324,566.52,Scottish & Southern Energy Plc
Manchester City Council,Manchester Leisure,Electricity,15.07.2021,1907294280,535.04,Scottish & Southern Energy Plc
Manchester City Council,Manchester Leisure,Water Service Charges - Metered,15.07.2021,1907294758,897.68,Anglian Water Business (National)
Manchester City Council,Manchester Leisure,Payments to Sub-Contractors,15.07.2021,5101141137,"9,848.86",Greenfingers Landscape Ltd
Manchester City Council,Manchester Leisure,Professional fees,15.07.2021,1907294819,"1,440,000.00",Young Manchester
Manchester City Council,Manchester Leisure,Professional fees,15.07.2021,5101141068,900.00,A.M. Dassu
Manchester City Council,Manchester Leisure,Professional fees,15.07.2021,5101141131,750.00,Redacted Personal Information
Manchester City Council,Manchester Leisure,Professional fees,15.07.2021,5101140907,641.00,Enlightened Mind Ltd
Manchester City Council,Manchester Leisure,I T Provision,15.07.2021,5101141037,"2,000.00",Ican Web Design
Manchester City Council,Manchester Leisure,Grant and subscriptions awarded,15.07.2021,5101140905,"3,000.00",Didsbury Village East RA
Manchester City Council,Manchester Leisure,Grant and subscriptions awarded,15.07.2021,5101141097,"1,000.00",City South Manchester Housing Trust
Manchester City Council,Manchester Leisure,Library Materials Acquisition,15.07.2021,1907293172,"4,983.00","Dun & Bradstreet Ltd.,"
Manchester City Council,Manchester Leisure,Library Materials Acquisition,15.07.2021,1907293195,895.92,ProQuest
Manchester City Council,Manchester Leisure,Special Events,15.07.2021,5101141047,"1,950.00",Redacted Personal Information
Manchester City Council,Manchester Leisure,Special Events,15.07.2021,5101141038,"1,000.00",Manchester Animation Festival Ltd
Manchester City Council,Hospitality + Trading Services,Electricity,15.07.2021,1907294257,"4,836.19",Scottish & Southern Energy Plc
Manchester City Council,Hospitality + Trading Services,Electricity,15.07.2021,1907294319,811.42,Scottish & Southern Energy Plc
Manchester City Council,Hospitality + Trading Services,Electricity,15.07.2021,1907294320,811.42,Scottish & Southern Energy Plc
Manchester City Council,Hospitality + Trading Services,Water Service Charges - Metered,15.07.2021,1907294711,"2,144.77",Anglian Water Business (National)
Manchester City Council,Hospitality + Trading Services,Insurance,15.07.2021,1907282345,815.00,Zurich Municipal
Manchester City Council,Hospitality + Trading Services,Hire of Machinery,15.07.2021,5101141107,"5,265.42",Readyplant Ltd
Manchester City Council,Hospitality + Trading Services,Hire of Machinery,15.07.2021,5101141108,"5,026.07",Readyplant Ltd
Manchester City Council,Hospitality + Trading Services,Hire of Machinery,15.07.2021,5101141089,"1,038.50",R & M Developments Ltd
Manchester City Council,Hospitality + Trading Services,Hire of Machinery,15.07.2021,5101141090,"1,038.50",R & M Developments Ltd
Manchester City Council,Hospitality + Trading Services,Hire of Machinery,15.07.2021,5101141100,"1,038.50",R & M Developments Ltd
Manchester City Council,Hospitality + Trading Services,Hire of Machinery,15.07.2021,5101141101,"1,038.50",R & M Developments Ltd
Manchester City Council,Hospitality + Trading Services,Hire of Machinery,15.07.2021,5101141116,"1,038.50",R & M Developments Ltd
Manchester City Council,Hospitality + Trading Services,Hire of Machinery,15.07.2021,5101141125,"1,038.50",R & M Developments Ltd
Manchester City Council,Hospitality + Trading Services,Hire of Machinery,15.07.2021,5101141091,830.80,R & M Developments Ltd
Manchester City Council,Hospitality + Trading Services,Hire of Machinery,15.07.2021,5101141092,830.80,R & M Developments Ltd
Manchester City Council,Hospitality + Trading Services,Hire of Machinery,15.07.2021,5101141103,830.80,R & M Developments Ltd
Manchester City Council,Hospitality + Trading Services,Hire of Machinery,15.07.2021,5101141105,830.80,R & M Developments Ltd
Manchester City Council,Hospitality + Trading Services,Hire of Machinery,15.07.2021,5101141127,623.10,R & M Developments Ltd
Manchester City Council,Hospitality + Trading Services,Hire of Machinery,15.07.2021,5101141132,"-1,038.50",R & M Developments Ltd
Manchester City Council,Hospitality + Trading Services,Legal Fees,15.07.2021,1907287162,"1,050.00",Civil Costs Specialist Ltd
Manchester City Council,Environment and Operations,Professional fees,15.07.2021,5101141075,"1,000.00",Oldham Borough Council
Manchester City Council,Environment and Operations,Construction Works,15.07.2021,5101140548,"85,917.88",Bethell Construction Ltd
Manchester City Council,Environment and Operations,Construction Works,15.07.2021,5101140808,"2,971.95",SSE Enterprise Telecoms
Manchester City Council,Childrens & Education Services,Electricity,15.07.2021,1907294322,"1,365.60",Scottish & Southern Energy Plc
Manchester City Council,Childrens & Education Services,Electricity,15.07.2021,1907294271,849.49,Scottish & Southern Energy Plc
Manchester City Council,Childrens & Education Services,Water Service Charges - Metered,15.07.2021,1907294663,781.82,Anglian Water Business (National)
Manchester City Council,Childrens & Education Services,Transport Coach Hire,15.07.2021,5101140033,"8,657.00",Elite Transport
Manchester City Council,Childrens & Education Services,Professional fees,15.07.2021,5101140978,"1,099.00",Cellmark
Manchester City Council,Childrens & Education Services,Professional fees,15.07.2021,5101140928,504.00,Cellmark
Manchester City Council,Childrens & Education Services,Professional fees,15.07.2021,5101140976,504.00,Cellmark
Manchester City Council,Childrens & Education Services,Professional Services Provision,15.07.2021,1907294823,"3,217.00",FUNERAL PARTNERS LTD
Manchester City Council,Childrens & Education Services,Private Finance and Public Private partnership initiatives,15.07.2021,5101140493,"79,572.21",NU3PS
Manchester City Council,Childrens & Education Services,Third party payments to other Local Authorities,15.07.2021,5101140932,"16,983.75",Droylsden Academy
Manchester City Council,Childrens & Education Services,Third party payments to other Local Authorities,15.07.2021,5101140929,"3,256.00",Oasis Academy Broadoak
Manchester City Council,Childrens & Education Services,Third party payments relating to Voluntary Organisations,15.07.2021,5101141011,"4,285.00",Healthy Body Healthy Mind CIC
Manchester City Council,Childrens & Education Services,Payments for services,15.07.2021,5101141057,"3,966.11",The Together Trust
Manchester City Council,Childrens & Education Services,Payments for services,15.07.2021,5101141058,"1,870.52",The Together Trust
Manchester City Council,Childrens & Education Services,Payments for services,15.07.2021,5101141056,"1,560.04",The Together Trust
Manchester City Council,Childrens & Education Services,Payments for services,15.07.2021,5101141062,"1,060.15",The Together Trust
Manchester City Council,Childrens & Education Services,Payments for services,15.07.2021,5101141060,589.00,The Together Trust
Manchester City Council,Childrens & Education Services,Legal Fees,15.07.2021,5101141095,"1,512.50",Russell & Russell Solicitors LLP
Manchester City Council,Childrens & Education Services,Legal Fees,15.07.2021,5101141077,"1,691.50",Russell & Russell Solicitors LLP
Manchester City Council,Childrens & Education Services,Legal Fees,15.07.2021,5101141084,"3,618.75",Russell & Russell Solicitors LLP
Manchester City Council,Childrens & Education Services,Legal Fees,15.07.2021,5101141094,"3,960.55",Russell & Russell Solicitors LLP
Manchester City Council,Childrens & Education Services,Legal Fees,15.07.2021,5101141087,"4,049.88",Russell & Russell Solicitors LLP
Manchester City Council,Adult Social Care,Agency staff provision,15.07.2021,5101141129,"28,463.75",Central Mcr Uni Hospital t/a
Manchester City Council,Adult Social Care,Electricity,15.07.2021,1907294156,627.03,Scottish & Southern Energy Plc
Manchester City Council,Adult Social Care,Electricity,15.07.2021,1700121820,-831.17,Scottish & Southern Energy Plc
Manchester City Council,Adult Social Care,Rents,15.07.2021,5101141073,"133,444.99",District Homes Cic
Manchester City Council,Adult Social Care,Rents,15.07.2021,5101140963,"4,430.40",Houses4Homes 4U Ltd
Manchester City Council,Adult Social Care,Water Service Charges - Metered,15.07.2021,1907294685,681.17,Anglian Water Business (National)
Manchester City Council,Adult Social Care,Security,15.07.2021,5101140961,"3,213.00",UNIQUE SPECIALIST SERVICES
Manchester City Council,Adult Social Care,Security,15.07.2021,5101140964,"3,213.00",UNIQUE SPECIALIST SERVICES
Manchester City Council,Adult Social Care,Security,15.07.2021,5101140966,"3,213.00",UNIQUE SPECIALIST SERVICES
Manchester City Council,Adult Social Care,Security,15.07.2021,5101140967,"3,213.00",UNIQUE SPECIALIST SERVICES
Manchester City Council,Adult Social Care,Security,15.07.2021,5101140952,"1,071.00",UNIQUE SPECIALIST SERVICES
Manchester City Council,Adult Social Care,Security,15.07.2021,5101140955,"1,071.00",UNIQUE SPECIALIST SERVICES
Manchester City Council,Adult Social Care,Security,15.07.2021,5101140958,"1,071.00",UNIQUE SPECIALIST SERVICES
Manchester City Council,Adult Social Care,Security,15.07.2021,5101140959,"1,071.00",UNIQUE SPECIALIST SERVICES
Manchester City Council,Adult Social Care,Equipment,15.07.2021,5101140980,723.45,R82 Uk Ltd
Manchester City Council,Adult Social Care,Bed and Breakfast Accommodation Expenditure,15.07.2021,5101141053,"31,430.00",Redacted Personal Information
Manchester City Council,Adult Social Care,Bed and Breakfast Accommodation Expenditure,15.07.2021,5101141067,"16,865.00",Intra City Construction Group
Manchester City Council,Adult Social Care,Bed and Breakfast Accommodation Expenditure,15.07.2021,5101140897,"11,052.00",Redacted Personal Information
Manchester City Council,Adult Social Care,Third party payments to Health Authority,15.07.2021,5101141003,"8,674.95",Central Mcr Uni Hospital t/a
Manchester City Council,Adult Social Care,Third party payments relating to Voluntary Organisations,15.07.2021,5101141085,"21,236.80",Change Grow Live
Manchester City Council,Adult Social Care,Third party payments relating to Voluntary Organisations,15.07.2021,5101141008,"2,500.00",Sow the City
Manchester City Council,Adult Social Care,Third party payments relating to Voluntary Organisations,15.07.2021,5101141028,"2,500.00",Sow the City
Manchester City Council,Adult Social Care,Personal needs of client,15.07.2021,5101141040,"1,110.00",G & S Smirthwaite Limited
Manchester City Council,Adult Social Care,Extra Care Sheltered Housing Payments,15.07.2021,5101141076,"14,965.44",Independent Living Alliance
Manchester City Council,Adult Social Care,Extra Care Sheltered Housing Payments,15.07.2021,5101141078,"13,362.00",Independent Living Alliance
Manchester City Council,Adult Social Care,Extra Care Sheltered Housing Payments,15.07.2021,5101141081,"1,603.44",Independent Living Alliance
Manchester City Council,Corporate Services,Electricity,15.07.2021,1907294420,"1,203.90",Scottish & Southern Energy Plc
Manchester City Council,Corporate Services,Electricity,15.07.2021,1907294124,"1,078.55",Npower
Manchester City Council,Corporate Services,Electricity,15.07.2021,1907294122,"1,034.83",Npower
Manchester City Council,Corporate Services,Electricity,15.07.2021,1907294123,952.77,Npower
Manchester City Council,Corporate Services,Electricity,15.07.2021,1907294421,833.29,Scottish & Southern Energy Plc
Manchester City Council,Corporate Services,Electricity,15.07.2021,1907294412,768.78,Scottish & Southern Energy Plc
Manchester City Council,Corporate Services,Electricity,15.07.2021,1907294242,739.97,Scottish & Southern Energy Plc
Manchester City Council,Corporate Services,Electricity,15.07.2021,1907294366,726.03,Scottish & Southern Energy Plc
Manchester City Council,Corporate Services,Electricity,15.07.2021,1907294119,661.35,Npower
Manchester City Council,Corporate Services,Electricity,15.07.2021,1907294118,638.25,Npower
Manchester City Council,Corporate Services,Electricity,15.07.2021,1907294416,621.69,Scottish & Southern Energy Plc
Manchester City Council,Corporate Services,Electricity,15.07.2021,1907294268,616.62,Scottish & Southern Energy Plc
Manchester City Council,Corporate Services,Electricity,15.07.2021,1907294314,599.20,Scottish & Southern Energy Plc
Manchester City Council,Corporate Services,Electricity,15.07.2021,1907294120,581.12,Npower
Manchester City Council,Corporate Services,Electricity,15.07.2021,1907294125,532.51,Npower
Manchester City Council,Corporate Services,Electricity,15.07.2021,1907294121,506.06,Npower
Manchester City Council,Corporate Services,Electricity,15.07.2021,1907294413,504.45,Scottish & Southern Energy Plc
Manchester City Council,Corporate Services,Electricity,15.07.2021,1700121779,-779.58,Npower
Manchester City Council,Corporate Services,Electricity,15.07.2021,1700121780,-892.93,Npower
Manchester City Council,Corporate Services,Electricity,15.07.2021,1700121778,-952.77,Npower
Manchester City Council,Corporate Services,Electricity,15.07.2021,1700121823,"-2,528.52",Scottish & Southern Energy Plc
Manchester City Council,Corporate Services,Electricity,15.07.2021,1700121822,"-2,582.60",Scottish & Southern Energy Plc
Manchester City Council,Corporate Services,Water Service Charges - Metered,15.07.2021,1907294763,"6,268.18",Anglian Water Business (National)
Manchester City Council,Corporate Services,Postage,15.07.2021,5101140984,"8,018.98",Royal Mail Group Plc
Manchester City Council,Corporate Services,Welfare Provision Service Awards,15.07.2021,5101141066,"1,254.01",Furniture Resource Centre Ltd
Manchester City Council,Corporate Services,Welfare Provision Service Awards,15.07.2021,5101141112,680.72,Furniture Resource Centre Ltd
Manchester City Council,Corporate Services,Works and associated costs for Land and Buildings,15.07.2021,5101140887,"37,000.00",Faithful & Gould Ltd
Manchester City Council,Corporate Services,Works and associated costs for Land and Buildings,15.07.2021,5101140965,"15,129.60",Ove Arup & Partners Ltd
Manchester City Council,Corporate Services,Works and associated costs for Land and Buildings,15.07.2021,5101140900,"12,739.00",Faithful & Gould Ltd
Manchester City Council,Corporate Services,Works and associated costs for Land and Buildings,15.07.2021,5101140899,"10,683.75",Faithful & Gould Ltd
Manchester City Council,Corporate Services,Works and associated costs for Land and Buildings,15.07.2021,5101140957,"8,285.00",Ove Arup & Partners Ltd
Manchester City Council,Corporate Services,Works and associated costs for Land and Buildings,15.07.2021,5101140960,"5,034.75",Ove Arup & Partners Ltd
Manchester City Council,Corporate Services,Works and associated costs for Land and Buildings,15.07.2021,5101140904,"5,000.00",Faithful & Gould Ltd
Manchester City Council,Corporate Services,Works and associated costs for Land and Buildings,15.07.2021,5101140968,"1,123.88",Ove Arup & Partners Ltd
Manchester City Council,Corporate Services,Works and associated costs for Land and Buildings,15.07.2021,5101140902,"1,034.52",Faithful & Gould Ltd
Manchester City Council,Corporate Services,Works and associated costs for Land and Buildings,15.07.2021,5101141138,"100,966.22",Kier Construction Limited
Manchester City Council,Corporate Services,Works and associated costs for Land and Buildings,15.07.2021,5101141059,895.20,Groundwork & Leisure Services Ltd
Manchester City Council,Housing General Fund,Building Works,15.07.2021,5101140953,"42,800.00",Manchester Care & Repair Ltd
Manchester City Council,Housing Revenue Account,Electricity,15.07.2021,1907294527,"1,224.59",Haven Power Ltd
Manchester City Council,Housing Revenue Account,Council Dwelling Adaptations,15.07.2021,5101140104,"37,800.00",Ground Heat Ltd
Manchester City Council,Chief Executives,Training and Development,15.07.2021,5101140927,650.00,Gov Net communications
Manchester City Council,Chief Executives,Electricity,15.07.2021,1907294269,786.25,Scottish & Southern Energy Plc
Manchester City Council,Chief Executives,Furniture,15.07.2021,5101140703,757.00,Bennett Workplace Solutions Ltd
Manchester City Council,Chief Executives,Payments to Sub-Contractors,15.07.2021,5101140992,"1,074.20",T/A Janus
Manchester City Council,Chief Executives,Payments to Sub-Contractors,15.07.2021,5101141002,507.23,Redacted Personal Information
Manchester City Council,Chief Executives,Printing,15.07.2021,5101140886,"5,775.00",Browns CTP Ltd
Manchester City Council,Chief Executives,Funeral and coroner related services,15.07.2021,5101140915,"7,442.00",Kane Funeral Services
Manchester City Council,Chief Executives,Postage,15.07.2021,5101140892,"2,910.00",Royal Mail Group Plc
Manchester City Council,Chief Executives,Advertising,15.07.2021,5101140858,949.05,TES Global Ltd
Manchester City Council,Chief Executives,Advertising,15.07.2021,5101140860,949.05,TES Global Ltd
Manchester City Council,Chief Executives,Examination Fees,15.07.2021,5101140921,"1,235.00",ROAR Forensics Ltd
Manchester City Council,Chief Executives,Examination Fees,15.07.2021,5101140923,698.25,ROAR Forensics Ltd
Manchester City Council,Chief Executives,Compensation Payments,15.07.2021,5101140934,"1,959.13",Russell & Russell Solicitors LLP
Manchester City Council,Chief Executives,Compensation Payments,15.07.2021,5101140943,"1,937.50",Russell & Russell Solicitors LLP
Manchester City Council,Chief Executives,Compensation Payments,15.07.2021,5101140950,"1,587.50",Russell & Russell Solicitors LLP
Manchester City Council,Regeneration Finance,External repairs and maintenance for buildings,15.07.2021,5101140925,868.80,P Mcguinness & Co Ltd
Manchester City Council,Regeneration Finance,Electricity,15.07.2021,1907294136,"1,964.83",Scottish & Southern Energy Plc
Manchester City Council,Regeneration Finance,Electricity,15.07.2021,1907294369,"1,420.41",Scottish & Southern Energy Plc
Manchester City Council,Regeneration Finance,Electricity,15.07.2021,1907294442,"1,013.93",Scottish & Southern Energy Plc
Manchester City Council,Regeneration Finance,Electricity,15.07.2021,1907294298,784.07,Scottish & Southern Energy Plc
Manchester City Council,Regeneration Finance,Electricity,15.07.2021,1907294173,767.51,Scottish & Southern Energy Plc
Manchester City Council,Regeneration Finance,Electricity,15.07.2021,1907294403,739.74,Scottish & Southern Energy Plc
Manchester City Council,Regeneration Finance,Electricity,15.07.2021,1907294338,714.44,Scottish & Southern Energy Plc
Manchester City Council,Regeneration Finance,Electricity,15.07.2021,1907294374,632.45,Scottish & Southern Energy Plc
Manchester City Council,Regeneration Finance,Electricity,15.07.2021,1907294521,625.62,Scottish & Southern Energy Plc
Manchester City Council,Regeneration Finance,Electricity,15.07.2021,1907294346,614.33,Scottish & Southern Energy Plc
Manchester City Council,Regeneration Finance,Electricity,15.07.2021,1907294275,591.99,Scottish & Southern Energy Plc
Manchester City Council,Regeneration Finance,Electricity,15.07.2021,1700121785,"-1,762.04",Scottish & Southern Energy Plc
Manchester City Council,Regeneration Finance,Electricity,15.07.2021,1700121787,"-1,964.83",Scottish & Southern Energy Plc
Manchester City Council,Regeneration Finance,Electricity,15.07.2021,1700121786,"-2,178.99",Scottish & Southern Energy Plc
Manchester City Council,Regeneration Finance,Electricity,15.07.2021,1700121784,"-2,787.61",Scottish & Southern Energy Plc
Manchester City Council,Regeneration Finance,Rents,15.07.2021,1907285298,"7,309.12",Regus Management (UK) Ltd
Manchester City Council,Regeneration Finance,Rents,15.07.2021,1907285302,598.11,Regus Management (UK) Ltd
Manchester City Council,Regeneration Finance,Water Service Charges - Metered,15.07.2021,1907294605,"20,052.25",Anglian Water Business (National)
Manchester City Council,Regeneration Finance,Water Service Charges - Metered,15.07.2021,1907294623,"4,145.28",Anglian Water Business (National)
Manchester City Council,Regeneration Finance,Water Service Charges - Metered,15.07.2021,1907294536,"4,091.70",Anglian Water Business (National)
Manchester City Council,Regeneration Finance,Water Service Charges - Metered,15.07.2021,1907294665,"3,124.44",Anglian Water Business (National)
Manchester City Council,Regeneration Finance,Water Service Charges - Metered,15.07.2021,1907294767,"3,006.72",Anglian Water Business (National)
Manchester City Council,Regeneration Finance,Water Service Charges - Metered,15.07.2021,1907294706,"1,977.04",Anglian Water Business (National)
Manchester City Council,Regeneration Finance,Water Service Charges - Metered,15.07.2021,1907294707,"1,510.41",Anglian Water Business (National)
Manchester City Council,Regeneration Finance,Water Service Charges - Metered,15.07.2021,1907294595,"1,241.65",Anglian Water Business (National)
Manchester City Council,Regeneration Finance,Water Service Charges - Metered,15.07.2021,1907294661,"1,037.69",Anglian Water Business (National)
Manchester City Council,Regeneration Finance,Water Service Charges - Metered,15.07.2021,1907294673,"1,021.26",Anglian Water Business (National)
Manchester City Council,Regeneration Finance,Water Service Charges - Metered,15.07.2021,1907294708,860.40,Anglian Water Business (National)
Manchester City Council,Regeneration Finance,Water Service Charges - Metered,15.07.2021,1907294599,806.20,Anglian Water Business (National)
Manchester City Council,Regeneration Finance,Water Service Charges - Metered,15.07.2021,1907294654,749.54,Anglian Water Business (National)
Manchester City Council,Regeneration Finance,Water Service Charges - Metered,15.07.2021,1907294688,713.34,Anglian Water Business (National)
Manchester City Council,Regeneration Finance,Water Service Charges - Metered,15.07.2021,1907294728,680.82,Anglian Water Business (National)
Manchester City Council,Regeneration Finance,Water Service Charges - Metered,15.07.2021,1907294753,651.43,Anglian Water Business (National)
Manchester City Council,Regeneration Finance,Water Service Charges - Metered,15.07.2021,1907294764,632.14,Anglian Water Business (National)
Manchester City Council,Regeneration Finance,Water Service Charges - Metered,15.07.2021,1907294743,624.84,Anglian Water Business (National)
Manchester City Council,Regeneration Finance,Water Service Charges - Metered,15.07.2021,1907294701,609.84,Anglian Water Business (National)
Manchester City Council,Regeneration Finance,Water Service Charges - Metered,15.07.2021,1907294747,562.46,Anglian Water Business (National)
Manchester City Council,Regeneration Finance,Water Service Charges - Metered,15.07.2021,1907294537,509.53,Anglian Water Business (National)
Manchester City Council,Regeneration Finance,Water Service Charges - Metered,15.07.2021,1907294659,509.07,Anglian Water Business (National)
Manchester City Council,Regeneration Finance,Water Service Charges - Metered,15.07.2021,1907294695,504.18,Anglian Water Business (National)
Manchester City Council,Regeneration Finance,Refuse Collection,15.07.2021,5101140719,514.80,Restore Datashred Limited
Manchester City Council,Regeneration Finance,Refuse Collection,15.07.2021,5101141046,-514.80,Restore Datashred Limited
Manchester City Council,Regeneration Finance,Vehicle Hire Costs,15.07.2021,5101141247,513.99,City Car Club Ltd
Manchester City Council,Highways Services,Electricity,15.07.2021,1907294534,"209,528.22",Haven Power Ltd
Manchester City Council,Highways Services,Electricity,15.07.2021,1907294532,"97,676.22",Haven Power Ltd
Manchester City Council,Highways Services,Electricity,15.07.2021,1907294533,"81,921.27",Haven Power Ltd
Manchester City Council,Highways Services,Electricity,15.07.2021,1907294531,"79,777.44",Haven Power Ltd
Manchester City Council,Highways Services,Electricity,15.07.2021,1907294529,"1,855.59",Haven Power Ltd
Manchester City Council,Highways Services,Electricity,15.07.2021,1907294526,992.16,Haven Power Ltd
Manchester City Council,Highways Services,Electricity,15.07.2021,1700121829,"-97,738.01",Haven Power Ltd
Manchester City Council,Highways Services,Electricity,15.07.2021,1700121830,"-132,716.05",Haven Power Ltd
Manchester City Council,Highways Services,Electricity,15.07.2021,1700121828,"-138,305.66",Haven Power Ltd
Manchester City Council,Highways Services,Water Service Charges - Metered,15.07.2021,1907294756,"2,706.49",Anglian Water Business (National)
Manchester City Council,Highways Services,Building Materials for direct delivery,15.07.2021,5101141110,982.82,Benchmark Building Supplies Ltd
Manchester City Council,Highways Services,Building Materials for direct delivery,15.07.2021,5101140750,702.38,TARMAC
Manchester City Council,Highways Services,Tipping Charges - Tonnage,15.07.2021,5101140930,"1,824.00",Environment Agency
Manchester City Council,General Fund,Bus Rates Pool Top Up Payments,15.07.2021,1907226750,"3,478,688.00",DCLG
Manchester City Council,Manchester Leisure,External repairs and maintenance for buildings,16.07.2021,5101141564,"1,800.00",Clean-Up UK Limited
Manchester City Council,Manchester Leisure,Refuse Collection,16.07.2021,5101141259,"1,462.50",Vetspeed Ltd t/a Novus Environmenta
Manchester City Council,Manchester Leisure,Security,16.07.2021,5101141121,"9,990.00",Community Security (North West)
Manchester City Council,Manchester Leisure,Equipment,16.07.2021,5101140954,"1,350.00",Willfab Ltd
Manchester City Council,Manchester Leisure,Equipment,16.07.2021,5101141263,515.30,North West Timber Treatments Ltd
Manchester City Council,Manchester Leisure,Building Materials for direct delivery,16.07.2021,5101141146,"1,995.00",Flowprotect Ltd
Manchester City Council,Manchester Leisure,Building Materials for direct delivery,16.07.2021,5101141147,"1,795.00",Flowprotect Ltd
Manchester City Council,Manchester Leisure,Building Materials for direct delivery,16.07.2021,5101141580,"1,176.83",Chambers & Perkins
Manchester City Council,Manchester Leisure,Payments to Sub-Contractors,16.07.2021,5101141118,"6,765.08",Community Security (North West)
Manchester City Council,Manchester Leisure,Payments to Sub-Contractors,16.07.2021,5101141561,"2,160.00",Clean-Up UK Limited
Manchester City Council,Manchester Leisure,Payments to Sub-Contractors,16.07.2021,5101141170,"1,020.00",Groundwork & Leisure Services Ltd
Manchester City Council,Manchester Leisure,Payments to Sub-Contractors,16.07.2021,5101141172,"1,020.00",Groundwork & Leisure Services Ltd
Manchester City Council,Manchester Leisure,Payments to Sub-Contractors,16.07.2021,5101141176,"1,020.00",Groundwork & Leisure Services Ltd
Manchester City Council,Manchester Leisure,Payments to Sub-Contractors,16.07.2021,5101141563,845.00,Clean-Up UK Limited
Manchester City Council,Manchester Leisure,Payments to Sub-Contractors,16.07.2021,5101141169,"-1,020.00",Groundwork & Leisure Services Ltd
Manchester City Council,Manchester Leisure,Payments to Sub-Contractors,16.07.2021,5101141171,"-1,020.00",Groundwork & Leisure Services Ltd
Manchester City Council,Manchester Leisure,Payments to Sub-Contractors,16.07.2021,5101141173,"-1,020.00",Groundwork & Leisure Services Ltd
Manchester City Council,Manchester Leisure,General Office expenses,16.07.2021,1907288673,"1,567.20",WWW.EARTH-ANCHORS.COM
Manchester City Council,Manchester Leisure,General Office expenses,16.07.2021,1907288685,756.00,MILLWARD & KEELING LTD
Manchester City Council,Manchester Leisure,General Office expenses,16.07.2021,1700121846,-756.00,MILLWARD & KEELING LTD
Manchester City Council,Manchester Leisure,General Office expenses,16.07.2021,1700121848,"-1,567.20",WWW.EARTH-ANCHORS.COM
Manchester City Council,Manchester Leisure,Professional fees,16.07.2021,5101141086,"31,500.00",Run2 Group
Manchester City Council,Manchester Leisure,I T Provision,16.07.2021,5101141366,"17,518.00",CDW Limited
Manchester City Council,Manchester Leisure,ICT Support & Maintenance,16.07.2021,5101141332,"18,525.00",BORIS Software Ltd
Manchester City Council,Manchester Leisure,Levies,16.07.2021,1907212834,"2,394,000.00",GMCA
Manchester City Council,Manchester Leisure,Supporting People Payments,16.07.2021,5101141318,"15,000.00",Ramora Ltd
Manchester City Council,Manchester Leisure,Supporting People Payments,16.07.2021,5101141319,"1,790.90",Ramora Ltd
Manchester City Council,Libraries and Theatres,Training and Development,16.07.2021,5101141282,680.00,Ace Safety Academy Limited
Manchester City Council,Hospitality + Trading Services,Vehicle Repairs,16.07.2021,5101141328,872.00,Advanced Vehicle Technicians Ltd
Manchester City Council,Hospitality + Trading Services,Hire of Equipment,16.07.2021,5101141583,510.40,Mastacab LLP
Manchester City Council,Hospitality + Trading Services,Funeral and coroner related services,16.07.2021,5101141213,"4,923.25",Odlings MCR Ltd
Manchester City Council,Environment and Operations,Construction Works,16.07.2021,5101141153,"141,525.78",J.Hopkins (Contractors) Ltd.
Manchester City Council,Environment and Operations,Construction Works,16.07.2021,5101141152,"-22,100.13",J.Hopkins (Contractors) Ltd.
Manchester City Council,Childrens & Education Services,Rents,16.07.2021,5101141372,"5,564.75",Diocese of Salford
Manchester City Council,Childrens & Education Services,Contract Cleaning External,16.07.2021,5101141365,"3,568.50",Tiddlywinks Day Nursery Ltd
Manchester City Council,Childrens & Education Services,Grounds Maintenance Costs,16.07.2021,5101141351,"1,239.00",Tiddlywinks Nursery-Clayton No.4 Ac
Manchester City Council,Childrens & Education Services,Transport Coach Hire,16.07.2021,5101141360,"14,404.00",Youbus Ltd
Manchester City Council,Childrens & Education Services,Transport Coach Hire,16.07.2021,5101140070,"6,383.00",Transportation Direct Ltd
Manchester City Council,Childrens & Education Services,Catering,16.07.2021,5101141168,"18,071.20",Spie Limited
Manchester City Council,Childrens & Education Services,Professional fees,16.07.2021,5101141345,"1,900.00",Sixcel Solutions Ltd
Manchester City Council,Childrens & Education Services,Professional fees,16.07.2021,1907286399,920.40,Target Psychology Ltd
Manchester City Council,Childrens & Education Services,Professional fees,16.07.2021,1907287167,650.00,Redacted Personal Information
Manchester City Council,Childrens & Education Services,CORONA VIRUS D-19,16.07.2021,5101141262,"4,707.99",4CT Limited
Manchester City Council,Childrens & Education Services,Third party payments to other Local Authorities,16.07.2021,5101141246,763.00,Cheadle Primary School
Manchester City Council,Childrens & Education Services,Third party payments relating to Voluntary Organisations,16.07.2021,5101141210,"6,755.32",Manchester Settlement
Manchester City Council,Childrens & Education Services,Foster Payments,16.07.2021,5101141182,"4,820.00",CoramBAAF
Manchester City Council,Childrens & Education Services,Foster Payments,16.07.2021,5101141182,594.00,CoramBAAF
Manchester City Council,Childrens & Education Services,Supported Accommodation,16.07.2021,5101141299,"25,116.00",Manchester Settlement
Manchester City Council,Adult Social Care,Goods Received Invoice Received,16.07.2021,5101141322,"-1,437.25",Maybank House Care Home
Manchester City Council,Adult Social Care,Agency staff provision,16.07.2021,1907286387,"17,600.00",Workforce HCM Limited
Manchester City Council,Adult Social Care,Training and Development,16.07.2021,5101141359,500.00,University Of Manchester
Manchester City Council,Adult Social Care,External repairs and maintenance for buildings,16.07.2021,5101141255,980.00,T F Jones Property Services Ltd
Manchester City Council,Adult Social Care,Rents,16.07.2021,5101141347,"53,867.10",B & A Properties
Manchester City Council,Adult Social Care,Rents,16.07.2021,5101141200,"3,017.17",Johnnie Johnson Housing
Manchester City Council,Adult Social Care,Rents,16.07.2021,5101141202,"3,017.17",Johnnie Johnson Housing
Manchester City Council,Adult Social Care,Rents,16.07.2021,5101141192,"2,991.00",Johnnie Johnson Housing
Manchester City Council,Adult Social Care,Rents,16.07.2021,5101141193,"2,991.00",Johnnie Johnson Housing
Manchester City Council,Adult Social Care,Rents,16.07.2021,5101141206,"2,827.35",Johnnie Johnson Housing
Manchester City Council,Adult Social Care,Rents,16.07.2021,5101141204,"2,827.34",Johnnie Johnson Housing
Manchester City Council,Adult Social Care,Rents,16.07.2021,5101141187,"2,809.64",Johnnie Johnson Housing
Manchester City Council,Adult Social Care,Rents,16.07.2021,5101141189,"2,809.63",Johnnie Johnson Housing
Manchester City Council,Adult Social Care,Rents,16.07.2021,5101141196,"2,447.58",Johnnie Johnson Housing
Manchester City Council,Adult Social Care,Rents,16.07.2021,5101141197,"2,447.58",Johnnie Johnson Housing
Manchester City Council,Adult Social Care,Rents,16.07.2021,5101141208,"2,372.64",Johnnie Johnson Housing
Manchester City Council,Adult Social Care,Rents,16.07.2021,5101141209,"2,372.63",Johnnie Johnson Housing
Manchester City Council,Adult Social Care,Contract Cleaning External,16.07.2021,5101141352,"2,070.00",CleanSafe Services Uk Ltd
Manchester City Council,Adult Social Care,Contract Cleaning External,16.07.2021,5101141232,720.00,CleanSafe Services Uk Ltd
